Workbook

Sheet Inputs
A1: I. Reference
B2: AASHTO 2009 Edition Standard Spefification for Structural Supports for Highway Signs, Luminaires and Traffic Signals with 2011 Interim
A3: Generates Standard Table (See Comment before Running) | D3: Designs most Efficient Shape with Known W, L, and H | G3: Checks Custom Shape with Known W, L, and H
A5: II. Dimensions | E5: Sign Width | G5: W = | H5: 15
A6: (Used for "Custom Design" and "Shape Check" Programs Only) | E6: Post Length | G6: L = | H6: 12
E7: Sign Height | G7: H = | H7: 18
E8: Unbraced Length | G8: Lu = | H8: 0
A9: III. AISC Shape Database | E9: Custom Size | H9: 48
F10: Hinge Shim Plate Thickness | G10: tshimH = | H10: 1
A11: IV. Material Properties
B12: A. Post Strength (ASTM A36) or Optional Shim Plate for Custom Shape
C13: Yield Strength | G13: Fypost = | H13: 36000
C14: Modulus of Elasticity | G14: Es = | H14: 29000000
B15: B. Hinge Strength (AISI 4130)
C16: Yield Strength | G16: Fyhinge = | H16: 90000
B17: C. Bracket and Sign Panel Strength (Aluminum 6061-T6 Table 6-1)
C18: Tensile Ultimate Strength | G18: Ftu = | H18: 42000
C19: Tensile Yield Strength | G19: Fty = | H19: 35000
C20: Shear Yield Strength | G20: Fsy = | H20: 20000
C21: Unit Weight of Aluminum | G21: Wa = | H21: 165
B22: D. Coupling Strength
C23: Coupling Yield Strength | G23: Fycoupling = | H23: 130000
A24: V. Loads
B25: A. Dead Load (Section 3.5)
C26: Weight of Sign | G26: Ws = | H26: 3
B27: B. Ice Load (Section 3.7)
C28: Ice loading has be Eliminated from this calcuation since it has been determined that it will not govern the design
B30: C. Wind Load (Section 3.8)
C31: Height and Exposure Factor | G31: Kz = | H31: See Eqn. C3-1
D33: Height | E33: Kz | F33: Height | G33: Kz
D34: 16.4 | E34: 0.87 | F34: 114.8 | G34: 1.3
D35: 24.6 | E35: 0.94 | F35: 131.2 | G35: 1.34
D36: 32.8 | E36: 1 | F36: 147.6 | G36: 1.37
D37: 41 | E37: 1.05 | F37: 164 | G37: 1.4
D38: 49.2 | E38: 1.09 | F38: 180.5 | G38: 1.43
D39: 57.4 | E39: 1.13 | F39: 196.9 | G39: 1.46
D40: 65.6 | E40: 1.16 | F40: 229.7 | G40: 1.51
D41: 73.8 | E41: 1.19 | F41: 262.5 | G41: 1.55
D42: 82 | E42: 1.21 | F42: 295.3 | G42: 1.59
D43: 90.2 | E43: 1.24 | F43: 328.1 | G43: 1.63
D44: 98.4 | E44: 1.26
C51: Gust Effect Factor (Section 3.8.5) | F51: G = | H51: 1.14
C52: Basic Wind Speed (Table 3-2) | F52: V = | H52: 100 | I52: (*)
C53: Importance Factor (Table 3-2) | F53: Ir = | H53: =IF(H52=D56,E56,E57) -> 0.71
C55: Recurr. Interval | D55: Velocity | E55: Importance Factor | F55: Description
C56: 10 Years | D56: 100 | E56: 0.71 | F56: Non-Hurricane Region
C57: 10 Years | D57: 120 | E57: 0.54 | F57: Hurricane Region
C58: NOTE 1: Per Table 3-3, the recommended minimum design life of a roadside sign structure is 10 years.
C59: NOTE 2: Per Figure 3-2, the maximum wind velocity anywhere in CT is 120 mph along the coast. Per Table 3-2, the design wind pressure for hurricane wind velocities greater than 100 mph should not be less than the design wind pressure using V=100 mph with the corresponding non-hurricane Ir value.
C60: (*) Wind Speed determination: See "Section XII - Explanatory Notes".
C61: Drag Coefficient (Section 3.8.6) | F61: Cd = | H61: See Table 3-6
E63: L/W | F63: Cd
E64: 1 | F64: 1.12
E65: 2 | F65: 1.19
E66: 5 | F66: 1.2
E67: 10 | F67: 1.23
E68: 15 | F68: 1.3
C70: Basic Wind Pressure (Section 3.8.1) | F70: Pw = | H70: See Equation 3-1
D72: Pw = 0.00256·Kz·G·V2·I·Cd
A74: VI. Post Design
B75: 1. Bending Analysis | G75: p = | H75: =PI() -> 3.141592654
G76: Cb = | H76: 1
B78: 2. Compression Analysis | F78: K = | H78: 1.65
F79: (refer to Part XI. Explanatory Notes below)
A80: VII. Hinge Design
B81: 1. Hinge Plate HI-1 (Type AI6) | G81: AAI6 = | H81: =1*0.071 -> 0.071
B83: 2. Hinge Plate HI-2 (Type B525) | G83: AB525 = | H83: =1.5*0.113-0.5*0.113 -> 0.113
B85: 3. Hinge Plate HI-3 (Type B650) | G85: AB650 = | H85: =1.5*0.113 -> 0.1695
B87: 4. Misc. Data | D87: Dist from Hinge to Bottom of Sign | G87: Spacing = | H87: 3.25
A89: VIII. Bracket Design
B90: 1. Bracket Type B525
C91: Horizontal Leg Thickness | G91: HB525 = | H91: 1.25
C92: Vertical Leg Thickness | G92: VB525 = | H92: 1.75
C93: Bracket Width | G93: WB525 = | H93: 5.25
C94: Bracket Area | G94: AB525 = | H94: 15.274
C95: Bracket #1 Eccentricity | G95: E1B525 = | H95: =0.1+0.004 -> 0.104
C96: Bracket #2 Eccentricity | G96: E2B525 = | H96: =0.15+0.004 -> 0.154
C97: Bracket #3 Eccentricity | G97: E3B525 = | H97: =0.2+0.004 -> 0.204
B99: 2. Bracket Type B650
C100: Horizontal Leg Thickness | G100: HB650 = | H100: 1.25
C101: Vertical Leg Thickness | G101: VB650 = | H101: 1.75
C102: Bracket Width | G102: WB650 = | H102: 6.5
C103: Bracket Area | G103: AB650 = | H103: 15.274
C104: Bracket #1 Eccentricity | G104: E1B650 = | H104: =0.1+0.004 -> 0.104
C105: Bracket #2 Eccentricity | G105: E2B650 = | H105: =0.15+0.004 -> 0.154
C106: Bracket #3 Eccentricity | G106: E3B650 = | H106: =0.2+0.004 -> 0.204
B108: 3. Bracket Constants
C109: Factor of Safety - Ultimate Strength | G109: Nu = | H109: 1.95
C110: Factor of Safety - Yield Strength | G110: Ny = | H110: 1.65
C111: Coefficient for Tension Members | G111: Kt = | H111: 1
B113: 4. Eccentricity Bracket Selection Table: | F113: Let L' = Post Length + H/2
B114: Post Depth | C114: Bracket #1 | E114: Bracket #2 | G114: Bracket #3
C115: Min L' | D115: Max L' | E115: Min L' | F115: Max L' | G115: Min L' | H115: Max L'
B116: 6 | C116: 12 | D116: 29 | E116: 9 | F116: 12 | G116: - | H116: 9
B117: 8 | C117: 14 | D117: 29 | E117: 10 | F117: 14 | G117: - | H117: 10
B118: 10 | C118: 16 | D118: 29 | E118: 11 | F118: 16 | G118: - | H118: 11
B119: 12 | C119: 18 | D119: 29 | E119: 13 | F119: 18 | G119: - | H119: 13
B120: 14 | C120: 19 | D120: 29 | E120: 14 | F120: 19 | G120: - | H120: 14
B121: 16 | C121: 21 | D121: 29 | E121: 15 | F121: 21 | G121: - | H121: 15
B122: 18 | C122: 23 | D122: 29 | E122: 16 | F122: 23 | G122: - | H122: 16
B123: 21 | C123: 25 | D123: 29 | E123: 18 | F123: 25 | G123: - | H123: 18
B124: 5. Coupling Diameter at Critical Section | G124: Dcoupling = | H124: 0.585
A126: IX. Torsional Stiffness - Aluminum Sign Panels
B127: 1. Torsional Stiffness Variables
C128: Torsional Stiffness Lower Limit | G128: T/f = | H128: 100
C129: Modulus of Rigidity (Aluminum Alloy 6061-T6) | G129: G = | H129: =3700000 -> 3700000
B131: 2. Edge Detail Type 1
C132: Component | D132: Quantity | E132: h | F132: t1 | G132: t2 | H132: J (in4)
C133: A | D133: 2 | E133: 0.312 | F133: 0.188 | G133: 0.188 | H133: =D133*1/3*E133*(((F133+G133)/2)^3) -> 0.001382091776
C134: B | D134: 2 | E134: 0.344 | F134: 0.084 | G134: 0.174 | H134: =D134*1/3*E134*(((F134+G134)/2)^3) -> 0.000492307344
C135: C | D135: 2 | E135: 0.731 | F135: 0.188 | G135: 0.094 | H135: =D135*1/3*E135*(((F135+G135)/2)^3) -> 0.001366103034
C136: D | D136: 1 | E136: 1.919 | F136: 0.125 | G136: 0.125 | H136: =D136*1/3*E136*(((F136+G136)/2)^3) -> 0.001249348958
C137: E | D137: 1 | E137: 12 | F137: 0.081 | G137: 0.081 | H137: =D137*1/3*E137*(((F137+G137)/2)^3) -> 0.002125764
C138: F | D138: 2 | E138: 1.481 | F138: 0.081 | G138: 0.081 | I138: =D138*1/3*E138*(((F138+G138)/2)^3) -> 0.000524709414
C139: G | D139: 1 | E139: 1.481 | F139: =2*0.081 -> 0.162 | G139: =0.081 -> 0.081 | H139: =D139*1/3*E139*(((F139+G139)/2)^3) -> 0.0008854471361 | I139: =-1*D139*1/3*E139*(((F139+G139)/2)^3) -> -0.0008854471361
C140: H | D140: 2 | E140: 0.25 | F140: 0.125 | G140: 0.125 | I140: =D140*1/3*E140*(((F140+G140)/2)^3) -> 0.0003255208333
C141: I | D141: 1 | E141: 0.25 | F141: =2*0.125 -> 0.25 | G141: 0.125 | H141: =D141*1/3*E141*(((F141+G141)/2)^3) -> 0.0005493164062 | I141: =-1*D141*1/3*E141*(((F141+G141)/2)^3) -> -0.0005493164062
C142: J | D142: 2 | E142: 0.264 | F142: 0.188 | G142: 0.188 | I142: =D142*1/3*E142*(((F142+G142)/2)^3) -> 0.001169462272
C143: K | D143: 1 | E143: 0.264 | F143: 0.188 | G143: 0.188 | H143: =D143*1/3*E143*(((F143+G143)/2)^3) -> 0.000584731136 | I143: =-1*D143*1/3*E143*(((F143+G143)/2)^3) -> -0.000584731136
G144: Je = SJ = | H144: =SUM(H133:H143) -> 0.008635109791 | I144: =SUM(I133:I143) -> 1.978409583e-07
B154: 3. Edge Detail Type 2
C155: Component | D155: Quantity | E155: h | F155: t1 | G155: t2 | H155: J (in4)
C156: A | D156: 2 | E156: 0.139 | F156: 0.125 | G156: 0.125 | H156: =D156*1/3*E156*(((F156+G156)/2)^3) -> 0.0001809895833
C157: B | D157: 2 | E157: 0.453 | F157: 0.078 | G157: 0.078 | H157: =D157*1/3*E157*(((F157+G157)/2)^3) -> 0.000143314704
C158: C | D158: 2 | E158: 0.687 | F158: 0.078 | G158: 0.078 | H158: =D158*1/3*E158*(((F158+G158)/2)^3) -> 0.000217344816
C159: D | D159: 1 | E159: 1.875 | F159: 0.078 | G159: 0.078 | H159: =D159*1/3*E159*(((F159+G159)/2)^3) -> 0.000296595
C160: E | D160: 1 | E160: 12 | F160: 0.125 | G160: 0.125 | H160: =D160*1/3*E160*(((F160+G160)/2)^3) -> 0.0078125
C161: F | D161: 2 | E161: 1.75 | F161: 0.078 | G161: 0.078 | I161: =D161*1/3*E161*(((F161+G161)/2)^3) -> 0.000553644
C162: G | D162: 1 | E162: 1.75 | F162: =2*0.078 -> 0.156 | G162: =2*0.078 -> 0.156 | H162: =D162*1/3*E162*(((F162+G162)/2)^3) -> 0.002214576 | I162: =-1*D162*1/3*E162*(((F162+G162)/2)^3) -> -0.002214576
C163: H | D163: 2 | E163: 0.217 | F163: 0.125 | G163: 0.125 | I163: =D163*1/3*E163*(((F163+G163)/2)^3) -> 0.0002825520833
C164: I | D164: 1 | E164: =2*0.217 -> 0.434 | F164: 0.125 | G164: 0.125 | H164: =D164*1/3*E164*(((F164+G164)/2)^3) -> 0.0002825520833 | I164: =-1*D164*1/3*E164*(((F164+G164)/2)^3) -> -0.0002825520833
G165: Je = SJ = | H165: =SUM(H156:H164) -> 0.01114787219 | I165: =SUM(I161:I164) -> -0.001660932
B175: 4. Comparison Table - Indicates Limiting Widths for Torsional Stiffness
C176: Type 1 | E176: Type 2
C177: H | D177: W | E177: H | F177: W
C178: 0 | D178: 0 | E178: 0 | F178: 0
C179: =1+C178 -> 1 | D179: =($H$144*C179+$I$144)*$H$129/($H$128*12*3/5*12) -> 3.697990537 | E179: =1+E178 -> 1 | F179: =($H$165*E179+$I$165)*$H$129/($H$128*12*3/5*12) -> 4.062694293
C180: =1+C179 -> 2 | D180: 7.39589635 | E180: 2 | F180: 8.836667336
C181: 3 | D181: 11.09380216 | E181: 3 | F181: 13.61064038
C182: 4 | D182: 14.79170798 | E182: 4 | F182: 18.38461342
C183: 5 | D183: 18.48961379 | E183: 5 | F183: 23.15858646
C184: 6 | D184: 22.1875196 | E184: 6 | F184: 27.93255951
A208: X. Torsional Stiffness - Aluminum Channels
B209: 1. Torsional Stiffness Variables
C210: Torsional Stiffness Lower Limit | G210: T/f = | H210: 100
C211: Modulus of Rigidity (Aluminum Allow 6061-T6) | G211: G = | H211: =3700000 -> 3700000
B213: 2. Typical Channel Section
C214: Component | D214: Quantity | E214: ds | F214: t | G214: ds/t | H214: W
C215: A | D215: 1 | E215: =13/16 -> 0.8125 | F215: 0.078 | G215: =D215*E215/F215 -> 10.41666667 | H215: 1.145
C216: B | D216: 2 | E216: =3/8 -> 0.375 | F216: 0.083 | G216: =D216*E216/F216 -> 9.036144578
C217: C | D217: 2 | E217: =5/8 -> 0.625 | F217: 0.083 | G217: =D217*E217/F217 -> 15.06024096
C218: D | D218: 1 | E218: =1+3/8 -> 1.375 | F218: 0.096 | G218: =D218*E218/F218 -> 14.32291667
F219: Jeff = | G219: 4W2/∫ ds/t = | H219: =(4*H215^2)/SUM(G215:G218) -> 0.1073819179
B229: 3. Typical Sign Section
C230: Component | D230: Sign Height | E230: Sign Thickness
C231: Sign | D231: H | E231: 0.08 | F231: -
B232: * Note:
B233: i. Maximum Channel Spacing is estimated based on Allowable Bending Stress of Sign Panel
B234: ii. Limit values of Channel Spacing for adequate Torsional Stiffness is shown in the chart
B235: below. Sign thickness is taken as | E235: =E231 -> 0.08 | F235: for plotting this chart.
H263: 24.21995258
A270: XI. Bending Strength - Aluminium Sign Panel
B271: 1. Analysis data:
C272: Minimum Section Modulus | G272: Smin = | H272: 0.605
C273: Design Wind Pressure | G273: Pz = | H273: 23.0801901
C274: Spacing between supporting posts | G274: (3/5)W = | H274: =H5*3/5 -> 9
B275: 2.Sign Panel Strength: Aluminum Alloy 6063-T6
C276: Tensile Ultimate Strength | G276: Ftu = | H276: 30000
C277: Tensile Yield Strength | G277: Fty = | H277: 25000
C278: Shear Yield Strength | G278: Fsy = | H278: 14000
B279: 3. Sign Panel's Bending Strength check:
C280: Allowable Bending Stress of Sign Panel is the SMALLER of:
C281: Fb1 | D281: = 1.3 x Fty / Ny
D282: =1.3 -> 1.3 | E282: =H277 -> 25000 | G282: =H110 -> 1.65
D283: =D282*E282/G282 -> 19696.9697
C284: Fb2 | D284: = 1.42 x Ftu / ( Kt x Nu )
D285: =1.42 -> 1.42 | E285: =H276 -> 30000 | G285: =H111 -> 1 | H285: =H109 -> 1.95
D286: =D285*E285/(G285*H285) -> 21846.15385
C287: Therefore, Allowable Bending Stress, Fb:
D288: = 1.33 x | E288: =MIN(D283,D286) -> 19696.9697
D289: =1.33*E288 -> 26196.9697
C290: Allowable Bending Moment based on minimum Section Modulus (conservative):
C291: Mallowable | D291: = Fb x S
D292: =D289*H272 -> 15849.16667
C293: Maximum Bending Moment due to Wind Load on Sign Panel:
C294: Mmax | D294: = 1/8 x (Wind Pressure * 1') x (Post Spacing )2 (2 pinned supports)
D295: =12*(1/8)*H273*H274^2 -> 2804.243097
C297: Combined Stress Ratio for Bending: | G297: CSR = | H297: =D295/D292 -> 0.1769331572 | I297: =IF(H297<1.004, "< 1.0 : OK!", "> 1.0: NOT OK!") -> < 1.0 : OK!
A300: XII. Explanatory Notes:
B301: 1. K-value determination:
B302: The K-value is determined in the reference of Table C-C2.1, Section C-C2, AISC Manual of
B303: Steel Construction, Ninth Edition.
B305: Direction | D305: Perpendicular to Traffic | G305: Parallel to Traffic
B306: End condition | D306: Rotation fixed and translation free Case (c) | G306: Rotation free and translation free Case (e)
B307: Buckling shape
B308: Theorectical K-value | D308: 1 | G308: 2
B309: Design value | D309: 1.2 | G309: 2.1
B310: Average K-value
B311: * Designers may use a less conservative value of K (less than the average value), but
B312: it should never be less than 1.2
... 9 more rows

Sheet Shape Database
A1: Shape | B1: Member Properties | H1: Axis X-X | K1: Axis Y-Y | O1: CODE
B2: W (lb/ft) | C2: A (in2) | D2: D (in) | E2: Bf (in) | F2: Tw (in) | G2: Tf (in) | H2: Ix (in4) | I2: Sx (in3) | J2: Rx (in) | K2: Iy (in4) | L2: Sy (in3) | M2: Ry (in) | N2: Rt (in)
A3: W6 x 9 | B3: 9 | C3: 2.68 | D3: 5.9 | E3: 3.94 | F3: 0.17 | G3: 0.215 | H3: 16.4 | I3: 5.56 | J3: 2.47 | K3: 2.2 | L3: 1.11 | M3: 0.905 | N3: =SQRT((E3^3*G3/12)/(E3*G3+(C3-2*E3*G3)/6)) -> 1.040905888 | O3: 1
A4: W8 x 10 | B4: 10 | C4: 2.96 | D4: 7.89 | E4: 3.94 | F4: 0.17 | G4: 0.205 | H4: 30.8 | I4: 7.81 | J4: 3.22 | K4: 2.09 | L4: 1.06 | M4: 0.841 | N4: =SQRT((E4^3*G4/12)/(E4*G4+(C4-2*E4*G4)/6)) -> 1.006312526 | O4: 2
A5: W6 x 12 | B5: 12 | C5: 3.55 | D5: 6.03 | E5: 4 | F5: 0.23 | G5: 0.28 | H5: 22.1 | I5: 7.31 | J5: 2.49 | K5: 2.99 | L5: 1.5 | M5: 0.918 | N5: 1.056321774 | O5: 3
A6: W10 x 12 | B6: 12 | C6: 3.54 | D6: 9.87 | E6: 3.96 | F6: 0.19 | G6: 0.21 | H6: 53.8 | I6: 10.9 | J6: 3.9 | K6: 2.18 | L6: 1.1 | M6: 0.785 | N6: 0.9744798844 | O6: 4
A7: W8 x 13 | B7: 13 | C7: 3.84 | D7: 7.99 | E7: 4 | F7: 0.23 | G7: 0.255 | H7: 39.6 | I7: 9.91 | J7: 3.21 | K7: 2.73 | L7: 1.37 | M7: 0.843 | N7: 1.015038438 | O7: 5
A8: W12 x 14 | B8: 14 | C8: 4.16 | D8: 11.9 | E8: 3.97 | F8: 0.2 | G8: 0.225 | H8: 88.6 | I8: 14.9 | J8: 4.62 | K8: 2.36 | L8: 1.19 | M8: 0.753 | N8: 0.9540870833 | O8: 6
A9: W6 x 15 | B9: 15 | C9: 4.45 | D9: 5.99 | E9: 5.99 | F9: 0.23 | G9: 0.26 | H9: 29.3 | I9: 9.77 | J9: 2.56 | K9: 9.32 | L9: 3.11 | M9: 1.45 | N9: 1.617463229 | O9: 7
A10: W8 x 15 | B10: 15 | C10: 4.44 | D10: 8.11 | E10: 4.01 | F10: 0.245 | G10: 0.315 | H10: 48 | I10: 11.8 | J10: 3.29 | K10: 3.41 | L10: 1.7 | M10: 0.876 | N10: 1.034342209 | O10: 8
A11: W10 x 15 | B11: 15 | C11: 4.41 | D11: 9.99 | E11: 4 | F11: 0.23 | G11: 0.27 | H11: 68.9 | I11: 13.8 | J11: 3.95 | K11: 2.89 | L11: 1.45 | M11: 0.81 | N11: 0.9948320067 | O11: 9
A12: W6 x 16 | B12: 16 | C12: 4.74 | D12: 6.28 | E12: 4.03 | F12: 0.26 | G12: 0.405 | H12: 32.1 | I12: 10.2 | J12: 2.6 | K12: 4.43 | L12: 2.2 | M12: 0.967 | N12: 1.084513847 | O12: 10
A13: W12 x 16 | B13: 16 | C13: 4.71 | D13: 12 | E13: 3.99 | F13: 0.22 | G13: 0.265 | H13: 103 | I13: 17.1 | J13: 4.67 | K13: 2.82 | L13: 1.41 | M13: 0.773 | N13: 0.970315787 | O13: 11
A14: W10 x 17 | B14: 17 | C14: 4.99 | D14: 10.1 | E14: 4.01 | F14: 0.24 | G14: 0.33 | H14: 81.9 | I14: 16.2 | J14: 4.05 | K14: 3.56 | L14: 1.78 | M14: 0.845 | N14: 1.017171984 | O14: 12
A15: W8 x 18 | B15: 18 | C15: 5.26 | D15: 8.14 | E15: 5.25 | F15: 0.23 | G15: 0.33 | H15: 61.9 | I15: 15.2 | J15: 3.43 | K15: 7.97 | L15: 3.04 | M15: 1.23 | N15: 1.399519888 | O15: 13
A16: W10 x 19 | B16: 19 | C16: 5.62 | D16: 10.2 | E16: 4.02 | F16: 0.25 | G16: 0.395 | H16: 96.3 | I16: 18.8 | J16: 4.14 | K16: 4.29 | L16: 2.14 | M16: 0.874 | N16: 1.035253079 | O16: 14
A17: W12 x 19 | B17: 19 | C17: 5.57 | D17: 12.2 | E17: 4.01 | F17: 0.235 | G17: 0.35 | H17: 130 | I17: 21.3 | J17: 4.82 | K17: 3.76 | L17: 1.88 | M17: 0.822 | N17: 1.004470078 | O17: 15
A18: W6 x 20 | B18: 20 | C18: 5.89 | D18: 6.2 | E18: 6.02 | F18: 0.26 | G18: 0.365 | H18: 41.5 | I18: 13.4 | J18: 2.66 | K18: 13.3 | L18: 4.41 | M18: 1.5 | N18: 1.646929381 | O18: 16
A19: W8 x 21 | B19: 21 | C19: 6.16 | D19: 8.28 | E19: 5.27 | F19: 0.25 | G19: 0.4 | H19: 75.3 | I19: 18.2 | J19: 3.49 | K19: 9.77 | L19: 3.71 | M19: 1.26 | N19: 1.416359534 | O19: 17
A20: W10 x 22 | B20: 22 | C20: 6.49 | D20: 10.2 | E20: 5.75 | F20: 0.24 | G20: 0.36 | H20: 118 | I20: 23.2 | J20: 4.27 | K20: 11.4 | L20: 3.97 | M20: 1.33 | N20: 1.522116073 | O20: 18
A21: W12 x 22 | B21: 22 | C21: 6.48 | D21: 12.3 | E21: 4.03 | F21: 0.26 | G21: 0.425 | H21: 156 | I21: 25.4 | J21: 4.91 | K21: 4.66 | L21: 2.31 | M21: 0.848 | N21: 1.021423092 | O21: 19
A22: W14 x 22 | B22: 22 | C22: 6.49 | D22: 13.7 | E22: 5 | F22: 0.23 | G22: 0.335 | H22: 199 | I22: 29 | J22: 5.54 | K22: 7 | L22: 2.8 | M22: 1.04 | N22: 1.259911426 | O22: 20
A23: W8 x 24 | B23: 24 | C23: 7.08 | D23: 7.93 | E23: 6.5 | F23: 0.245 | G23: 0.4 | H23: 82.7 | I23: 20.9 | J23: 3.42 | K23: 18.3 | L23: 5.63 | M23: 1.61 | N23: 1.772614586 | O23: 21
A24: W6 x 25 | B24: 25 | C24: 7.36 | D24: 6.38 | E24: 6.08 | F24: 0.32 | G24: 0.455 | H24: 53.6 | I24: 16.8 | J24: 2.7 | K24: 17.1 | L24: 5.61 | M24: 1.52 | N24: 1.665847533 | O24: 22
A25: W10 x 26 | B25: 26 | C25: 7.61 | D25: 10.3 | E25: 5.77 | F25: 0.26 | G25: 0.44 | H25: 144 | I25: 27.9 | J25: 4.35 | K25: 14.1 | L25: 4.89 | M25: 1.36 | N25: 1.542375115 | O25: 23
A26: W12 x 26 | B26: 26 | C26: 7.65 | D26: 12.2 | E26: 6.49 | F26: 0.23 | G26: 0.38 | H26: 204 | I26: 33.4 | J26: 5.17 | K26: 17.3 | L26: 5.34 | M26: 1.51 | N26: 1.722032146 | O26: 24
A27: W14 x 26 | B27: 26 | C27: 7.69 | D27: 13.9 | E27: 5.03 | F27: 0.255 | G27: 0.42 | H27: 245 | I27: 35.3 | J27: 5.65 | K27: 8.91 | L27: 3.55 | M27: 1.08 | N27: 1.286780522 | O27: 25
A28: W16 x 26 | B28: 26 | C28: 7.68 | D28: 15.7 | E28: 5.5 | F28: 0.25 | G28: 0.345 | H28: 301 | I28: 38.4 | J28: 6.26 | K28: 9.59 | L28: 3.49 | M28: 1.12 | N28: 1.370941949 | O28: 26
A29: W8 x 28 | B29: 28 | C29: 8.24 | D29: 8.06 | E29: 6.54 | F29: 0.285 | G29: 0.465 | H29: 98 | I29: 24.3 | J29: 3.45 | K29: 21.7 | L29: 6.63 | M29: 1.62 | N29: 1.785320479 | O29: 27
A30: W10 x 30 | B30: 30 | C30: 8.84 | D30: 10.5 | E30: 5.81 | F30: 0.3 | G30: 0.51 | H30: 170 | I30: 32.4 | J30: 4.38 | K30: 16.7 | L30: 5.75 | M30: 1.37 | N30: 1.554636487 | O30: 28
A31: W12 x 30 | B31: 30 | C31: 8.79 | D31: 12.3 | E31: 6.52 | F31: 0.26 | G31: 0.44 | H31: 238 | I31: 38.6 | J31: 5.21 | K31: 20.3 | L31: 6.24 | M31: 1.52 | N31: 1.734631733 | O31: 29
A32: W14 x 30 | B32: 30 | C32: 8.85 | D32: 13.8 | E32: 6.73 | F32: 0.27 | G32: 0.385 | H32: 291 | I32: 42 | J32: 5.73 | K32: 19.6 | L32: 5.82 | M32: 1.49 | N32: 1.747538731 | O32: 30
A33: W8 x 31 | B33: 31 | C33: 9.12 | D33: 8 | E33: 8 | F33: 0.285 | G33: 0.435 | H33: 110 | I33: 27.5 | J33: 3.47 | K33: 37.1 | L33: 9.27 | M33: 2.02 | N33: 2.198484326 | O33: 31
A34: W16 x 31 | B34: 31 | C34: 9.13 | D34: 15.9 | E34: 5.53 | F34: 0.275 | G34: 0.44 | H34: 375 | I34: 47.2 | J34: 6.41 | K34: 12.4 | L34: 4.49 | M34: 1.17 | N34: 1.404416611 | O34: 32
A35: W10 x 33 | B35: 33 | C35: 9.71 | D35: 9.73 | E35: 7.96 | F35: 0.29 | G35: 0.435 | H35: 171 | I35: 35 | J35: 4.19 | K35: 36.6 | L35: 9.2 | M35: 1.94 | N35: 2.157783672 | O35: 33
A36: W14 x 34 | B36: 34 | C36: 10 | D36: 14 | E36: 6.75 | F36: 0.285 | G36: 0.455 | H36: 340 | I36: 48.6 | J36: 5.83 | K36: 23.3 | L36: 6.91 | M36: 1.53 | N36: 1.771903396 | O36: 34
A37: W8 x 35 | B37: 35 | C37: 10.3 | D37: 8.12 | E37: 8.02 | F37: 0.31 | G37: 0.495 | H37: 127 | I37: 31.2 | J37: 3.51 | K37: 42.6 | L37: 10.6 | M37: 2.03 | N37: 2.208348704 | O37: 35
A38: W12 x 35 | B38: 35 | C38: 10.3 | D38: 12.5 | E38: 6.56 | F38: 0.3 | G38: 0.52 | H38: 285 | I38: 45.6 | J38: 5.25 | K38: 24.5 | L38: 7.47 | M38: 1.54 | N38: 1.750801162 | O38: 36
A39: W18 x 35 | B39: 35 | C39: 10.3 | D39: 17.7 | E39: 6 | F39: 0.3 | G39: 0.425 | H39: 510 | I39: 57.6 | J39: 7.04 | K39: 15.3 | L39: 5.12 | M39: 1.22 | N39: 1.496336991 | O39: 37
A40: W16 x 36 | B40: 36 | C40: 10.6 | D40: 15.9 | E40: 6.99 | F40: 0.295 | G40: 0.43 | H40: 448 | I40: 56.5 | J40: 6.51 | K40: 24.5 | L40: 7 | M40: 1.52 | N40: 1.80161428 | O40: 38
A41: W14 x 38 | B41: 38 | C41: 11.2 | D41: 14.1 | E41: 6.77 | F41: 0.31 | G41: 0.515 | H41: 385 | I41: 54.6 | J41: 5.87 | K41: 26.7 | L41: 7.88 | M41: 1.55 | N41: 1.78252421 | O41: 39
A42: W10 x 39 | B42: 39 | C42: 11.5 | D42: 9.92 | E42: 7.99 | F42: 0.315 | G42: 0.53 | H42: 209 | I42: 42.1 | J42: 4.27 | K42: 45 | L42: 11.3 | M42: 1.98 | N42: 2.180155508 | O42: 40
A43: W8 x 40 | B43: 40 | C43: 11.7 | D43: 8.25 | E43: 8.07 | F43: 0.36 | G43: 0.56 | H43: 146 | I43: 35.5 | J43: 3.53 | K43: 49.1 | L43: 12.2 | M43: 2.04 | N43: 2.223055503 | O43: 41
A44: W12 x 40 | B44: 40 | C44: 11.7 | D44: 11.9 | E44: 8.01 | F44: 0.295 | G44: 0.515 | H44: 307 | I44: 51.5 | J44: 5.13 | K44: 44.1 | L44: 11 | M44: 1.94 | N44: 2.166248208 | O44: 42
A45: W16 x 40 | B45: 40 | C45: 11.8 | D45: 16 | E45: 7 | F45: 0.305 | G45: 0.505 | H45: 518 | I45: 64.7 | J45: 6.63 | K45: 28.9 | L45: 8.25 | M45: 1.57 | N45: 1.8272281 | O45: 43
A46: W18 x 40 | B46: 40 | C46: 11.8 | D46: 17.9 | E46: 6.02 | F46: 0.315 | G46: 0.525 | H46: 612 | I46: 68.4 | J46: 7.21 | K46: 19.1 | L46: 6.35 | M46: 1.27 | N46: 1.530703308 | O46: 44
A47: W14 x 43 | B47: 43 | C47: 12.6 | D47: 13.7 | E47: 8 | F47: 0.305 | G47: 0.53 | H47: 428 | I47: 62.6 | J47: 5.82 | K47: 45.2 | L47: 11.3 | M47: 1.89 | N47: 2.142425371 | O47: 45
A48: W21 x 44 | B48: 44 | C48: 13 | D48: 20.7 | E48: 6.5 | F48: 0.35 | G48: 0.45 | H48: 843 | I48: 81.6 | J48: 8.06 | K48: 20.7 | L48: 6.37 | M48: 1.26 | N48: 1.581658856 | O48: 46
A49: W10 x 45 | B49: 45 | C49: 13.3 | D49: 10.1 | E49: 8.02 | F49: 0.35 | G49: 0.62 | H49: 248 | I49: 49.1 | J49: 4.32 | K49: 53.4 | L49: 13.3 | M49: 2.01 | N49: 2.1950347 | O49: 47
A50: W12 x 45 | B50: 45 | C50: 13.1 | D50: 12.1 | E50: 8.05 | F50: 0.335 | G50: 0.575 | H50: 348 | I50: 57.7 | J50: 5.15 | K50: 50 | L50: 12.4 | M50: 1.95 | N50: 2.178041508 | O50: 48
A51: W16 x 45 | B51: 45 | C51: 13.3 | D51: 16.1 | E51: 7.04 | F51: 0.345 | G51: 0.565 | H51: 586 | I51: 72.7 | J51: 6.65 | K51: 32.8 | L51: 9.34 | M51: 1.57 | N51: 1.836958998 | O51: 49
A52: W18 x 46 | B52: 46 | C52: 13.5 | D52: 18.1 | E52: 6.06 | F52: 0.36 | G52: 0.605 | H52: 712 | I52: 78.8 | J52: 7.25 | K52: 22.5 | L52: 7.43 | M52: 1.29 | N52: 1.546020349 | O52: 50
A53: W8 x 48 | B53: 48 | C53: 14.1 | D53: 8.5 | E53: 8.11 | F53: 0.4 | G53: 0.685 | H53: 184 | I53: 43.2 | J53: 3.61 | K53: 60.9 | L53: 15 | M53: 2.08 | N53: 2.242746973 | O53: 51
A54: W14 x 48 | B54: 48 | C54: 14.1 | D54: 13.8 | E54: 8.03 | F54: 0.34 | G54: 0.595 | H54: 484 | I54: 70.2 | J54: 5.85 | K54: 51.4 | L54: 12.8 | M54: 1.91 | N54: 2.153640508 | O54: 52
A55: W21 x 48 | B55: 48 | C55: 14.1 | D55: 20.6 | E55: 8.14 | F55: 0.35 | G55: 0.43 | H55: 959 | I55: 93 | J55: 8.24 | K55: 38.7 | L55: 9.52 | M55: 1.66 | N55: 2.031404898 | O55: 53
A56: W10 x 49 | B56: 49 | C56: 14.4 | D56: 9.98 | E56: 10 | F56: 0.34 | G56: 0.56 | H56: 272 | I56: 54.6 | J56: 4.35 | K56: 93.4 | L56: 18.7 | M56: 2.54 | N56: 2.758386422 | O56: 54
A57: W12 x 50 | B57: 50 | C57: 14.6 | D57: 12.2 | E57: 8.08 | F57: 0.37 | G57: 0.64 | H57: 391 | I57: 64.2 | J57: 5.18 | K57: 56.3 | L57: 13.9 | M57: 1.96 | N57: 2.187248867 | O57: 55
A58: W16 x 50 | B58: 50 | C58: 14.7 | D58: 16.3 | E58: 7.07 | F58: 0.38 | G58: 0.63 | H58: 659 | I58: 81 | J58: 6.68 | K58: 37.2 | L58: 10.5 | M58: 1.59 | N58: 1.850261742 | O58: 56
A59: W18 x 50 | B59: 50 | C59: 14.7 | D59: 18 | E59: 7.5 | F59: 0.355 | G59: 0.57 | H59: 800 | I59: 88.9 | J59: 7.38 | K59: 40.1 | L59: 10.7 | M59: 1.65 | N59: 1.944467842 | O59: 57
A60: W21 x 50 | B60: 50 | C60: 14.7 | D60: 20.8 | E60: 6.53 | F60: 0.38 | G60: 0.535 | H60: 984 | I60: 94.5 | J60: 8.18 | K60: 24.9 | L60: 7.64 | M60: 1.3 | N60: 1.611706695 | O60: 58
A61: W12 x 53 | B61: 53 | C61: 15.6 | D61: 12.1 | E61: 9.99 | F61: 0.345 | G61: 0.575 | H61: 425 | I61: 70.6 | J61: 5.23 | K61: 95.8 | L61: 19.2 | M61: 2.48 | N61: 2.725856137 | O61: 59
A62: W14 x 53 | B62: 53 | C62: 15.6 | D62: 13.9 | E62: 8.06 | F62: 0.37 | G62: 0.66 | H62: 541 | I62: 77.8 | J62: 5.89 | K62: 57.7 | L62: 14.3 | M62: 1.92 | N62: 2.164579282 | O62: 60
A63: W10 x 54 | B63: 54 | C63: 15.8 | D63: 10.1 | E63: 10 | F63: 0.37 | G63: 0.615 | H63: 303 | I63: 60 | J63: 4.37 | K63: 103 | L63: 20.6 | M63: 2.56 | N63: 2.758874071 | O63: 61
A64: W18 x 55 | B64: 55 | C64: 16.2 | D64: 18.1 | E64: 7.53 | F64: 0.39 | G64: 0.63 | H64: 890 | I64: 98.3 | J64: 7.41 | K64: 44.9 | L64: 11.9 | M64: 1.67 | N64: 1.955361159 | O64: 62
A65: W21 x 55 | B65: 55 | C65: 16.2 | D65: 20.8 | E65: 8.22 | F65: 0.375 | G65: 0.522 | H65: 1140 | I65: 110 | J65: 8.4 | K65: 48.4 | L65: 11.8 | M65: 1.73 | N65: 2.084457713 | O65: 63
A66: W16 x 57 | B66: 57 | C66: 16.8 | D66: 16.4 | E66: 7.12 | F66: 0.43 | G66: 0.715 | H66: 758 | I66: 92.2 | J66: 6.72 | K66: 43.1 | L66: 12.1 | M66: 1.6 | N66: 1.863380139 | O66: 64
A67: W21 x 57 | B67: 57 | C67: 16.7 | D67: 21.1 | E67: 6.56 | F67: 0.405 | G67: 0.65 | H67: 1170 | I67: 111 | J67: 8.36 | K67: 30.6 | L67: 9.35 | M67: 1.35 | N67: 1.648625263 | O67: 65
A68: W8 x 58 | B68: 58 | C68: 17.1 | D68: 8.75 | E68: 8.22 | F68: 0.51 | G68: 0.81 | H68: 228 | I68: 52 | J68: 3.65 | K68: 75.1 | L68: 18.3 | M68: 2.1 | N68: =SQRT((E68^3*G68/12)/(E68*G68+(C68-2*E68*G68)/6)) -> 2.267940183 | O68: 66
A69: W12 x 58 | B69: 58 | C69: 17 | D69: 12.2 | E69: 10 | F69: 0.36 | G69: 0.64 | H69: 475 | I69: 78 | J69: 5.28 | K69: 107 | L69: 21.4 | M69: 2.51 | N69: 2.740754839 | O69: 67
A70: W10 x 60 | B70: 60 | C70: 17.6 | D70: 10.2 | E70: 10.1 | F70: 0.42 | G70: 0.68 | H70: 341 | I70: 66.7 | J70: 4.39 | K70: 116 | L70: 23 | M70: 2.57 | N70: 2.787841665 | O70: 68
A71: W18 x 60 | B71: 60 | C71: 17.6 | D71: 18.2 | E71: 7.56 | F71: 0.415 | G71: 0.695 | H71: 984 | I71: 108 | J71: 7.47 | K71: 50.1 | L71: 13.3 | M71: 1.68 | N71: 1.971841289 | O71: 69
A72: W14 x 61 | B72: 61 | C72: 17.9 | D72: 13.9 | E72: 9.99 | F72: 0.375 | G72: 0.645 | H72: 640 | I72: 92.1 | J72: 5.98 | K72: 107 | L72: 21.5 | M72: 2.45 | N72: 2.713317479 | O72: 70
A73: W21 x 62 | B73: 62 | C73: 18.3 | D73: 21 | E73: 8.24 | F73: 0.4 | G73: 0.615 | H73: 1330 | I73: 127 | J73: 8.54 | K73: 57.5 | L73: 14 | M73: 1.77 | N73: 2.111963004 | O73: 71
A74: W18 x 65 | B74: 65 | C74: 19.1 | D74: 18.4 | E74: 7.59 | F74: 0.45 | G74: 0.75 | H74: 1070 | I74: 117 | J74: 7.49 | K74: 54.8 | L74: 14.4 | M74: 1.69 | N74: 1.978913527 | O74: 72
A75: W8 x 67 | B75: 67 | C75: 19.7 | D75: 9 | E75: 8.28 | F75: 0.57 | G75: 0.935 | H75: 272 | I75: 60.4 | J75: 3.72 | K75: 88.6 | L75: 21.4 | M75: 2.12 | N75: 2.288615634 | O75: 73
A76: W12 x 65 | B76: 65 | C76: 19.1 | D76: 12.1 | E76: 12 | F76: 0.39 | G76: 0.605 | H76: 533 | I76: 87.9 | J76: 5.28 | K76: 174 | L76: 29.1 | M76: 3.02 | N76: 3.295198002 | O76: 74
A77: W16 x 67 | B77: 67 | C77: 20 | D77: 16.3 | E77: 10.2 | F77: 0.395 | G77: 0.665 | H77: 970 | I77: 119 | J77: 6.97 | K77: 119 | L77: 23.2 | M77: 2.44 | N77: 2.736138947 | O77: 75
A78: W10 x 68 | B78: 68 | C78: 20 | D78: 10.4 | E78: 10.1 | F78: 0.47 | G78: 0.77 | H78: 394 | I78: 75.7 | J78: 4.44 | K78: 134 | L78: 26.4 | M78: 2.59 | N78: 2.785915774 | O78: 76
A79: W14 x 68 | B79: 68 | C79: 20 | D79: 14 | E79: 10 | F79: 0.415 | G79: 0.72 | H79: 722 | I79: 103 | J79: 6.01 | K79: 121 | L79: 24.2 | M79: 2.46 | N79: 2.716072381 | O79: 77
A80: W21 x 68 | B80: 68 | C80: 20 | D80: 21.1 | E80: 8.27 | F80: 0.43 | G80: 0.685 | H80: 1480 | I80: 140 | J80: 8.6 | K80: 64.7 | L80: 15.7 | M80: 1.8 | N80: 2.130978876 | O80: 78
A81: W18 x 71 | B81: 71 | C81: 20.8 | D81: 18.5 | E81: 7.64 | F81: 0.495 | G81: 0.81 | H81: 1170 | I81: 127 | J81: 7.5 | K81: 60.3 | L81: 15.8 | M81: 1.7 | N81: 1.991160175 | O81: 79
A82: W12 x 72 | B82: 72 | C82: 21.1 | D82: 12.3 | E82: 12 | F82: 0.43 | G82: 0.67 | H82: 597 | I82: 97.4 | J82: 5.31 | K82: 195 | L82: 32.4 | M82: 3.04 | N82: 3.296808275 | O82: 80
A83: W21 x 73 | B83: 73 | C83: 21.5 | D83: 21.2 | E83: 8.3 | F83: 0.455 | G83: 0.74 | H83: 1600 | I83: 151 | J83: 8.64 | K83: 70.6 | L83: 17 | M83: 1.81 | N83: 2.142981005 | O83: 81
A84: W14 x 74 | B84: 74 | C84: 21.8 | D84: 14.2 | E84: 10.1 | F84: 0.45 | G84: 0.785 | H84: 795 | I84: 112 | J84: 6.04 | K84: 134 | L84: 26.6 | M84: 2.48 | N84: 2.748958503 | O84: 82
A85: W18 x 76 | B85: 76 | C85: 22.3 | D85: 18.2 | E85: 11 | F85: 0.425 | G85: 0.68 | H85: 1330 | I85: 146 | J85: 7.73 | K85: 152 | L85: 27.6 | M85: 2.61 | N85: 2.943811873 | O85: 83
A86: W10 x 77 | B86: 77 | C86: 22.6 | D86: 10.6 | E86: 10.2 | F86: 0.53 | G86: 0.87 | H86: 455 | I86: 85.9 | J86: 4.49 | K86: 154 | L86: 30.1 | M86: 2.6 | N86: 2.818848728 | O86: 84
A87: W16 x 77 | B87: 77 | C87: 22.9 | D87: 16.5 | E87: 10.3 | F87: 0.455 | G87: 0.76 | H87: 1120 | I87: 136 | J87: 7 | K87: 138 | L87: 26.9 | M87: 2.46 | N87: 2.767578324 | O87: 85
A88: W12 x 79 | B88: 79 | C88: 23.2 | D88: 12.4 | E88: 12.1 | F88: 0.47 | G88: 0.735 | H88: 662 | I88: 107 | J88: 5.34 | K88: 216 | L88: 35.8 | M88: 3.05 | N88: 3.328235916 | O88: 86
A89: W14 x 82 | B89: 82 | C89: 24 | D89: 14.3 | E89: 10.1 | F89: 0.51 | G89: 0.855 | H89: 881 | I89: 123 | J89: 6.05 | K89: 148 | L89: 29.3 | M89: 2.48 | N89: 2.742940219 | O89: 87
A90: W21 x 83 | B90: 83 | C90: 24.3 | D90: 21.4 | E90: 8.36 | F90: 0.515 | G90: 0.835 | H90: 1830 | I90: 171 | J90: 8.67 | K90: 81.4 | L90: 19.5 | M90: 1.83 | N90: 2.161271082 | O90: 88
A91: W18 x 86 | B91: 86 | C91: 25.3 | D91: 18.4 | E91: 11.1 | F91: 0.48 | G91: 0.77 | H91: 1530 | I91: 166 | J91: 7.77 | K91: 175 | L91: 31.6 | M91: 2.63 | N91: 2.975090279 | O91: 89
A92: W12 x 87 | B92: 87 | C92: 25.6 | D92: 12.5 | E92: 12.1 | F92: 0.515 | G92: 0.81 | H92: 740 | I92: 118 | J92: 5.38 | K92: 241 | L92: 39.7 | M92: 3.07 | N92: 3.327397304 | O92: 90
A93: W10 x 88 | B93: 88 | C93: 25.9 | D93: 10.8 | E93: 10.3 | F93: 0.605 | G93: 0.99 | H93: 534 | I93: 98.5 | J93: 4.54 | K93: 179 | L93: 34.8 | M93: 2.63 | N93: 2.847964622 | O93: 91
A94: W16 x 89 | B94: 89 | C94: 26.4 | D94: 16.8 | E94: 10.4 | F94: 0.525 | G94: 0.875 | H94: 1310 | I94: 157 | J94: 7.05 | K94: 163 | L94: 31.4 | M94: 2.48 | N94: 2.799362985 | O94: 92
A95: W14 x 90 | B95: 90 | C95: 26.5 | D95: 14 | E95: 14.5 | F95: 0.44 | G95: 0.71 | H95: 999 | I95: 143 | J95: 6.14 | K95: 362 | L95: 49.9 | M95: 3.7 | N95: 3.998858205 | O95: 93
A96: W21 x 93 | B96: 93 | C96: 27.3 | D96: 21.6 | E96: 8.42 | F96: 0.58 | G96: 0.93 | H96: 2070 | I96: 192 | J96: 8.7 | K96: 92.9 | L96: 22.1 | M96: 1.84 | N96: 2.176019668 | O96: 94
A97: W12 x 96 | B97: 96 | C97: 28.2 | D97: 12.7 | E97: 12.2 | F97: 0.55 | G97: 0.9 | H97: 833 | I97: 131 | J97: 5.44 | K97: 270 | L97: 44.4 | M97: 3.09 | N97: 3.366031252 | O97: 95
A98: W18 x 97 | B98: 97 | C98: 28.5 | D98: 18.6 | E98: 11.1 | F98: 0.535 | G98: 0.87 | H98: 1750 | I98: 188 | J98: 7.82 | K98: 201 | L98: 36.1 | M98: 2.65 | N98: 2.976989087 | O98: 96
A99: W14 x 99 | B99: 99 | C99: 29.1 | D99: 14.2 | E99: 14.6 | F99: 0.485 | G99: 0.78 | H99: 1110 | I99: 157 | J99: 6.17 | K99: 402 | L99: 55.2 | M99: 3.71 | N99: 4.032188842 | O99: 97
A100: W10 x 100 | B100: 100 | C100: 29.4 | D100: 11.1 | E100: 10.3 | F100: 0.68 | G100: 1.12 | H100: 623 | I100: 112 | J100: 4.6 | K100: 207 | L100: 40 | M100: 2.65 | N100: 2.846098079 | O100: 98
A101: W16 x 100 | B101: 100 | C101: 29.7 | D101: 17 | E101: 10.4 | F101: 0.585 | G101: 0.985 | H101: 1500 | I101: 177 | J101: 7.1 | K101: 186 | L101: 35.7 | M101: 2.5 | N101: 2.799736411 | O101: 99
A102: W21 x 101 | B102: 101 | C102: 29.8 | D102: 21.4 | E102: 12.3 | F102: 0.5 | G102: 0.8 | H102: 2420 | I102: 227 | J102: 9.02 | K102: 248 | L102: 40.3 | M102: 2.89 | N102: 3.280652046 | O102: 100
A103: W12 x 106 | B103: 106 | C103: 31.2 | D103: 12.9 | E103: 12.2 | F103: 0.61 | G103: 0.99 | H103: 933 | I103: 145 | J103: 5.47 | K103: 301 | L103: 49.3 | M103: 3.11 | N103: 3.362219067 | O103: 101
A104: W18 x 106 | B104: 106 | C104: 31.1 | D104: 18.7 | E104: 11.2 | F104: 0.59 | G104: 0.94 | H104: 1910 | I104: 204 | J104: 7.84 | K104: 220 | L104: 39.4 | M104: 2.66 | N104: 3.003203957 | O104: 102
A105: W14 x 109 | B105: 109 | C105: 32 | D105: 14.3 | E105: 14.6 | F105: 0.525 | G105: 0.86 | H105: 1240 | I105: 173 | J105: 6.22 | K105: 447 | L105: 61.2 | M105: 3.73 | N105: 4.034263039 | O105: 103
A106: W21 x 111 | B106: 111 | C106: 32.7 | D106: 21.5 | E106: 12.3 | F106: 0.55 | G106: 0.875 | H106: 2670 | I106: 249 | J106: 9.05 | K106: 274 | L106: 44.5 | M106: 2.9 | N106: 3.278350452 | O106: 104
A107: W10 x 112 | B107: 112 | C107: 32.9 | D107: 11.4 | E107: 10.4 | F107: 0.755 | G107: 1.25 | H107: 716 | I107: 126 | J107: 4.66 | K107: 236 | L107: 45.3 | M107: 2.68 | N107: 2.877638084 | O107: 105
A108: W18 x 119 | B108: 119 | C108: 35.1 | D108: 19 | E108: 11.3 | F108: 0.655 | G108: 1.06 | H108: 2190 | I108: 231 | J108: 7.9 | K108: 253 | L108: 44.9 | M108: 2.69 | N108: 3.035184959 | O108: 106
A109: W12 x 120 | B109: 120 | C109: 35.3 | D109: 13.1 | E109: 12.3 | F109: 0.71 | G109: 1.11 | H109: 1070 | I109: 163 | J109: 5.51 | K109: 345 | L109: 56 | M109: 3.13 | N109: 3.389185421 | O109: 107
A110: W14 x 120 | B110: 120 | C110: 35.3 | D110: 14.5 | E110: 14.7 | F110: 0.59 | G110: 0.94 | H110: 1380 | I110: 190 | J110: 6.24 | K110: 495 | L110: 67.5 | M110: 3.74 | N110: 4.060017936 | O110: 108
A111: W14 x 120 | B111: 120 | C111: 35.3 | D111: 14.5 | E111: 14.7 | F111: 0.59 | G111: 0.94 | H111: 1380 | I111: 190 | J111: 6.24 | K111: 495 | L111: 67.5 | M111: 3.74 | N111: =SQRT((E111^3*G111/12)/(E111*G111+(C111-2*E111*G111)/6)) -> 4.060017936
A112: W14 x 120 | B112: 120 | C112: 35.3 | D112: 14.5 | E112: 14.7 | F112: 0.59 | G112: 0.94 | H112: 1380 | I112: 190 | J112: 6.24 | K112: 495 | L112: 67.5 | M112: 3.74 | N112: =SQRT((E112^3*G112/12)/(E112*G112+(C112-2*E112*G112)/6)) -> 4.060017936

Sheet Standard Table
A1: W | B1: L | C1: H (Sign Height + Crown Height) | AQ1: W | AR1: L | AS1: H (Sign Height + Crown Height)
C2: 4 | E2: =C2+1 -> 5 | G2: =E2+1 -> 6 | I2: =G2+1 -> 7 | K2: =I2+1 -> 8 | M2: =K2+1 -> 9 | O2: =M2+1 -> 10 | Q2: =O2+1 -> 11 | S2: =Q2+1 -> 12 | U2: =S2+1 -> 13 | W2: =U2+1 -> 14 | Y2: =W2+1 -> 15 | AA2: =Y2+1 -> 16 | AC2: =AA2+1 -> 17 | AE2: =AC2+1 -> 18 | AG2: =AE2+1 -> 19 | AI2: =AG2+1 -> 20 | AK2: =AI2+1 -> 21 | AM2: =AK2+1 -> 22 | AS2: 4 | AU2: =AS2+1 -> 5 | AW2: =AU2+1 -> 6 | AY2: =AW2+1 -> 7 | BA2: =AY2+1 -> 8 | BC2: =BA2+1 -> 9 | BE2: =BC2+1 -> 10 | BG2: =BE2+1 -> 11 | BI2: =BG2+1 -> 12 | BK2: =BI2+1 -> 13 | BM2: =BK2+1 -> 14 | BO2: =BM2+1 -> 15 | BQ2: =BO2+1 -> 16 | BS2: =BQ2+1 -> 17 | BU2: =BS2+1 -> 18 | BW2: =BU2+1 -> 19 | BY2: =BW2+1 -> 20 | CA2: =BY2+1 -> 21 | CC2: =CA2+1 -> 22
A3: 8 | B3: 7 | C3: W6 x 9 | D3: #3 | E3: W6 x 9 | F3: #3 | G3: W6 x 9 | H3: #2 | I3: W6 x 9 | J3: #2 | K3: W6 x 9 | L3: #2 | M3: W6 x 12 | N3: #2 | O3: W6 x 12 | P3: #2 | Q3: W6 x 12 | R3: #2 | S3: W6 x 15 | T3: #2 | U3: W6 x 15 | V3: #1 | W3: W6 x 15 | X3: #1S | Y3: W6 x 16 | Z3: #1S | AA3: W8 x 18 | AB3: #2S | AC3: W8 x 21 | AD3: #1S | AE3: W10 x 22 | AF3: #2 | AG3: W10 x 22 | AH3: #2 | AI3: W10 x 26 | AJ3: #2 | AK3: W10 x 26 | AL3: #1S | AM3: W10 x 26 | AN3: #1S | AQ3: 16 | AR3: 7 | AS3: - | AU3: W6 x 9 | AV3: #2 | AW3: W6 x 12 | AX3: #2 | AY3: W6 x 12 | AZ3: #2 | BA3: W6 x 15 | BB3: #2 | BC3: W6 x 15 | BD3: #2 | BE3: W6 x 15 | BF3: #2S | BG3: W8 x 18 | BH3: #2 | BI3: W8 x 18 | BJ3: #2S | BK3: W10 x 22 | BL3: #2 | BM3: W10 x 22 | BN3: #2 | BO3: W10 x 26 | BP3: #2 | BQ3: W10 x 26 | BR3: #2S | BS3: W12 x 26 | BT3: #2S | BU3: W18 x 35 | BV3: #3 | BW3: W18 x 35 | BX3: #3 | BY3: W21 x 44 | BZ3: #3 | CA3: - | CC3: -
B4: 8 | C4: W6 x 9 | D4: #2 | E4: W6 x 9 | F4: #2 | G4: W6 x 9 | H4: #2 | I4: W6 x 9 | J4: #2 | K4: W6 x 12 | L4: #2 | M4: W6 x 12 | N4: #2 | O4: W6 x 12 | P4: #2 | Q4: W6 x 15 | R4: #2 | S4: W6 x 15 | T4: #1 | U4: W6 x 15 | V4: #1 | W4: W6 x 16 | X4: #1S | Y4: W8 x 18 | Z4: #1 | AA4: W8 x 21 | AB4: #1S | AC4: W8 x 21 | AD4: #1S | AE4: W10 x 22 | AF4: #2 | AG4: W10 x 26 | AH4: #1 | AI4: W10 x 26 | AJ4: #1 | AK4: W10 x 26 | AL4: #1S | AM4: W10 x 30 | AN4: #1S | AR4: 8 | AS4: - | AU4: W8 x 10 | AV4: #3 | AW4: W6 x 12 | AX4: #2 | AY4: W6 x 15 | AZ4: #2 | BA4: W6 x 15 | BB4: #2 | BC4: W6 x 15 | BD4: #2 | BE4: W6 x 16 | BF4: #2S | BG4: W8 x 18 | BH4: #2 | BI4: W8 x 21 | BJ4: #2S | BK4: W10 x 22 | BL4: #2 | BM4: W10 x 26 | BN4: #2 | BO4: W10 x 26 | BP4: #2 | BQ4: W12 x 26 | BR4: #2 | BS4: W14 x 30 | BT4: #2 | BU4: W18 x 35 | BV4: #3 | BW4: W21 x 44 | BX4: #3 | BY4: - | CA4: - | CC4: -
B5: 9 | C5: W6 x 9 | D5: #2 | E5: W6 x 9 | F5: #2 | G5: W6 x 9 | H5: #2 | I5: W6 x 12 | J5: #2 | K5: W6 x 12 | L5: #2 | M5: W6 x 12 | N5: #2 | O5: W6 x 15 | P5: #1 | Q5: W6 x 15 | R5: #1 | S5: W6 x 15 | T5: #1 | U5: W6 x 16 | V5: #1 | W5: W8 x 18 | X5: #1 | Y5: W6 x 20 | Z5: #1S | AA5: W8 x 21 | AB5: #1S | AC5: W8 x 21 | AD5: #1S | AE5: W10 x 26 | AF5: #1 | AG5: W10 x 26 | AH5: #1 | AI5: W10 x 26 | AJ5: #1 | AK5: W10 x 30 | AL5: #1S | AM5: W12 x 30 | AN5: #1 | AR5: 9 | AS5: - | AU5: W6 x 12 | AV5: #2 | AW5: W6 x 15 | AX5: #2 | AY5: W6 x 15 | AZ5: #2 | BA5: W6 x 15 | BB5: #2 | BC5: W6 x 16 | BD5: #1 | BE5: W8 x 18 | BF5: #2 | BG5: W8 x 21 | BH5: #2 | BI5: W10 x 22 | BJ5: #2 | BK5: W10 x 26 | BL5: #2 | BM5: W10 x 26 | BN5: #2 | BO5: W12 x 26 | BP5: #2 | BQ5: W14 x 30 | BR5: #2 | BS5: W18 x 35 | BT5: #2 | BU5: W18 x 40 | BV5: #2 | BW5: W21 x 44 | BX5: #3 | BY5: - | CA5: - | CC5: -
B6: 10 | C6: W6 x 9 | D6: #2 | E6: W6 x 9 | F6: #2 | G6: W6 x 12 | H6: #2 | I6: W6 x 12 | J6: #2 | K6: W6 x 12 | L6: #1 | M6: W6 x 15 | N6: #1 | O6: W6 x 15 | P6: #1 | Q6: W6 x 15 | R6: #1 | S6: W6 x 15 | T6: #1 | U6: W8 x 18 | V6: #1 | W6: W6 x 20 | X6: #1S | Y6: W6 x 20 | Z6: #1S | AA6: W8 x 21 | AB6: #1S | AC6: W10 x 26 | AD6: #1 | AE6: W10 x 26 | AF6: #1 | AG6: W10 x 26 | AH6: #1 | AI6: - | AK6: - | AM6: - | AR6: 10 | AS6: - | AU6: W6 x 12 | AV6: #2 | AW6: W6 x 15 | AX6: #2 | AY6: W6 x 15 | AZ6: #2 | BA6: W6 x 16 | BB6: #1 | BC6: W8 x 18 | BD6: #2 | BE6: W8 x 21 | BF6: #2 | BG6: W8 x 21 | BH6: #1 | BI6: W10 x 26 | BJ6: #2 | BK6: W10 x 26 | BL6: #2 | BM6: W12 x 26 | BN6: #2 | BO6: W14 x 30 | BP6: #2 | BQ6: W16 x 36 | BR6: #2 | BS6: W18 x 40 | BT6: #2 | BU6: W21 x 44 | BV6: #3 | BW6: - | BY6: - | CA6: - | CC6: -
B7: 11 | C7: W6 x 9 | D7: #2 | E7: W6 x 9 | F7: #2 | G7: W6 x 12 | H7: #1 | I7: W6 x 12 | J7: #1 | K7: W6 x 15 | L7: #1 | M7: W6 x 15 | N7: #1 | O7: W6 x 15 | P7: #1 | Q7: W6 x 15 | R7: #1 | S7: W8 x 18 | T7: #1 | U7: W6 x 20 | V7: #1 | W7: W6 x 20 | X7: #1S | Y7: W8 x 21 | Z7: #1 | AA7: - | AC7: - | AE7: - | AG7: - | AI7: - | AK7: - | AM7: - | AR7: 11 | AS7: - | AU7: W6 x 15 | AV7: #2 | AW7: W6 x 15 | AX7: #1 | AY7: W6 x 15 | AZ7: #1 | BA7: W8 x 18 | BB7: #2 | BC7: W6 x 20 | BD7: #1 | BE7: W8 x 21 | BF7: #1 | BG7: W10 x 26 | BH7: #2 | BI7: W10 x 26 | BJ7: #2 | BK7: W10 x 26 | BL7: #1 | BM7: W12 x 30 | BN7: #2 | BO7: W14 x 34 | BP7: #2 | BQ7: W18 x 40 | BR7: #2 | BS7: W21 x 44 | BT7: #3 | BU7: - | BW7: - | BY7: - | CA7: - | CC7: -
B8: 12 | C8: W6 x 9 | D8: #2 | E8: W6 x 12 | F8: #1 | G8: W6 x 12 | H8: #1 | I8: W6 x 15 | J8: #1 | K8: W6 x 15 | L8: #1 | M8: W6 x 15 | N8: #1 | O8: W6 x 15 | P8: #1 | Q8: W8 x 18 | R8: #1 | S8: W6 x 20 | T8: #1 | U8: W6 x 20 | V8: #1 | W8: W6 x 20 | X8: #1S | Y8: - | AA8: - | AC8: - | AE8: - | AG8: - | AI8: - | AK8: - | AM8: - | AR8: 12 | AS8: - | AU8: W6 x 15 | AV8: #1 | AW8: W6 x 15 | AX8: #1 | AY8: W8 x 18 | AZ8: #2 | BA8: W6 x 20 | BB8: #1 | BC8: W8 x 21 | BD8: #1 | BE8: W10 x 26 | BF8: #2 | BG8: W10 x 26 | BH8: #2 | BI8: W10 x 26 | BJ8: #1 | BK8: W12 x 30 | BL8: #2 | BM8: W14 x 34 | BN8: #2 | BO8: W16 x 36 | BP8: #2 | BQ8: W18 x 40 | BR8: #2 | BS8: - | BU8: - | BW8: - | BY8: - | CA8: - | CC8: -
B9: 13 | C9: W6 x 12 | D9: #1 | E9: W6 x 12 | F9: #1 | G9: W6 x 12 | H9: #1 | I9: W6 x 15 | J9: #1 | K9: W6 x 15 | L9: #1 | M9: W6 x 15 | N9: #1 | O9: W8 x 18 | P9: #1 | Q9: W8 x 18 | R9: #1 | S9: W6 x 20 | T9: #1 | U9: W6 x 20 | V9: #1 | W9: - | Y9: - | AA9: - | AC9: - | AE9: - | AG9: - | AI9: - | AK9: - | AM9: - | AR9: 13 | AS9: - | AU9: W6 x 15 | AV9: #1 | AW9: W6 x 16 | AX9: #1 | AY9: W6 x 20 | AZ9: #1 | BA9: W6 x 20 | BB9: #1 | BC9: W10 x 22 | BD9: #2 | BE9: W10 x 26 | BF9: #1 | BG9: W10 x 26 | BH9: #1 | BI9: W10 x 30 | BJ9: #1 | BK9: W14 x 34 | BL9: #2 | BM9: W16 x 36 | BN9: #2 | BO9: W18 x 40 | BP9: #2 | BQ9: - | BS9: - | BU9: - | BW9: - | BY9: - | CA9: - | CC9: -
B10: 14 | C10: W6 x 12 | D10: #1 | E10: W6 x 12 | F10: #1 | G10: W6 x 15 | H10: #1 | I10: W6 x 15 | J10: #1 | K10: W6 x 15 | L10: #1 | M10: W6 x 16 | N10: #1 | O10: W8 x 18 | P10: #1 | Q10: W6 x 20 | R10: #1 | S10: W6 x 20 | T10: #1 | U10: - | W10: - | Y10: - | AA10: - | AC10: - | AE10: - | AG10: - | AI10: - | AK10: - | AM10: - | AR10: 14 | AS10: - | AU10: W6 x 15 | AV10: #1 | AW10: W8 x 18 | AX10: #1 | AY10: W6 x 20 | AZ10: #1 | BA10: W8 x 21 | BB10: #1 | BC10: W10 x 26 | BD10: #1 | BE10: W10 x 26 | BF10: #1 | BG10: W10 x 30 | BH10: #1 | BI10: W12 x 30 | BJ10: #1 | BK10: W14 x 34 | BL10: #2 | BM10: W18 x 40 | BN10: #2 | BO10: - | BQ10: - | BS10: - | BU10: - | BW10: - | BY10: - | CA10: - | CC10: -
B11: 15 | C11: W6 x 12 | D11: #1 | E11: W6 x 15 | F11: #1 | G11: W6 x 15 | H11: #1 | I11: W6 x 15 | J11: #1 | K11: W6 x 15 | L11: #1 | M11: W8 x 18 | N11: #1 | O11: - | Q11: - | S11: - | U11: - | W11: - | Y11: - | AA11: - | AC11: - | AE11: - | AG11: - | AI11: - | AK11: - | AM11: - | AR11: 15 | AS11: - | AU11: W8 x 18 | AV11: #1 | AW11: W6 x 20 | AX11: #1 | AY11: W6 x 20 | AZ11: #1 | BA11: W8 x 24 | BB11: #1 | BC11: W10 x 26 | BD11: #1 | BE11: W10 x 30 | BF11: #1 | BG11: W10 x 30 | BH11: #1 | BI11: W14 x 34 | BJ11: #2 | BK11: W16 x 36 | BL11: #2 | BM11: - | BO11: - | BQ11: - | BS11: - | BU11: - | BW11: - | BY11: - | CA11: - | CC11: -
B12: 16 | C12: W6 x 12 | D12: #1 | E12: W6 x 15 | F12: #1 | G12: W6 x 15 | H12: #1 | I12: W6 x 15 | J12: #1 | K12: - | M12: - | O12: - | Q12: - | S12: - | U12: - | W12: - | Y12: - | AA12: - | AC12: - | AE12: - | AG12: - | AI12: - | AK12: - | AM12: - | AR12: 16 | AS12: - | AU12: W8 x 18 | AV12: #1 | AW12: W6 x 20 | AX12: #1 | AY12: W8 x 24 | AZ12: #1 | BA12: W10 x 26 | BB12: #1 | BC12: W10 x 26 | BD12: #1 | BE12: W10 x 30 | BF12: #1 | BG12: W12 x 30 | BH12: #1 | BI12: W14 x 34 | BJ12: #1 | BK12: - | BM12: - | BO12: - | BQ12: - | BS12: - | BU12: - | BW12: - | BY12: - | CA12: - | CC12: -
A13: 9 | B13: 7 | C13: W6 x 9 | D13: #3 | E13: W6 x 9 | F13: #3 | G13: W6 x 9 | H13: #2 | I13: W6 x 9 | J13: #2 | K13: W8 x 10 | L13: #2 | M13: W6 x 12 | N13: #2 | O13: W6 x 12 | P13: #2 | Q13: W6 x 15 | R13: #2 | S13: W6 x 15 | T13: #2 | U13: W6 x 15 | V13: #1S | W13: W6 x 15 | X13: #1S | Y13: W8 x 18 | Z13: #2S | AA13: W8 x 21 | AB13: #2S | AC13: W10 x 22 | AD13: #2 | AE13: W10 x 22 | AF13: #2 | AG13: W10 x 26 | AH13: #2 | AI13: W10 x 26 | AJ13: #2S | AK13: W10 x 26 | AL13: #1S | AM13: W12 x 30 | AN13: #2S | AQ13: 17 | AR13: 7 | AS13: - | AU13: W6 x 9 | AV13: #2 | AW13: W6 x 12 | AX13: #2 | AY13: W6 x 12 | AZ13: #2 | BA13: W6 x 15 | BB13: #2 | BC13: W6 x 15 | BD13: #2 | BE13: W6 x 15 | BF13: #2S | BG13: W8 x 18 | BH13: #2S | BI13: W8 x 21 | BJ13: #2S | BK13: W10 x 22 | BL13: #2 | BM13: W10 x 22 | BN13: #2 | BO13: W10 x 26 | BP13: #2S | BQ13: W12 x 26 | BR13: #2 | BS13: W14 x 30 | BT13: #2 | BU13: W18 x 35 | BV13: #3 | BW13: W21 x 44 | BX13: #3 | BY13: - | CA13: - | CC13: -
B14: 8 | C14: W6 x 9 | D14: #2 | E14: W6 x 9 | F14: #2 | G14: W6 x 9 | H14: #2 | I14: W8 x 10 | J14: #2 | K14: W6 x 12 | L14: #2 | M14: W6 x 12 | N14: #2 | O14: W6 x 15 | P14: #2 | Q14: W6 x 15 | R14: #2 | S14: W6 x 15 | T14: #1 | U14: W6 x 15 | V14: #1S | W14: W8 x 18 | X14: #2 | Y14: W8 x 21 | Z14: #2S | AA14: W8 x 21 | AB14: #1S | AC14: W10 x 22 | AD14: #2 | AE14: W10 x 26 | AF14: #2 | AG14: W10 x 26 | AH14: #1 | AI14: W10 x 26 | AJ14: #1S | AK14: W12 x 30 | AL14: #2 | AM14: W12 x 30 | AN14: #2S | AR14: 8 | AS14: - | AU14: W6 x 12 | AV14: #2 | AW14: W6 x 12 | AX14: #2 | AY14: W6 x 15 | AZ14: #2 | BA14: W6 x 15 | BB14: #2 | BC14: W6 x 15 | BD14: #2 | BE14: W8 x 18 | BF14: #2 | BG14: W8 x 21 | BH14: #2S | BI14: W10 x 22 | BJ14: #2 | BK14: W10 x 22 | BL14: #2 | BM14: W10 x 26 | BN14: #2 | BO14: W12 x 26 | BP14: #2 | BQ14: W14 x 30 | BR14: #2 | BS14: W18 x 35 | BT14: #3 | BU14: W18 x 40 | BV14: #3 | BW14: W21 x 44 | BX14: #3 | BY14: - | CA14: - | CC14: -
B15: 9 | C15: W6 x 9 | D15: #2 | E15: W6 x 9 | F15: #2 | G15: W6 x 9 | H15: #2 | I15: W6 x 12 | J15: #2 | K15: W6 x 12 | L15: #2 | M15: W6 x 15 | N15: #2 | O15: W6 x 15 | P15: #1 | Q15: W6 x 15 | R15: #1 | S15: W6 x 15 | T15: #1 | U15: W8 x 18 | V15: #2 | W15: W6 x 20 | X15: #1S | Y15: W8 x 21 | Z15: #1S | AA15: W8 x 21 | AB15: #1S | AC15: W10 x 26 | AD15: #2 | AE15: W10 x 26 | AF15: #1 | AG15: W10 x 26 | AH15: #1 | AI15: W10 x 30 | AJ15: #1S | AK15: W12 x 30 | AL15: #1 | AM15: - | AR15: 9 | AS15: - | AU15: W6 x 12 | AV15: #2 | AW15: W6 x 15 | AX15: #2 | AY15: W6 x 15 | AZ15: #2 | BA15: W6 x 15 | BB15: #2 | BC15: W8 x 18 | BD15: #2 | BE15: W6 x 20 | BF15: #1S | BG15: W8 x 21 | BH15: #2S | BI15: W10 x 22 | BJ15: #2 | BK15: W10 x 26 | BL15: #2 | BM15: W10 x 26 | BN15: #2 | BO15: W14 x 30 | BP15: #2 | BQ15: W18 x 35 | BR15: #3 | BS15: W18 x 40 | BT15: #2 | BU15: W21 x 44 | BV15: #3 | BW15: - | BY15: - | CA15: - | CC15: -
B16: 10 | C16: W6 x 9 | D16: #2 | E16: W6 x 9 | F16: #2 | G16: W6 x 12 | H16: #2 | I16: W6 x 12 | J16: #2 | K16: W6 x 15 | L16: #1 | M16: W6 x 15 | N16: #1 | O16: W6 x 15 | P16: #1 | Q16: W6 x 15 | R16: #1 | S16: W8 x 18 | T16: #1 | U16: W6 x 20 | V16: #1S | W16: W6 x 20 | X16: #1S | Y16: W8 x 21 | Z16: #1S | AA16: W10 x 26 | AB16: #1 | AC16: W10 x 26 | AD16: #1 | AE16: W10 x 26 | AF16: #1 | AG16: - | AI16: - | AK16: - | AM16: - | AR16: 10 | AS16: - | AU16: W6 x 12 | AV16: #2 | AW16: W6 x 15 | AX16: #2 | AY16: W6 x 15 | AZ16: #1 | BA16: W8 x 18 | BB16: #2 | BC16: W6 x 20 | BD16: #1 | BE16: W8 x 21 | BF16: #2 | BG16: W10 x 22 | BH16: #2 | BI16: W10 x 26 | BJ16: #2 | BK16: W10 x 26 | BL16: #2 | BM16: W12 x 30 | BN16: #2 | BO16: W14 x 34 | BP16: #2 | BQ16: W18 x 40 | BR16: #2 | BS16: W21 x 44 | BT16: #3 | BU16: - | BW16: - | BY16: - | CA16: - | CC16: -
B17: 11 | C17: W6 x 9 | D17: #2 | E17: W6 x 12 | F17: #2 | G17: W6 x 12 | H17: #1 | I17: W6 x 12 | J17: #1 | K17: W6 x 15 | L17: #1 | M17: W6 x 15 | N17: #1 | O17: W6 x 15 | P17: #1 | Q17: W8 x 18 | R17: #1 | S17: W8 x 18 | T17: #1 | U17: W6 x 20 | V17: #1S | W17: W8 x 21 | X17: #1 | Y17: - | AA17: - | AC17: - | AE17: - | AG17: - | AI17: - | AK17: - | AM17: - | AR17: 11 | AS17: - | AU17: W6 x 15 | AV17: #2 | AW17: W6 x 15 | AX17: #1 | AY17: W6 x 16 | AZ17: #1 | BA17: W8 x 18 | BB17: #2 | BC17: W8 x 21 | BD17: #2 | BE17: W10 x 22 | BF17: #2 | BG17: W10 x 26 | BH17: #2 | BI17: W10 x 26 | BJ17: #2 | BK17: W12 x 30 | BL17: #2 | BM17: W14 x 30 | BN17: #2 | BO17: W16 x 36 | BP17: #2 | BQ17: W18 x 40 | BR17: #2 | BS17: W21 x 44 | BT17: #3 | BU17: - | BW17: - | BY17: - | CA17: - | CC17: -
B18: 12 | C18: W6 x 9 | D18: #2 | E18: W6 x 12 | F18: #1 | G18: W6 x 12 | H18: #1 | I18: W6 x 15 | J18: #1 | K18: W6 x 15 | L18: #1 | M18: W6 x 15 | N18: #1 | O18: W8 x 18 | P18: #1 | Q18: W8 x 18 | R18: #1 | S18: W6 x 20 | T18: #1 | U18: W6 x 20 | V18: #1S | W18: - | Y18: - | AA18: - | AC18: - | AE18: - | AG18: - | AI18: - | AK18: - | AM18: - | AR18: 12 | AS18: - | AU18: W6 x 15 | AV18: #1 | AW18: W6 x 15 | AX18: #1 | AY18: W8 x 18 | AZ18: #2 | BA18: W6 x 20 | BB18: #1 | BC18: W8 x 21 | BD18: #1 | BE18: W10 x 26 | BF18: #2 | BG18: W10 x 26 | BH18: #2 | BI18: W10 x 30 | BJ18: #1 | BK18: W14 x 30 | BL18: #2 | BM18: W16 x 36 | BN18: #2 | BO18: W18 x 40 | BP18: #2 | BQ18: W21 x 44 | BR18: #2 | BS18: - | BU18: - | BW18: - | BY18: - | CA18: - | CC18: -
B19: 13 | C19: W6 x 12 | D19: #1 | E19: W6 x 12 | F19: #1 | G19: W6 x 15 | H19: #1 | I19: W6 x 15 | J19: #1 | K19: W6 x 15 | L19: #1 | M19: W6 x 16 | N19: #1 | O19: W8 x 18 | P19: #1 | Q19: W6 x 20 | R19: #1 | S19: W6 x 20 | T19: #1 | U19: - | W19: - | Y19: - | AA19: - | AC19: - | AE19: - | AG19: - | AI19: - | AK19: - | AM19: - | AR19: 13 | AS19: - | AU19: W6 x 15 | AV19: #1 | AW19: W8 x 18 | AX19: #1 | AY19: W6 x 20 | AZ19: #1 | BA19: W8 x 21 | BB19: #1 | BC19: W10 x 26 | BD19: #2 | BE19: W10 x 26 | BF19: #1 | BG19: W10 x 26 | BH19: #1 | BI19: W12 x 30 | BJ19: #2 | BK19: W14 x 34 | BL19: #2 | BM19: W18 x 40 | BN19: #2 | BO19: W21 x 44 | BP19: #2 | BQ19: - | BS19: - | BU19: - | BW19: - | BY19: - | CA19: - | CC19: -
B20: 14 | C20: W6 x 12 | D20: #1 | E20: W6 x 12 | F20: #1 | G20: W6 x 15 | H20: #1 | I20: W6 x 15 | J20: #1 | K20: W6 x 15 | L20: #1 | M20: W8 x 18 | N20: #1 | O20: W6 x 20 | P20: #1 | Q20: W6 x 20 | R20: #1 | S20: W6 x 20 | T20: #1 | U20: - | W20: - | Y20: - | AA20: - | AC20: - | AE20: - | AG20: - | AI20: - | AK20: - | AM20: - | AR20: 14 | AS20: - | AU20: W6 x 15 | AV20: #1 | AW20: W8 x 18 | AX20: #1 | AY20: W6 x 20 | AZ20: #1 | BA20: W8 x 24 | BB20: #1 | BC20: W10 x 26 | BD20: #1 | BE20: W10 x 26 | BF20: #1 | BG20: W12 x 30 | BH20: #2 | BI20: W14 x 34 | BJ20: #2 | BK20: W16 x 36 | BL20: #2 | BM20: W18 x 40 | BN20: #2 | BO20: - | BQ20: - | BS20: - | BU20: - | BW20: - | BY20: - | CA20: - | CC20: -
B21: 15 | C21: W6 x 12 | D21: #1 | E21: W6 x 15 | F21: #1 | G21: W6 x 15 | H21: #1 | I21: W6 x 15 | J21: #1 | K21: W8 x 18 | L21: #1 | M21: - | O21: - | Q21: - | S21: - | U21: - | W21: - | Y21: - | AA21: - | AC21: - | AE21: - | AG21: - | AI21: - | AK21: - | AM21: - | AR21: 15 | AS21: - | AU21: W8 x 18 | AV21: #1 | AW21: W6 x 20 | AX21: #1 | AY21: W8 x 21 | AZ21: #1 | BA21: W10 x 26 | BB21: #1 | BC21: W10 x 26 | BD21: #1 | BE21: W10 x 30 | BF21: #1 | BG21: W12 x 30 | BH21: #1 | BI21: W16 x 36 | BJ21: #2 | BK21: - | BM21: - | BO21: - | BQ21: - | BS21: - | BU21: - | BW21: - | BY21: - | CA21: - | CC21: -
B22: 16 | C22: W6 x 15 | D22: #1 | E22: W6 x 15 | F22: #1 | G22: W6 x 15 | H22: #1 | I22: - | K22: - | M22: - | O22: - | Q22: - | S22: - | U22: - | W22: - | Y22: - | AA22: - | AC22: - | AE22: - | AG22: - | AI22: - | AK22: - | AM22: - | AR22: 16 | AS22: - | AU22: W6 x 20 | AV22: #1 | AW22: W6 x 20 | AX22: #1 | AY22: W8 x 24 | AZ22: #1 | BA22: W10 x 26 | BB22: #1 | BC22: W10 x 30 | BD22: #1 | BE22: W12 x 30 | BF22: #1 | BG22: W14 x 34 | BH22: #1 | BI22: - | BK22: - | BM22: - | BO22: - | BQ22: - | BS22: - | BU22: - | BW22: - | BY22: - | CA22: - | CC22: -
A23: 10 | B23: 7 | C23: W6 x 9 | D23: #3 | E23: W6 x 9 | F23: #3 | G23: W6 x 9 | H23: #2 | I23: W6 x 9 | J23: #2 | K23: W6 x 12 | L23: #2 | M23: W6 x 12 | N23: #2 | O23: W6 x 12 | P23: #2 | Q23: W6 x 15 | R23: #2 | S23: W6 x 15 | T23: #2 | U23: W6 x 15 | V23: #1S | W23: W8 x 18 | X23: #2 | Y23: W8 x 18 | Z23: #2S | AA23: W10 x 22 | AB23: #2 | AC23: W10 x 22 | AD23: #2 | AE23: W10 x 26 | AF23: #2 | AG23: W10 x 26 | AH23: #2S | AI23: W10 x 26 | AJ23: #2S | AK23: W12 x 30 | AL23: #2S | AM23: W14 x 30 | AN23: #2S | AQ23: 18 | AR23: 7 | AS23: - | AU23: W8 x 10 | AV23: #3 | AW23: W6 x 12 | AX23: #2 | AY23: W12 x 14 | AZ23: #3 | BA23: W6 x 15 | BB23: #2 | BC23: W6 x 15 | BD23: #2S | BE23: W6 x 15 | BF23: #2S | BG23: W8 x 18 | BH23: #2S | BI23: W8 x 21 | BJ23: #2S | BK23: W10 x 22 | BL23: #2 | BM23: W10 x 26 | BN23: #2 | BO23: W12 x 26 | BP23: #2 | BQ23: W14 x 30 | BR23: #2 | BS23: W18 x 35 | BT23: #3 | BU23: W18 x 35 | BV23: #3 | BW23: W21 x 44 | BX23: #3 | BY23: - | CA23: - | CC23: -
B24: 8 | C24: W6 x 9 | D24: #2 | E24: W6 x 9 | F24: #2 | G24: W6 x 9 | H24: #2 | I24: W6 x 12 | J24: #2 | K24: W6 x 12 | L24: #2 | M24: W6 x 12 | N24: #2 | O24: W6 x 15 | P24: #2 | Q24: W6 x 15 | R24: #1 | S24: W6 x 15 | T24: #1 | U24: W8 x 18 | V24: #2 | W24: W8 x 18 | X24: #2S | Y24: W8 x 21 | Z24: #1S | AA24: W10 x 22 | AB24: #2 | AC24: W10 x 26 | AD24: #2 | AE24: W10 x 26 | AF24: #2 | AG24: W10 x 26 | AH24: #1S | AI24: W12 x 30 | AJ24: #2 | AK24: W14 x 30 | AL24: #2 | AM24: - | AR24: 8 | AS24: - | AU24: W6 x 12 | AV24: #2 | AW24: W6 x 12 | AX24: #2 | AY24: W6 x 15 | AZ24: #2 | BA24: W6 x 15 | BB24: #2 | BC24: W6 x 15 | BD24: #2S | BE24: W8 x 18 | BF24: #2 | BG24: W8 x 21 | BH24: #2S | BI24: W10 x 22 | BJ24: #2 | BK24: W10 x 26 | BL24: #2 | BM24: W10 x 26 | BN24: #2 | BO24: W12 x 26 | BP24: #2 | BQ24: W18 x 35 | BR24: #3 | BS24: W18 x 35 | BT24: #3 | BU24: W21 x 44 | BV24: #3 | BW24: - | BY24: - | CA24: - | CC24: -
B25: 9 | C25: W6 x 9 | D25: #2 | E25: W6 x 9 | F25: #2 | G25: W6 x 12 | H25: #2 | I25: W6 x 12 | J25: #2 | K25: W6 x 12 | L25: #2 | M25: W6 x 15 | N25: #2 | O25: W6 x 15 | P25: #1 | Q25: W6 x 15 | R25: #1 | S25: W8 x 18 | T25: #2 | U25: W8 x 18 | V25: #1 | W25: W6 x 20 | X25: #1S | Y25: W8 x 21 | Z25: #1S | AA25: W10 x 26 | AB25: #2 | AC25: W10 x 26 | AD25: #1 | AE25: W10 x 26 | AF25: #1 | AG25: W10 x 30 | AH25: #1S | AI25: W12 x 30 | AJ25: #2 | AK25: - | AM25: - | AR25: 9 | AS25: - | AU25: W6 x 12 | AV25: #2 | AW25: W6 x 15 | AX25: #2 | AY25: W6 x 15 | AZ25: #2 | BA25: W6 x 15 | BB25: #2 | BC25: W8 x 18 | BD25: #2 | BE25: W8 x 21 | BF25: #2 | BG25: W10 x 22 | BH25: #2 | BI25: W10 x 26 | BJ25: #2 | BK25: W10 x 26 | BL25: #2 | BM25: W12 x 26 | BN25: #2 | BO25: W14 x 30 | BP25: #2 | BQ25: W18 x 35 | BR25: #3 | BS25: W21 x 44 | BT25: #3 | BU25: - | BW25: - | BY25: - | CA25: - | CC25: -
B26: 10 | C26: W6 x 9 | D26: #2 | E26: W6 x 12 | F26: #2 | G26: W6 x 12 | H26: #2 | I26: W6 x 12 | J26: #2 | K26: W6 x 15 | L26: #1 | M26: W6 x 15 | N26: #1 | O26: W6 x 15 | P26: #1 | Q26: W6 x 16 | R26: #1 | S26: W8 x 18 | T26: #1 | U26: W6 x 20 | V26: #1S | W26: W8 x 21 | X26: #1S | Y26: W10 x 26 | Z26: #2 | AA26: W10 x 26 | AB26: #1 | AC26: W10 x 26 | AD26: #1 | AE26: - | AG26: - | AI26: - | AK26: - | AM26: - | AR26: 10 | AS26: - | AU26: W6 x 15 | AV26: #2 | AW26: W6 x 15 | AX26: #2 | AY26: W6 x 15 | AZ26: #1 | BA26: W8 x 18 | BB26: #2 | BC26: W8 x 21 | BD26: #2 | BE26: W8 x 21 | BF26: #2 | BG26: W10 x 26 | BH26: #2 | BI26: W10 x 26 | BJ26: #2 | BK26: W12 x 26 | BL26: #2 | BM26: W14 x 30 | BN26: #2 | BO26: W18 x 35 | BP26: #2 | BQ26: W18 x 40 | BR26: #2 | BS26: W21 x 44 | BT26: #3 | BU26: - | BW26: - | BY26: - | CA26: - | CC26: -
B27: 11 | C27: W6 x 9 | D27: #2 | E27: W6 x 12 | F27: #2 | G27: W6 x 12 | H27: #1 | I27: W6 x 15 | J27: #1 | K27: W6 x 15 | L27: #1 | M27: W6 x 15 | N27: #1 | O27: W6 x 16 | P27: #1 | Q27: W8 x 18 | R27: #1 | S27: W6 x 20 | T27: #1 | U27: W6 x 20 | V27: #1S | W27: W8 x 24 | X27: #1S | Y27: - | AA27: - | AC27: - | AE27: - | AG27: - | AI27: - | AK27: - | AM27: - | AR27: 11 | AS27: - | AU27: W6 x 15 | AV27: #2 | AW27: W6 x 15 | AX27: #1 | AY27: W8 x 18 | AZ27: #2 | BA27: W6 x 20 | BB27: #1 | BC27: W8 x 21 | BD27: #2 | BE27: W10 x 26 | BF27: #2 | BG27: W10 x 26 | BH27: #2 | BI27: W10 x 26 | BJ27: #2 | BK27: W12 x 30 | BL27: #2 | BM27: W16 x 36 | BN27: #2 | BO27: W18 x 40 | BP27: #2 | BQ27: W21 x 44 | BR27: #3 | BS27: - | BU27: - | BW27: - | BY27: - | CA27: - | CC27: -
B28: 12 | C28: W6 x 12 | D28: #2 | E28: W6 x 12 | F28: #1 | G28: W6 x 15 | H28: #1 | I28: W6 x 15 | J28: #1 | K28: W6 x 15 | L28: #1 | M28: W6 x 15 | N28: #1 | O28: W8 x 18 | P28: #1 | Q28: W6 x 20 | R28: #1 | S28: W6 x 20 | T28: #1 | U28: W10 x 22 | V28: #1 | W28: - | Y28: - | AA28: - | AC28: - | AE28: - | AG28: - | AI28: - | AK28: - | AM28: - | AR28: 12 | AS28: - | AU28: W6 x 15 | AV28: #1 | AW28: W6 x 15 | AX28: #1 | AY28: W8 x 18 | AZ28: #2 | BA28: W8 x 21 | BB28: #1 | BC28: W10 x 22 | BD28: #2 | BE28: W10 x 26 | BF28: #2 | BG28: W10 x 26 | BH28: #1 | BI28: W12 x 30 | BJ28: #2 | BK28: W14 x 34 | BL28: #2 | BM28: W18 x 40 | BN28: #2 | BO28: W21 x 44 | BP28: #3 | BQ28: - | BS28: - | BU28: - | BW28: - | BY28: - | CA28: - | CC28: -
B29: 13 | C29: W6 x 12 | D29: #1 | E29: W6 x 12 | F29: #1 | G29: W6 x 15 | H29: #1 | I29: W6 x 15 | J29: #1 | K29: W6 x 15 | L29: #1 | M29: W8 x 18 | N29: #1 | O29: W6 x 20 | P29: #1 | Q29: W6 x 20 | R29: #1 | S29: W8 x 21 | T29: #1 | U29: - | W29: - | Y29: - | AA29: - | AC29: - | AE29: - | AG29: - | AI29: - | AK29: - | AM29: - | AR29: 13 | AS29: - | AU29: W6 x 15 | AV29: #1 | AW29: W8 x 18 | AX29: #1 | AY29: W6 x 20 | AZ29: #1 | BA29: W8 x 21 | BB29: #1 | BC29: W10 x 26 | BD29: #2 | BE29: W10 x 26 | BF29: #1 | BG29: W10 x 30 | BH29: #1 | BI29: W14 x 34 | BJ29: #2 | BK29: W16 x 36 | BL29: #2 | BM29: W18 x 40 | BN29: #2 | BO29: - | BQ29: - | BS29: - | BU29: - | BW29: - | BY29: - | CA29: - | CC29: -
B30: 14 | C30: W6 x 12 | D30: #1 | E30: W6 x 15 | F30: #1 | G30: W6 x 15 | H30: #1 | I30: W6 x 15 | J30: #1 | K30: W8 x 18 | L30: #1 | M30: W6 x 20 | N30: #1 | O30: W6 x 20 | P30: #1 | Q30: W6 x 20 | R30: #1 | S30: - | U30: - | W30: - | Y30: - | AA30: - | AC30: - | AE30: - | AG30: - | AI30: - | AK30: - | AM30: - | AR30: 14 | AS30: - | AU30: W6 x 16 | AV30: #1 | AW30: W6 x 20 | AX30: #1 | AY30: W6 x 20 | AZ30: #1 | BA30: W10 x 26 | BB30: #1 | BC30: W10 x 26 | BD30: #1 | BE30: W10 x 30 | BF30: #1 | BG30: W12 x 30 | BH30: #2 | BI30: W16 x 36 | BJ30: #2 | BK30: W18 x 40 | BL30: #2 | BM30: - | BO30: - | BQ30: - | BS30: - | BU30: - | BW30: - | BY30: - | CA30: - | CC30: -
B31: 15 | C31: W6 x 12 | D31: #1 | E31: W6 x 15 | F31: #1 | G31: W6 x 15 | H31: #1 | I31: W6 x 16 | J31: #1 | K31: W8 x 18 | L31: #1 | M31: - | O31: - | Q31: - | S31: - | U31: - | W31: - | Y31: - | AA31: - | AC31: - | AE31: - | AG31: - | AI31: - | AK31: - | AM31: - | AR31: 15 | AS31: - | AU31: W8 x 18 | AV31: #1 | AW31: W6 x 20 | AX31: #1 | AY31: W8 x 24 | AZ31: #1 | BA31: W10 x 26 | BB31: #1 | BC31: W10 x 26 | BD31: #1 | BE31: W12 x 30 | BF31: #1 | BG31: W14 x 34 | BH31: #2 | BI31: W16 x 36 | BJ31: #2 | BK31: - | BM31: - | BO31: - | BQ31: - | BS31: - | BU31: - | BW31: - | BY31: - | CA31: - | CC31: -
B32: 16 | C32: W6 x 15 | D32: #1 | E32: W6 x 15 | F32: #1 | G32: W6 x 15 | H32: #1 | I32: - | K32: - | M32: - | O32: - | Q32: - | S32: - | U32: - | W32: - | Y32: - | AA32: - | AC32: - | AE32: - | AG32: - | AI32: - | AK32: - | AM32: - | AR32: 16 | AS32: - | AU32: W6 x 20 | AV32: #1 | AW32: W6 x 20 | AX32: #1 | AY32: W10 x 26 | AZ32: #1 | BA32: W10 x 26 | BB32: #1 | BC32: W10 x 30 | BD32: #1 | BE32: W12 x 30 | BF32: #1 | BG32: W16 x 36 | BH32: #2 | BI32: - | BK32: - | BM32: - | BO32: - | BQ32: - | BS32: - | BU32: - | BW32: - | BY32: - | CA32: - | CC32: -
A33: 11 | B33: 7 | C33: W6 x 9 | D33: #3 | E33: W6 x 9 | F33: #3 | G33: W6 x 9 | H33: #2 | I33: W8 x 10 | J33: #3 | K33: W6 x 12 | L33: #2 | M33: W6 x 12 | N33: #2 | O33: W6 x 15 | P33: #2 | Q33: W6 x 15 | R33: #2 | S33: W6 x 15 | T33: #2S | U33: W6 x 15 | V33: #1S | W33: W8 x 18 | X33: #2S | Y33: W8 x 21 | Z33: #2S | AA33: W10 x 22 | AB33: #2 | AC33: W10 x 22 | AD33: #2 | AE33: W10 x 26 | AF33: #2 | AG33: W10 x 26 | AH33: #2S | AI33: W12 x 26 | AJ33: #2S | AK33: W14 x 30 | AL33: #2S | AM33: W16 x 36 | AN33: #2S | AQ33: 19 | AR33: 7 | AS33: - | AU33: - | AW33: W6 x 12 | AX33: #2 | AY33: W12 x 14 | AZ33: #3 | BA33: W6 x 15 | BB33: #2 | BC33: W6 x 15 | BD33: #2S | BE33: W8 x 18 | BF33: #2 | BG33: W8 x 18 | BH33: #2S | BI33: W10 x 22 | BJ33: #2 | BK33: W10 x 22 | BL33: #2 | BM33: W10 x 26 | BN33: #2 | BO33: W12 x 26 | BP33: #2 | BQ33: W14 x 30 | BR33: #2 | BS33: W18 x 35 | BT33: #3 | BU33: W21 x 44 | BV33: #3 | BW33: - | BY33: - | CA33: - | CC33: -
B34: 8 | C34: W6 x 9 | D34: #2 | E34: W6 x 9 | F34: #2 | G34: W6 x 9 | H34: #2 | I34: W6 x 12 | J34: #2 | K34: W6 x 12 | L34: #2 | M34: W6 x 15 | N34: #2 | O34: W6 x 15 | P34: #2 | Q34: W6 x 15 | R34: #1 | S34: W6 x 15 | T34: #1S | U34: W8 x 18 | V34: #2 | W34: W8 x 21 | X34: #2S | Y34: W8 x 21 | Z34: #1S | AA34: W10 x 22 | AB34: #2 | AC34: W10 x 26 | AD34: #2 | AE34: W10 x 26 | AF34: #2S | AG34: W12 x 30 | AH34: #2 | AI34: W14 x 30 | AJ34: #2 | AK34: - | AM34: - | AR34: 8 | AS34: - | AU34: - | AW34: W12 x 14 | AX34: #3 | AY34: W6 x 15 | AZ34: #2 | BA34: W6 x 15 | BB34: #2 | BC34: W6 x 16 | BD34: #2S | BE34: W8 x 18 | BF34: #2 | BG34: W10 x 22 | BH34: #2 | BI34: W10 x 22 | BJ34: #2 | BK34: W10 x 26 | BL34: #2 | BM34: W12 x 26 | BN34: #2 | BO34: W14 x 30 | BP34: #2 | BQ34: W18 x 35 | BR34: #3 | BS34: W21 x 44 | BT34: #3 | BU34: W21 x 44 | BV34: #3 | BW34: - | BY34: - | CA34: - | CC34: -
B35: 9 | C35: W6 x 9 | D35: #2 | E35: W6 x 9 | F35: #2 | G35: W6 x 12 | H35: #2 | I35: W6 x 12 | J35: #2 | K35: W6 x 15 | L35: #2 | M35: W6 x 15 | N35: #2 | O35: W6 x 15 | P35: #1 | Q35: W6 x 15 | R35: #1 | S35: W8 x 18 | T35: #2 | U35: W6 x 20 | V35: #1S | W35: W8 x 21 | X35: #1S | Y35: W10 x 22 | Z35: #2 | AA35: W10 x 26 | AB35: #2 | AC35: W10 x 26 | AD35: #1 | AE35: W10 x 26 | AF35: #1S | AG35: W12 x 30 | AH35: #2 | AI35: - | AK35: - | AM35: - | AR35: 9 | AS35: - | AU35: - | AW35: W6 x 15 | AX35: #2 | AY35: W6 x 15 | AZ35: #2 | BA35: W6 x 16 | BB35: #2 | BC35: W8 x 18 | BD35: #2 | BE35: W8 x 21 | BF35: #2 | BG35: W10 x 22 | BH35: #2 | BI35: W10 x 26 | BJ35: #2 | BK35: W12 x 26 | BL35: #2 | BM35: W14 x 30 | BN35: #2 | BO35: W18 x 35 | BP35: #3 | BQ35: W18 x 35 | BR35: #3 | BS35: W21 x 44 | BT35: #3 | BU35: - | BW35: - | BY35: - | CA35: - | CC35: -
B36: 10 | C36: W6 x 9 | D36: #2 | E36: W6 x 12 | F36: #2 | G36: W6 x 12 | H36: #2 | I36: W6 x 15 | J36: #2 | K36: W6 x 15 | L36: #1 | M36: W6 x 15 | N36: #1 | O36: W6 x 15 | P36: #1 | Q36: W8 x 18 | R36: #2 | S36: W6 x 20 | T36: #1S | U36: W6 x 20 | V36: #1S | W36: W8 x 21 | X36: #1S | Y36: W10 x 26 | Z36: #2 | AA36: W10 x 26 | AB36: #1 | AC36: W10 x 26 | AD36: #1 | AE36: - | AG36: - | AI36: - | AK36: - | AM36: - | AR36: 10 | AS36: - | AU36: - | AW36: W6 x 15 | AX36: #2 | AY36: W6 x 15 | AZ36: #1 | BA36: W8 x 18 | BB36: #2 | BC36: W8 x 21 | BD36: #2 | BE36: W10 x 22 | BF36: #2 | BG36: W10 x 26 | BH36: #2 | BI36: W10 x 26 | BJ36: #2 | BK36: W12 x 26 | BL36: #2 | BM36: W18 x 35 | BN36: #3 | BO36: W18 x 40 | BP36: #3 | BQ36: W21 x 44 | BR36: #3 | BS36: - | BU36: - | BW36: - | BY36: - | CA36: - | CC36: -
B37: 11 | C37: W6 x 9 | D37: #2 | E37: W6 x 12 | F37: #2 | G37: W6 x 12 | H37: #1 | I37: W6 x 15 | J37: #1 | K37: W6 x 15 | L37: #1 | M37: W6 x 15 | N37: #1 | O37: W8 x 18 | P37: #1 | Q37: W6 x 20 | R37: #1 | S37: W6 x 20 | T37: #1S | U37: W8 x 21 | V37: #1 | W37: - | Y37: - | AA37: - | AC37: - | AE37: - | AG37: - | AI37: - | AK37: - | AM37: - | AR37: 11 | AS37: - | AU37: - | AW37: W6 x 15 | AX37: #1 | AY37: W8 x 18 | AZ37: #2 | BA37: W6 x 20 | BB37: #1 | BC37: W8 x 21 | BD37: #1 | BE37: W10 x 26 | BF37: #2 | BG37: W10 x 26 | BH37: #2 | BI37: W12 x 26 | BJ37: #2 | BK37: W14 x 30 | BL37: #2 | BM37: W16 x 36 | BN37: #2 | BO37: W21 x 44 | BP37: #3 | BQ37: - | BS37: - | BU37: - | BW37: - | BY37: - | CA37: - | CC37: -
B38: 12 | C38: W6 x 12 | D38: #2 | E38: W6 x 12 | F38: #1 | G38: W6 x 15 | H38: #1 | I38: W6 x 15 | J38: #1 | K38: W6 x 15 | L38: #1 | M38: W8 x 18 | N38: #1 | O38: W6 x 20 | P38: #1 | Q38: W6 x 20 | R38: #1 | S38: W8 x 21 | T38: #1 | U38: - | W38: - | Y38: - | AA38: - | AC38: - | AE38: - | AG38: - | AI38: - | AK38: - | AM38: - | AR38: 12 | AS38: - | AU38: - | AW38: W8 x 18 | AX38: #2 | AY38: W6 x 20 | AZ38: #1 | BA38: W8 x 21 | BB38: #1 | BC38: W10 x 26 | BD38: #2 | BE38: W10 x 26 | BF38: #2 | BG38: W10 x 26 | BH38: #1 | BI38: W14 x 30 | BJ38: #2 | BK38: W16 x 36 | BL38: #2 | BM38: W18 x 40 | BN38: #2 | BO38: W21 x 44 | BP38: #3 | BQ38: - | BS38: - | BU38: - | BW38: - | BY38: - | CA38: - | CC38: -
B39: 13 | C39: W6 x 12 | D39: #1 | E39: W6 x 15 | F39: #1 | G39: W6 x 15 | H39: #1 | I39: W6 x 15 | J39: #1 | K39: W8 x 18 | L39: #1 | M39: W8 x 18 | N39: #1 | O39: W6 x 20 | P39: #1 | Q39: W6 x 20 | R39: #1 | S39: - | U39: - | W39: - | Y39: - | AA39: - | AC39: - | AE39: - | AG39: - | AI39: - | AK39: - | AM39: - | AR39: 13 | AS39: - | AU39: - | AW39: W8 x 18 | AX39: #1 | AY39: W6 x 20 | AZ39: #1 | BA39: W10 x 22 | BB39: #2 | BC39: W10 x 26 | BD39: #2 | BE39: W10 x 26 | BF39: #1 | BG39: W12 x 30 | BH39: #2 | BI39: W16 x 36 | BJ39: #2 | BK39: W18 x 40 | BL39: #2 | BM39: W21 x 44 | BN39: #2 | BO39: - | BQ39: - | BS39: - | BU39: - | BW39: - | BY39: - | CA39: - | CC39: -
B40: 14 | C40: W6 x 12 | D40: #1 | E40: W6 x 15 | F40: #1 | G40: W6 x 15 | H40: #1 | I40: W6 x 15 | J40: #1 | K40: W8 x 18 | L40: #1 | M40: W6 x 20 | N40: #1 | O40: W6 x 20 | P40: #1 | Q40: - | S40: - | U40: - | W40: - | Y40: - | AA40: - | AC40: - | AE40: - | AG40: - | AI40: - | AK40: - | AM40: - | AR40: 14 | AS40: - | AU40: - | AW40: W6 x 20 | AX40: #1 | AY40: W8 x 21 | AZ40: #1 | BA40: W10 x 26 | BB40: #1 | BC40: W10 x 26 | BD40: #1 | BE40: W12 x 30 | BF40: #2 | BG40: W14 x 34 | BH40: #2 | BI40: W16 x 36 | BJ40: #2 | BK40: - | BM40: - | BO40: - | BQ40: - | BS40: - | BU40: - | BW40: - | BY40: - | CA40: - | CC40: -
B41: 15 | C41: W6 x 15 | D41: #1 | E41: W6 x 15 | F41: #1 | G41: W6 x 15 | H41: #1 | I41: W8 x 18 | J41: #1 | K41: - | M41: - | O41: - | Q41: - | S41: - | U41: - | W41: - | Y41: - | AA41: - | AC41: - | AE41: - | AG41: - | AI41: - | AK41: - | AM41: - | AR41: 15 | AS41: - | AU41: - | AW41: W6 x 20 | AX41: #1 | AY41: W8 x 24 | AZ41: #1 | BA41: W10 x 26 | BB41: #1 | BC41: W10 x 30 | BD41: #1 | BE41: W12 x 30 | BF41: #1 | BG41: W16 x 36 | BH41: #2 | BI41: - | BK41: - | BM41: - | BO41: - | BQ41: - | BS41: - | BU41: - | BW41: - | BY41: - | CA41: - | CC41: -
B42: 16 | C42: W6 x 15 | D42: #1 | E42: W6 x 15 | F42: #1 | G42: - | I42: - | K42: - | M42: - | O42: - | Q42: - | S42: - | U42: - | W42: - | Y42: - | AA42: - | AC42: - | AE42: - | AG42: - | AI42: - | AK42: - | AM42: - | AR42: 16 | AS42: - | AU42: - | AW42: W6 x 20 | AX42: #1 | AY42: W10 x 26 | AZ42: #1 | BA42: W10 x 26 | BB42: #1 | BC42: W10 x 30 | BD42: #1 | BE42: W14 x 34 | BF42: #2 | BG42: - | BI42: - | BK42: - | BM42: - | BO42: - | BQ42: - | BS42: - | BU42: - | BW42: - | BY42: - | CA42: - | CC42: -
A43: 12 | B43: 7 | C43: W6 x 9 | D43: #3 | E43: W6 x 9 | F43: #3 | G43: W6 x 9 | H43: #2 | I43: W6 x 12 | J43: #2 | K43: W6 x 12 | L43: #2 | M43: W6 x 12 | N43: #2 | O43: W6 x 15 | P43: #2 | Q43: W6 x 15 | R43: #2 | S43: W6 x 15 | T43: #2S | U43: W8 x 18 | V43: #2S | W43: W8 x 18 | X43: #2S | Y43: W10 x 22 | Z43: #2 | AA43: W10 x 22 | AB43: #2 | AC43: W10 x 26 | AD43: #2 | AE43: W10 x 26 | AF43: #2S | AG43: W12 x 26 | AH43: #2S | AI43: W14 x 30 | AJ43: #2S | AK43: W18 x 35 | AL43: #2 | AM43: W18 x 40 | AN43: #2 | AQ43: 20 | AR43: 7 | AS43: - | AU43: - | AW43: W6 x 12 | AX43: #2 | AY43: W6 x 15 | AZ43: #2 | BA43: W6 x 15 | BB43: #2 | BC43: W6 x 15 | BD43: #2S | BE43: W8 x 18 | BF43: #2S | BG43: W8 x 21 | BH43: #2S | BI43: W10 x 22 | BJ43: #2 | BK43: W10 x 22 | BL43: #2 | BM43: W12 x 26 | BN43: #2 | BO43: W14 x 30 | BP43: #3 | BQ43: W16 x 31 | BR43: #3 | BS43: W18 x 35 | BT43: #3 | BU43: W21 x 44 | BV43: #3 | BW43: - | BY43: - | CA43: - | CC43: -
B44: 8 | C44: W6 x 9 | D44: #2 | E44: W6 x 9 | F44: #2 | G44: W6 x 12 | H44: #2 | I44: W6 x 12 | J44: #2 | K44: W6 x 12 | L44: #2 | M44: W6 x 15 | N44: #2 | O44: W6 x 15 | P44: #2 | Q44: W6 x 15 | R44: #1 | S44: W8 x 18 | T44: #2 | U44: W8 x 18 | V44: #2S | W44: W8 x 21 | X44: #2S | Y44: W10 x 22 | Z44: #2 | AA44: W10 x 26 | AB44: #2 | AC44: W10 x 26 | AD44: #2 | AE44: W12 x 26 | AF44: #2 | AG44: W14 x 30 | AH44: #2 | AI44: W18 x 35 | AJ44: #2 | AK44: - | AM44: - | AR44: 8 | AS44: - | AU44: - | AW44: W6 x 15 | AX44: #2 | AY44: W6 x 15 | AZ44: #2 | BA44: W6 x 15 | BB44: #2 | BC44: W8 x 18 | BD44: #2 | BE44: W8 x 21 | BF44: #2S | BG44: W10 x 22 | BH44: #2 | BI44: W10 x 22 | BJ44: #2 | BK44: W10 x 26 | BL44: #2 | BM44: W12 x 26 | BN44: #2 | BO44: W18 x 35 | BP44: #3 | BQ44: W18 x 35 | BR44: #3 | BS44: W21 x 44 | BT44: #3 | BU44: - | BW44: - | BY44: - | CA44: - | CC44: -
B45: 9 | C45: W6 x 9 | D45: #2 | E45: W8 x 10 | F45: #2 | G45: W6 x 12 | H45: #2 | I45: W6 x 12 | J45: #2 | K45: W6 x 15 | L45: #2 | M45: W6 x 15 | N45: #2 | O45: W6 x 15 | P45: #1 | Q45: W8 x 18 | R45: #2 | S45: W8 x 18 | T45: #2 | U45: W8 x 21 | V45: #1S | W45: W8 x 21 | X45: #1S | Y45: W10 x 26 | Z45: #2 | AA45: W10 x 26 | AB45: #2 | AC45: W10 x 26 | AD45: #1 | AE45: W12 x 30 | AF45: #2 | AG45: - | AI45: - | AK45: - | AM45: - | AR45: 9 | AS45: - | AU45: - | AW45: W6 x 15 | AX45: #2 | AY45: W6 x 15 | AZ45: #2 | BA45: W8 x 18 | BB45: #2 | BC45: W8 x 21 | BD45: #2 | BE45: W10 x 22 | BF45: #2 | BG45: W10 x 22 | BH45: #2 | BI45: W10 x 26 | BJ45: #2 | BK45: W12 x 26 | BL45: #2 | BM45: W14 x 34 | BN45: #2 | BO45: W18 x 35 | BP45: #3 | BQ45: W21 x 44 | BR45: #3 | BS45: - | BU45: - | BW45: - | BY45: - | CA45: - | CC45: -
B46: 10 | C46: W6 x 9 | D46: #2 | E46: W6 x 12 | F46: #2 | G46: W6 x 12 | H46: #2 | I46: W6 x 15 | J46: #2 | K46: W6 x 15 | L46: #1 | M46: W6 x 15 | N46: #1 | O46: W8 x 18 | P46: #2 | Q46: W8 x 18 | R46: #1 | S46: W6 x 20 | T46: #1S | U46: W8 x 21 | V46: #1S | W46: W10 x 26 | X46: #2 | Y46: W10 x 26 | Z46: #1 | AA46: W10 x 26 | AB46: #1 | AC46: - | AE46: - | AG46: - | AI46: - | AK46: - | AM46: - | AR46: 10 | AS46: - | AU46: - | AW46: W6 x 15 | AX46: #2 | AY46: W6 x 16 | AZ46: #1 | BA46: W8 x 18 | BB46: #2 | BC46: W8 x 21 | BD46: #2 | BE46: W10 x 22 | BF46: #2 | BG46: W10 x 26 | BH46: #2 | BI46: W12 x 26 | BJ46: #2 | BK46: W14 x 30 | BL46: #2 | BM46: W18 x 35 | BN46: #3 | BO46: W21 x 44 | BP46: #3 | BQ46: W21 x 44 | BR46: #3 | BS46: - | BU46: - | BW46: - | BY46: - | CA46: - | CC46: -
B47: 11 | C47: W6 x 12 | D47: #2 | E47: W6 x 12 | F47: #2 | G47: W6 x 15 | H47: #1 | I47: W6 x 15 | J47: #1 | K47: W6 x 15 | L47: #1 | M47: W6 x 16 | N47: #1 | O47: W8 x 18 | P47: #1 | Q47: W6 x 20 | R47: #1 | S47: W8 x 21 | T47: #1 | U47: - | W47: - | Y47: - | AA47: - | AC47: - | AE47: - | AG47: - | AI47: - | AK47: - | AM47: - | AR47: 11 | AS47: - | AU47: - | AW47: W6 x 15 | AX47: #1 | AY47: W8 x 18 | AZ47: #2 | BA47: W8 x 21 | BB47: #2 | BC47: W10 x 22 | BD47: #2 | BE47: W10 x 26 | BF47: #2 | BG47: W10 x 26 | BH47: #2 | BI47: W12 x 30 | BJ47: #2 | BK47: W18 x 35 | BL47: #2 | BM47: W18 x 40 | BN47: #2 | BO47: W21 x 44 | BP47: #3 | BQ47: - | BS47: - | BU47: - | BW47: - | BY47: - | CA47: - | CC47: -
B48: 12 | C48: W6 x 12 | D48: #2 | E48: W6 x 12 | F48: #1 | G48: W6 x 15 | H48: #1 | I48: W6 x 15 | J48: #1 | K48: W6 x 15 | L48: #1 | M48: W8 x 18 | N48: #1 | O48: W6 x 20 | P48: #1 | Q48: W6 x 20 | R48: #1 | S48: - | U48: - | W48: - | Y48: - | AA48: - | AC48: - | AE48: - | AG48: - | AI48: - | AK48: - | AM48: - | AR48: 12 | AS48: - | AU48: - | AW48: W8 x 18 | AX48: #2 | AY48: W6 x 20 | AZ48: #1 | BA48: W8 x 21 | BB48: #1 | BC48: W10 x 26 | BD48: #2 | BE48: W10 x 26 | BF48: #2 | BG48: W12 x 30 | BH48: #2 | BI48: W14 x 30 | BJ48: #2 | BK48: W18 x 40 | BL48: #2 | BM48: W21 x 44 | BN48: #3 | BO48: - | BQ48: - | BS48: - | BU48: - | BW48: - | BY48: - | CA48: - | CC48: -
B49: 13 | C49: W6 x 12 | D49: #1 | E49: W6 x 15 | F49: #1 | G49: W6 x 15 | H49: #1 | I49: W6 x 15 | J49: #1 | K49: W8 x 18 | L49: #1 | M49: W6 x 20 | N49: #1 | O49: W6 x 20 | P49: #1 | Q49: - | S49: - | U49: - | W49: - | Y49: - | AA49: - | AC49: - | AE49: - | AG49: - | AI49: - | AK49: - | AM49: - | AR49: 13 | AS49: - | AU49: - | AW49: W6 x 20 | AX49: #1 | AY49: W8 x 21 | AZ49: #1 | BA49: W10 x 26 | BB49: #2 | BC49: W10 x 26 | BD49: #2 | BE49: W10 x 30 | BF49: #1 | BG49: W14 x 30 | BH49: #2 | BI49: W16 x 36 | BJ49: #2 | BK49: W18 x 40 | BL49: #2 | BM49: W21 x 44 | BN49: #2 | BO49: - | BQ49: - | BS49: - | BU49: - | BW49: - | BY49: - | CA49: - | CC49: -
B50: 14 | C50: W6 x 12 | D50: #1 | E50: W6 x 15 | F50: #1 | G50: W6 x 15 | H50: #1 | I50: W8 x 18 | J50: #1 | K50: W6 x 20 | L50: #1 | M50: W6 x 20 | N50: #1 | O50: W6 x 20 | P50: #1 | Q50: - | S50: - | U50: - | W50: - | Y50: - | AA50: - | AC50: - | AE50: - | AG50: - | AI50: - | AK50: - | AM50: - | AR50: 14 | AS50: - | AU50: - | AW50: W6 x 20 | AX50: #1 | AY50: W8 x 21 | AZ50: #1 | BA50: W10 x 26 | BB50: #1 | BC50: W10 x 26 | BD50: #1 | BE50: W12 x 30 | BF50: #2 | BG50: W16 x 36 | BH50: #2 | BI50: W18 x 40 | BJ50: #2 | BK50: - | BM50: - | BO50: - | BQ50: - | BS50: - | BU50: - | BW50: - | BY50: - | CA50: - | CC50: -
B51: 15 | C51: W6 x 15 | D51: #1 | E51: W6 x 15 | F51: #1 | G51: W6 x 16 | H51: #1 | I51: W8 x 18 | J51: #1 | K51: - | M51: - | O51: - | Q51: - | S51: - | U51: - | W51: - | Y51: - | AA51: - | AC51: - | AE51: - | AG51: - | AI51: - | AK51: - | AM51: - | AR51: 15 | AS51: - | AU51: - | AW51: W6 x 20 | AX51: #1 | AY51: W10 x 26 | AZ51: #1 | BA51: W10 x 26 | BB51: #1 | BC51: W10 x 30 | BD51: #1 | BE51: W14 x 34 | BF51: #2 | BG51: W16 x 36 | BH51: #2 | BI51: - | BK51: - | BM51: - | BO51: - | BQ51: - | BS51: - | BU51: - | BW51: - | BY51: - | CA51: - | CC51: -
B52: 16 | C52: W6 x 15 | D52: #1 | E52: W6 x 15 | F52: #1 | G52: - | I52: - | K52: - | M52: - | O52: - | Q52: - | S52: - | U52: - | W52: - | Y52: - | AA52: - | AC52: - | AE52: - | AG52: - | AI52: - | AK52: - | AM52: - | AR52: 16 | AS52: - | AU52: - | AW52: W8 x 24 | AX52: #1 | AY52: W10 x 26 | AZ52: #1 | BA52: W10 x 30 | BB52: #1 | BC52: W12 x 30 | BD52: #1 | BE52: W16 x 36 | BF52: #2 | BG52: - | BI52: - | BK52: - | BM52: - | BO52: - | BQ52: - | BS52: - | BU52: - | BW52: - | BY52: - | CA52: - | CC52: -
A53: 13 | B53: 7 | C53: W6 x 9 | D53: #3 | E53: W6 x 9 | F53: #2 | G53: W6 x 9 | H53: #2 | I53: W6 x 12 | J53: #2 | K53: W6 x 12 | L53: #2 | M53: W6 x 15 | N53: #2 | O53: W6 x 15 | P53: #2 | Q53: W6 x 15 | R53: #2S | S53: W6 x 15 | T53: #2S | U53: W8 x 18 | V53: #2S | W53: W8 x 21 | X53: #2S | Y53: W10 x 22 | Z53: #2 | AA53: W10 x 22 | AB53: #2 | AC53: W10 x 26 | AD53: #2S | AE53: W12 x 26 | AF53: #2 | AG53: W14 x 30 | AH53: #2 | AI53: W18 x 35 | AJ53: #3 | AK53: W18 x 40 | AL53: #2 | AM53: W21 x 44 | AN53: #3 | AQ53: 21 | AR53: 7 | AS53: - | AU53: - | AW53: W6 x 12 | AX53: #2 | AY53: W6 x 15 | AZ53: #2 | BA53: W6 x 15 | BB53: #2 | BC53: W6 x 16 | BD53: #2S | BE53: W8 x 18 | BF53: #2S | BG53: W10 x 22 | BH53: #2 | BI53: W10 x 22 | BJ53: #2 | BK53: W10 x 26 | BL53: #2 | BM53: W12 x 26 | BN53: #2 | BO53: W16 x 31 | BP53: #3 | BQ53: W18 x 35 | BR53: #3 | BS53: W21 x 44 | BT53: #3 | BU53: - | BW53: - | BY53: - | CA53: - | CC53: -
B54: 8 | C54: W6 x 9 | D54: #2 | E54: W6 x 9 | F54: #2 | G54: W6 x 12 | H54: #2 | I54: W6 x 12 | J54: #2 | K54: W6 x 15 | L54: #2 | M54: W6 x 15 | N54: #2 | O54: W6 x 15 | P54: #2 | Q54: W6 x 15 | R54: #1S | S54: W8 x 18 | T54: #2 | U54: W8 x 21 | V54: #2S | W54: W8 x 21 | X54: #2S | Y54: W10 x 22 | Z54: #2 | AA54: W10 x 26 | AB54: #2 | AC54: W10 x 26 | AD54: #2S | AE54: W12 x 30 | AF54: #2 | AG54: W14 x 34 | AH54: #2 | AI54: W18 x 40 | AJ54: #2 | AK54: W21 x 44 | AL54: #3 | AM54: W21 x 44 | AN54: #3 | AR54: 8 | AS54: - | AU54: - | AW54: W6 x 15 | AX54: #2 | AY54: W6 x 15 | AZ54: #2 | BA54: W6 x 15 | BB54: #2 | BC54: W8 x 18 | BD54: #2 | BE54: W8 x 21 | BF54: #2S | BG54: W10 x 22 | BH54: #2 | BI54: W10 x 26 | BJ54: #2 | BK54: W12 x 26 | BL54: #2 | BM54: W14 x 30 | BN54: #2 | BO54: W18 x 35 | BP54: #3 | BQ54: W21 x 44 | BR54: #3 | BS54: - | BU54: - | BW54: - | BY54: - | CA54: - | CC54: -
B55: 9 | C55: W6 x 9 | D55: #2 | E55: W6 x 12 | F55: #2 | G55: W6 x 12 | H55: #2 | I55: W6 x 15 | J55: #2 | K55: W6 x 15 | L55: #2 | M55: W6 x 15 | N55: #1 | O55: W6 x 15 | P55: #1 | Q55: W8 x 18 | R55: #2 | S55: W6 x 20 | T55: #1S | U55: W8 x 21 | V55: #1S | W55: W10 x 22 | X55: #2 | Y55: W10 x 26 | Z55: #2 | AA55: W10 x 26 | AB55: #2 | AC55: W12 x 30 | AD55: #2 | AE55: W14 x 30 | AF55: #2 | AG55: W16 x 36 | AH55: #2 | AI55: W18 x 40 | AJ55: #2 | AK55: W21 x 44 | AL55: #2 | AM55: - | AR55: 9 | AS55: - | AU55: - | AW55: W6 x 15 | AX55: #2 | AY55: W6 x 15 | AZ55: #2 | BA55: W8 x 18 | BB55: #2 | BC55: W8 x 21 | BD55: #2 | BE55: W10 x 22 | BF55: #2 | BG55: W10 x 26 | BH55: #2 | BI55: W12 x 26 | BJ55: #2 | BK55: W14 x 30 | BL55: #2 | BM55: W18 x 35 | BN55: #3 | BO55: W18 x 35 | BP55: #3 | BQ55: W21 x 44 | BR55: #3 | BS55: - | BU55: - | BW55: - | BY55: - | CA55: - | CC55: -
B56: 10 | C56: W6 x 9 | D56: #2 | E56: W6 x 12 | F56: #2 | G56: W6 x 12 | H56: #2 | I56: W6 x 15 | J56: #2 | K56: W6 x 15 | L56: #1 | M56: W6 x 15 | N56: #1 | O56: W8 x 18 | P56: #2 | Q56: W6 x 20 | R56: #1S | S56: W8 x 21 | T56: #1 | U56: W10 x 22 | V56: #2 | W56: W10 x 26 | X56: #2 | Y56: W10 x 26 | Z56: #1 | AA56: W12 x 30 | AB56: #2 | AC56: W14 x 30 | AD56: #2 | AE56: W16 x 36 | AF56: #2 | AG56: W18 x 40 | AH56: #2 | AI56: W21 x 44 | AJ56: #2 | AK56: - | AM56: - | AR56: 10 | AS56: - | AU56: - | AW56: W6 x 15 | AX56: #2 | AY56: W8 x 18 | AZ56: #2 | BA56: W6 x 20 | BB56: #1 | BC56: W10 x 22 | BD56: #2 | BE56: W10 x 26 | BF56: #2 | BG56: W10 x 26 | BH56: #2 | BI56: W12 x 26 | BJ56: #2 | BK56: W18 x 35 | BL56: #3 | BM56: W18 x 35 | BN56: #3 | BO56: W21 x 44 | BP56: #3 | BQ56: - | BS56: - | BU56: - | BW56: - | BY56: - | CA56: - | CC56: -
B57: 11 | C57: W6 x 12 | D57: #2 | E57: W6 x 12 | F57: #2 | G57: W6 x 15 | H57: #1 | I57: W6 x 15 | J57: #1 | K57: W6 x 15 | L57: #1 | M57: W8 x 18 | N57: #2 | O57: W6 x 20 | P57: #1 | Q57: W6 x 20 | R57: #1S | S57: W8 x 21 | T57: #1 | U57: W10 x 26 | V57: #2 | W57: W10 x 26 | X57: #1 | Y57: W10 x 30 | Z57: #1 | AA57: W12 x 30 | AB57: #2 | AC57: W14 x 34 | AD57: #2 | AE57: W18 x 40 | AF57: #2 | AG57: W21 x 44 | AH57: #2 | AI57: - | AK57: - | AM57: - | AR57: 11 | AS57: - | AU57: - | AW57: W6 x 15 | AX57: #1 | AY57: W8 x 18 | AZ57: #2 | BA57: W8 x 21 | BB57: #2 | BC57: W10 x 22 | BD57: #2 | BE57: W10 x 26 | BF57: #2 | BG57: W12 x 26 | BH57: #2 | BI57: W14 x 30 | BJ57: #2 | BK57: W16 x 40 | BL57: #2 | BM57: W21 x 44 | BN57: #3 | BO57: - | BQ57: - | BS57: - | BU57: - | BW57: - | BY57: - | CA57: - | CC57: -
B58: 12 | C58: W6 x 12 | D58: #1 | E58: W6 x 15 | F58: #1 | G58: W6 x 15 | H58: #1 | I58: W6 x 15 | J58: #1 | K58: W8 x 18 | L58: #1 | M58: W6 x 20 | N58: #1 | O58: W6 x 20 | P58: #1 | Q58: W8 x 21 | R58: #1 | S58: W10 x 26 | T58: #1 | U58: W10 x 26 | V58: #1 | W58: W10 x 26 | X58: #1 | Y58: W12 x 30 | Z58: #2 | AA58: W14 x 34 | AB58: #2 | AC58: W16 x 36 | AD58: #2 | AE58: W18 x 40 | AF58: #2 | AG58: - | AI58: - | AK58: - | AM58: - | AR58: 12 | AS58: - | AU58: - | AW58: W8 x 18 | AX58: #2 | AY58: W6 x 20 | AZ58: #1 | BA58: W10 x 22 | BB58: #2 | BC58: W10 x 26 | BD58: #2 | BE58: W10 x 26 | BF58: #2 | BG58: W14 x 30 | BH58: #2 | BI58: W16 x 36 | BJ58: #2 | BK58: W18 x 40 | BL58: #2 | BM58: W21 x 44 | BN58: #3 | BO58: - | BQ58: - | BS58: - | BU58: - | BW58: - | BY58: - | CA58: - | CC58: -
B59: 13 | C59: W6 x 12 | D59: #1 | E59: W6 x 15 | F59: #1 | G59: W6 x 15 | H59: #1 | I59: W6 x 16 | J59: #1 | K59: W8 x 18 | L59: #1 | M59: W6 x 20 | N59: #1 | O59: W8 x 21 | P59: #1 | Q59: W10 x 26 | R59: #1 | S59: W10 x 26 | T59: #1 | U59: W10 x 26 | V59: #1 | W59: W10 x 30 | X59: #1 | Y59: W12 x 30 | Z59: #1 | AA59: W16 x 36 | AB59: #2 | AC59: W18 x 40 | AD59: #2 | AE59: - | AG59: - | AI59: - | AK59: - | AM59: - | AR59: 13 | AS59: - | AU59: - | AW59: W6 x 20 | AX59: #1 | AY59: W8 x 21 | AZ59: #1 | BA59: W10 x 26 | BB59: #2 | BC59: W10 x 26 | BD59: #2 | BE59: W12 x 30 | BF59: #2 | BG59: W14 x 34 | BH59: #2 | BI59: W18 x 40 | BJ59: #2 | BK59: W21 x 44 | BL59: #3 | BM59: - | BO59: - | BQ59: - | BS59: - | BU59: - | BW59: - | BY59: - | CA59: - | CC59: -
B60: 14 | C60: W6 x 15 | D60: #1 | E60: W6 x 15 | F60: #1 | G60: W6 x 15 | H60: #1 | I60: W8 x 18 | J60: #1 | K60: W6 x 20 | L60: #1 | M60: W6 x 20 | N60: #1 | O60: W8 x 24 | P60: #1 | Q60: W10 x 26 | R60: #1 | S60: W10 x 26 | T60: #1 | U60: W10 x 30 | V60: #1 | W60: W12 x 30 | X60: #1 | Y60: W14 x 34 | Z60: #1 | AA60: W16 x 40 | AB60: #2 | AC60: - | AE60: - | AG60: - | AI60: - | AK60: - | AM60: - | AR60: 14 | AS60: - | AU60: - | AW60: W6 x 20 | AX60: #1 | AY60: W10 x 26 | AZ60: #2 | BA60: W10 x 26 | BB60: #1 | BC60: W10 x 30 | BD60: #1 | BE60: W14 x 34 | BF60: #2 | BG60: W16 x 36 | BH60: #2 | BI60: - | BK60: - | BM60: - | BO60: - | BQ60: - | BS60: - | BU60: - | BW60: - | BY60: - | CA60: - | CC60: -
B61: 15 | C61: W6 x 15 | D61: #1 | E61: W6 x 15 | F61: #1 | G61: W8 x 18 | H61: #1 | I61: W6 x 20 | J61: #1 | K61: W6 x 20 | L61: #1 | M61: W8 x 24 | N61: #1 | O61: W10 x 26 | P61: #1 | Q61: W10 x 26 | R61: #1 | S61: W10 x 30 | T61: #1 | U61: W10 x 30 | V61: #1 | W61: W14 x 34 | X61: #1 | Y61: - | AA61: - | AC61: - | AE61: - | AG61: - | AI61: - | AK61: - | AM61: - | AR61: 15 | AS61: - | AU61: - | AW61: W8 x 21 | AX61: #1 | AY61: W10 x 26 | AZ61: #1 | BA61: W10 x 26 | BB61: #1 | BC61: W12 x 30 | BD61: #2 | BE61: W16 x 36 | BF61: #2 | BG61: - | BI61: - | BK61: - | BM61: - | BO61: - | BQ61: - | BS61: - | BU61: - | BW61: - | BY61: - | CA61: - | CC61: -
B62: 16 | C62: W6 x 15 | D62: #1 | E62: W6 x 16 | F62: #1 | G62: W8 x 18 | H62: #1 | I62: W6 x 20 | J62: #1 | K62: W6 x 20 | L62: #1 | M62: W8 x 24 | N62: #1 | O62: W10 x 26 | P62: #1 | Q62: W10 x 30 | R62: #1 | S62: W10 x 30 | T62: #1 | U62: W14 x 34 | V62: #1 | W62: W14 x 34 | X62: #1 | Y62: - | AA62: - | AC62: - | AE62: - | AG62: - | AI62: - | AK62: - | AM62: - | AR62: 16 | AS62: - | AU62: - | AW62: W8 x 24 | AX62: #1 | AY62: W10 x 26 | AZ62: #1 | BA62: W10 x 30 | BB62: #1 | BC62: W14 x 34 | BD62: #2 | BE62: W16 x 36 | BF62: #2 | BG62: - | BI62: - | BK62: - | BM62: - | BO62: - | BQ62: - | BS62: - | BU62: - | BW62: - | BY62: - | CA62: - | CC62: -
A63: 14 | B63: 7 | C63: W6 x 9 | D63: #3 | E63: W6 x 9 | F63: #2 | G63: W8 x 10 | H63: #3 | I63: W6 x 12 | J63: #2 | K63: W6 x 12 | L63: #2 | M63: W6 x 15 | N63: #2 | O63: W6 x 15 | P63: #2 | Q63: W6 x 15 | R63: #2S | S63: W8 x 18 | T63: #2 | U63: W8 x 18 | V63: #2S | W63: W10 x 22 | X63: #2 | Y63: W10 x 22 | Z63: #2 | AA63: W10 x 26 | AB63: #2 | AC63: W10 x 26 | AD63: #2S | AE63: W12 x 26 | AF63: #2S | AG63: W14 x 30 | AH63: #2S | AI63: W18 x 35 | AJ63: #3 | AK63: W21 x 44 | AL63: #3 | AM63: - | AQ63: 22 | AR63: 7 | AS63: - | AU63: - | AW63: W6 x 12 | AX63: #2 | AY63: W6 x 15 | AZ63: #2 | BA63: W6 x 15 | BB63: #2 | BC63: W8 x 18 | BD63: #2 | BE63: W8 x 18 | BF63: #2S | BG63: W10 x 22 | BH63: #2 | BI63: W10 x 22 | BJ63: #2 | BK63: W12 x 26 | BL63: #3 | BM63: W16 x 26 | BN63: #3 | BO63: W16 x 31 | BP63: #3 | BQ63: W18 x 35 | BR63: #3 | BS63: W21 x 44 | BT63: #3 | BU63: - | BW63: - | BY63: - | CA63: - | CC63: -
B64: 8 | C64: W6 x 9 | D64: #2 | E64: W6 x 9 | F64: #2 | G64: W6 x 12 | H64: #2 | I64: W6 x 12 | J64: #2 | K64: W6 x 15 | L64: #2 | M64: W6 x 15 | N64: #2 | O64: W6 x 15 | P64: #2 | Q64: W8 x 18 | R64: #2 | S64: W8 x 18 | T64: #2S | U64: W8 x 21 | V64: #2S | W64: W10 x 22 | X64: #2 | Y64: W10 x 26 | Z64: #2 | AA64: W10 x 26 | AB64: #2 | AC64: W12 x 26 | AD64: #2 | AE64: W14 x 30 | AF64: #2 | AG64: W18 x 35 | AH64: #2 | AI64: W18 x 40 | AJ64: #2 | AK64: W21 x 44 | AL64: #3 | AM64: - | AR64: 8 | AS64: - | AU64: - | AW64: W6 x 15 | AX64: #2 | AY64: W6 x 15 | AZ64: #2 | BA64: W6 x 15 | BB64: #2 | BC64: W8 x 18 | BD64: #2 | BE64: W10 x 22 | BF64: #2 | BG64: W10 x 22 | BH64: #2 | BI64: W10 x 26 | BJ64: #2 | BK64: W12 x 26 | BL64: #2 | BM64: W16 x 31 | BN64: #3 | BO64: W18 x 35 | BP64: #3 | BQ64: W21 x 44 | BR64: #3 | BS64: - | BU64: - | BW64: - | BY64: - | CA64: - | CC64: -
B65: 9 | C65: W6 x 9 | D65: #2 | E65: W6 x 12 | F65: #2 | G65: W6 x 12 | H65: #2 | I65: W6 x 15 | J65: #2 | K65: W6 x 15 | L65: #2 | M65: W6 x 15 | N65: #1 | O65: W8 x 18 | P65: #2 | Q65: W8 x 18 | R65: #2 | S65: W8 x 21 | T65: #2S | U65: W10 x 22 | V65: #2 | W65: W10 x 26 | X65: #2 | Y65: W10 x 26 | Z65: #2 | AA65: W12 x 26 | AB65: #2 | AC65: W14 x 30 | AD65: #2 | AE65: W16 x 36 | AF65: #2 | AG65: W18 x 40 | AH65: #2 | AI65: W21 x 44 | AJ65: #3 | AK65: - | AM65: - | AR65: 9 | AS65: - | AU65: - | AW65: W6 x 15 | AX65: #2 | AY65: W6 x 15 | AZ65: #2 | BA65: W8 x 18 | BB65: #2 | BC65: W8 x 21 | BD65: #2 | BE65: W10 x 22 | BF65: #2 | BG65: W10 x 26 | BH65: #2 | BI65: W12 x 26 | BJ65: #2 | BK65: W14 x 30 | BL65: #2 | BM65: W18 x 35 | BN65: #3 | BO65: W21 x 44 | BP65: #3 | BQ65: - | BS65: - | BU65: - | BW65: - | BY65: - | CA65: - | CC65: -
B66: 10 | C66: W6 x 12 | D66: #2 | E66: W6 x 12 | F66: #2 | G66: W6 x 15 | H66: #2 | I66: W6 x 15 | J66: #2 | K66: W6 x 15 | L66: #1 | M66: W8 x 18 | N66: #2 | O66: W8 x 18 | P66: #2 | Q66: W6 x 20 | R66: #1S | S66: W8 x 21 | T66: #1S | U66: W10 x 26 | V66: #2 | W66: W10 x 26 | X66: #2 | Y66: W10 x 26 | Z66: #1 | AA66: W12 x 30 | AB66: #2 | AC66: W16 x 36 | AD66: #2 | AE66: W18 x 40 | AF66: #2 | AG66: W21 x 44 | AH66: #3 | AI66: - | AK66: - | AM66: - | AR66: 10 | AS66: - | AU66: - | AW66: W6 x 15 | AX66: #2 | AY66: W8 x 18 | AZ66: #2 | BA66: W8 x 21 | BB66: #2 | BC66: W10 x 22 | BD66: #2 | BE66: W10 x 26 | BF66: #2 | BG66: W12 x 26 | BH66: #2 | BI66: W14 x 30 | BJ66: #2 | BK66: W18 x 35 | BL66: #3 | BM66: W21 x 44 | BN66: #3 | BO66: - | BQ66: - | BS66: - | BU66: - | BW66: - | BY66: - | CA66: - | CC66: -
B67: 11 | C67: W6 x 12 | D67: #2 | E67: W6 x 12 | F67: #2 | G67: W6 x 15 | H67: #1 | I67: W6 x 15 | J67: #1 | K67: W6 x 16 | L67: #1 | M67: W8 x 18 | N67: #2 | O67: W6 x 20 | P67: #1 | Q67: W8 x 21 | R67: #1 | S67: W10 x 26 | T67: #2 | U67: W10 x 26 | V67: #2 | W67: W10 x 26 | X67: #1 | Y67: W12 x 30 | Z67: #2 | AA67: W14 x 34 | AB67: #2 | AC67: W16 x 36 | AD67: #2 | AE67: W18 x 40 | AF67: #2 | AG67: - | AI67: - | AK67: - | AM67: - | AR67: 11 | AS67: - | AU67: - | AW67: W6 x 16 | AX67: #1 | AY67: W6 x 20 | AZ67: #1 | BA67: W8 x 21 | BB67: #2 | BC67: W10 x 26 | BD67: #2 | BE67: W10 x 26 | BF67: #2 | BG67: W12 x 26 | BH67: #2 | BI67: W18 x 35 | BJ67: #3 | BK67: W18 x 40 | BL67: #3 | BM67: W21 x 44 | BN67: #3 | BO67: - | BQ67: - | BS67: - | BU67: - | BW67: - | BY67: - | CA67: - | CC67: -
B68: 12 | C68: W6 x 12 | D68: #1 | E68: W6 x 15 | F68: #1 | G68: W6 x 15 | H68: #1 | I68: W6 x 15 | J68: #1 | K68: W8 x 18 | L68: #1 | M68: W6 x 20 | N68: #1 | O68: W8 x 21 | P68: #1 | Q68: W10 x 26 | R68: #2 | S68: W10 x 26 | T68: #1 | U68: W10 x 26 | V68: #1 | W68: W10 x 30 | X68: #1 | Y68: W14 x 34 | Z68: #2 | AA68: W16 x 36 | AB68: #2 | AC68: W18 x 40 | AD68: #2 | AE68: - | AG68: - | AI68: - | AK68: - | AM68: - | AR68: 12 | AS68: - | AU68: - | AW68: W8 x 18 | AX68: #2 | AY68: W8 x 21 | AZ68: #2 | BA68: W10 x 22 | BB68: #2 | BC68: W10 x 26 | BD68: #2 | BE68: W12 x 26 | BF68: #2 | BG68: W14 x 30 | BH68: #2 | BI68: W18 x 40 | BJ68: #2 | BK68: W21 x 44 | BL68: #3 | BM68: - | BO68: - | BQ68: - | BS68: - | BU68: - | BW68: - | BY68: - | CA68: - | CC68: -
B69: 13 | C69: W6 x 12 | D69: #1 | E69: W6 x 15 | F69: #1 | G69: W6 x 15 | H69: #1 | I69: W8 x 18 | J69: #1 | K69: W6 x 20 | L69: #1 | M69: W6 x 20 | N69: #1 | O69: W8 x 24 | P69: #1 | Q69: W10 x 26 | R69: #1 | S69: W10 x 26 | T69: #1 | U69: W10 x 30 | V69: #1 | W69: W12 x 30 | X69: #1 | Y69: W14 x 34 | Z69: #2 | AA69: W18 x 40 | AB69: #2 | AC69: - | AE69: - | AG69: - | AI69: - | AK69: - | AM69: - | AR69: 13 | AS69: - | AU69: - | AW69: W6 x 20 | AX69: #1 | AY69: W8 x 21 | AZ69: #1 | BA69: W10 x 26 | BB69: #2 | BC69: W10 x 26 | BD69: #1 | BE69: W12 x 30 | BF69: #2 | BG69: W16 x 36 | BH69: #2 | BI69: W18 x 40 | BJ69: #2 | BK69: - | BM69: - | BO69: - | BQ69: - | BS69: - | BU69: - | BW69: - | BY69: - | CA69: - | CC69: -
B70: 14 | C70: W6 x 15 | D70: #1 | E70: W6 x 15 | F70: #1 | G70: W6 x 16 | H70: #1 | I70: W6 x 20 | J70: #1 | K70: W6 x 20 | L70: #1 | M70: W8 x 21 | N70: #1 | O70: W10 x 26 | P70: #1 | Q70: W10 x 26 | R70: #1 | S70: W10 x 30 | T70: #1 | U70: W12 x 30 | V70: #1 | W70: W14 x 34 | X70: #2 | Y70: W16 x 36 | Z70: #2 | AA70: W18 x 40 | AB70: #2 | AC70: - | AE70: - | AG70: - | AI70: - | AK70: - | AM70: - | AR70: 14 | AS70: - | AU70: - | AW70: W6 x 20 | AX70: #1 | AY70: W10 x 26 | AZ70: #2 | BA70: W10 x 26 | BB70: #1 | BC70: W12 x 30 | BD70: #2 | BE70: W14 x 34 | BF70: #2 | BG70: W18 x 40 | BH70: #2 | BI70: - | BK70: - | BM70: - | BO70: - | BQ70: - | BS70: - | BU70: - | BW70: - | BY70: - | CA70: - | CC70: -
B71: 15 | C71: W6 x 15 | D71: #1 | E71: W6 x 15 | F71: #1 | G71: W8 x 18 | H71: #1 | I71: W6 x 20 | J71: #1 | K71: W6 x 20 | L71: #1 | M71: W8 x 24 | N71: #1 | O71: W10 x 26 | P71: #1 | Q71: W10 x 30 | R71: #1 | S71: W10 x 30 | T71: #1 | U71: W14 x 34 | V71: #1 | W71: W16 x 36 | X71: #2 | Y71: - | AA71: - | AC71: - | AE71: - | AG71: - | AI71: - | AK71: - | AM71: - | AR71: 15 | AS71: - | AU71: - | AW71: W10 x 22 | AX71: #1 | AY71: W10 x 26 | AZ71: #1 | BA71: W10 x 30 | BB71: #1 | BC71: W12 x 30 | BD71: #2 | BE71: W16 x 36 | BF71: #2 | BG71: - | BI71: - | BK71: - | BM71: - | BO71: - | BQ71: - | BS71: - | BU71: - | BW71: - | BY71: - | CA71: - | CC71: -
B72: 16 | C72: W6 x 15 | D72: #1 | E72: W8 x 18 | F72: #1 | G72: W6 x 20 | H72: #1 | I72: W6 x 20 | J72: #1 | K72: W8 x 24 | L72: #1 | M72: W10 x 26 | N72: #1 | O72: W10 x 26 | P72: #1 | Q72: W10 x 30 | R72: #1 | S72: W12 x 30 | T72: #1 | U72: W14 x 34 | V72: #1 | W72: - | Y72: - | AA72: - | AC72: - | AE72: - | AG72: - | AI72: - | AK72: - | AM72: - | AR72: 16 | AS72: - | AU72: - | AW72: W10 x 26 | AX72: #1 | AY72: W10 x 26 | AZ72: #1 | BA72: W10 x 30 | BB72: #1 | BC72: W14 x 34 | BD72: #2 | BE72: - | BG72: - | BI72: - | BK72: - | BM72: - | BO72: - | BQ72: - | BS72: - | BU72: - | BW72: - | BY72: - | CA72: - | CC72: -
A73: 15 | B73: 7 | C73: - | E73: W6 x 9 | F73: #2 | G73: W8 x 10 | H73: #3 | I73: W6 x 12 | J73: #2 | K73: W12 x 14 | L73: #3 | M73: W6 x 15 | N73: #2 | O73: W6 x 15 | P73: #2S | Q73: W6 x 15 | R73: #2S | S73: W8 x 18 | T73: #2S | U73: W8 x 21 | V73: #2S | W73: W10 x 22 | X73: #2 | Y73: W10 x 22 | Z73: #2 | AA73: W10 x 26 | AB73: #2S | AC73: W12 x 26 | AD73: #2 | AE73: W14 x 30 | AF73: #2 | AG73: W18 x 35 | AH73: #3 | AI73: W18 x 40 | AJ73: #3 | AK73: W21 x 44 | AL73: #3 | AM73: -
B74: 8 | C74: - | E74: W8 x 10 | F74: #3 | G74: W6 x 12 | H74: #2 | I74: W12 x 14 | J74: #3 | K74: W6 x 15 | L74: #2 | M74: W6 x 15 | N74: #2 | O74: W6 x 15 | P74: #2S | Q74: W8 x 18 | R74: #2 | S74: W8 x 21 | T74: #2S | U74: W10 x 22 | V74: #2 | W74: W10 x 22 | X74: #2 | Y74: W10 x 26 | Z74: #2 | AA74: W12 x 26 | AB74: #2 | AC74: W14 x 30 | AD74: #2 | AE74: W18 x 35 | AF74: #3 | AG74: W18 x 40 | AH74: #2 | AI74: W21 x 44 | AJ74: #3 | AK74: - | AM74: -
B75: 9 | C75: - | E75: W6 x 12 | F75: #2 | G75: W6 x 12 | H75: #2 | I75: W6 x 15 | J75: #2 | K75: W6 x 15 | L75: #2 | M75: W6 x 15 | N75: #1 | O75: W8 x 18 | P75: #2 | Q75: W6 x 20 | R75: #1S | S75: W8 x 21 | T75: #2S | U75: W10 x 22 | V75: #2 | W75: W10 x 26 | X75: #2 | Y75: W10 x 26 | Z75: #2 | AA75: W12 x 30 | AB75: #2 | AC75: W14 x 34 | AD75: #2 | AE75: W18 x 40 | AF75: #2 | AG75: W21 x 44 | AH75: #3 | AI75: - | AK75: - | AM75: -
B76: 10 | C76: - | E76: W6 x 12 | F76: #2 | G76: W6 x 15 | H76: #2 | I76: W6 x 15 | J76: #2 | K76: W6 x 15 | L76: #1 | M76: W8 x 18 | N76: #2 | O76: W6 x 20 | P76: #1S | Q76: W8 x 21 | R76: #1 | S76: W10 x 22 | T76: #2 | U76: W10 x 26 | V76: #2 | W76: W10 x 26 | X76: #2 | Y76: W12 x 30 | Z76: #2 | AA76: W14 x 30 | AB76: #2 | AC76: W16 x 36 | AD76: #2 | AE76: W18 x 40 | AF76: #2 | AG76: W21 x 44 | AH76: #2 | AI76: - | AK76: - | AM76: -
B77: 11 | C77: - | E77: W6 x 15 | F77: #2 | G77: W6 x 15 | H77: #1 | I77: W6 x 15 | J77: #1 | K77: W8 x 18 | L77: #2 | M77: W6 x 20 | N77: #1 | O77: W8 x 21 | P77: #1 | Q77: W10 x 22 | R77: #2 | S77: W10 x 26 | T77: #2 | U77: W10 x 26 | V77: #1 | W77: W10 x 30 | X77: #1 | Y77: W14 x 30 | Z77: #2 | AA77: W16 x 36 | AB77: #2 | AC77: W18 x 40 | AD77: #2 | AE77: W21 x 44 | AF77: #2 | AG77: - | AI77: - | AK77: - | AM77: -
B78: 12 | C78: - | E78: W6 x 15 | F78: #1 | G78: W6 x 15 | H78: #1 | I78: W6 x 16 | J78: #1 | K78: W8 x 18 | L78: #1 | M78: W6 x 20 | N78: #1 | O78: W8 x 21 | P78: #1 | Q78: W10 x 26 | R78: #2 | S78: W10 x 26 | T78: #1 | U78: W10 x 30 | V78: #1 | W78: W12 x 30 | X78: #2 | Y78: W14 x 34 | Z78: #2 | AA78: W18 x 40 | AB78: #2 | AC78: W21 x 44 | AD78: #2 | AE78: - | AG78: - | AI78: - | AK78: - | AM78: -
B79: 13 | C79: - | E79: W6 x 15 | F79: #1 | G79: W6 x 15 | H79: #1 | I79: W8 x 18 | J79: #1 | K79: W6 x 20 | L79: #1 | M79: W8 x 21 | N79: #1 | O79: W10 x 26 | P79: #1 | Q79: W10 x 26 | R79: #1 | S79: W10 x 26 | T79: #1 | U79: W12 x 30 | V79: #2 | W79: W14 x 34 | X79: #2 | Y79: W16 x 36 | Z79: #2 | AA79: W18 x 40 | AB79: #2 | AC79: - | AE79: - | AG79: - | AI79: - | AK79: - | AM79: -
B80: 14 | C80: - | E80: W6 x 15 | F80: #1 | G80: W8 x 18 | H80: #1 | I80: W6 x 20 | J80: #1 | K80: W6 x 20 | L80: #1 | M80: W8 x 24 | N80: #1 | O80: W10 x 26 | P80: #1 | Q80: W10 x 26 | R80: #1 | S80: W10 x 30 | T80: #1 | U80: W12 x 30 | V80: #1 | W80: W16 x 36 | X80: #2 | Y80: W18 x 40 | Z80: #2 | AA80: - | AC80: - | AE80: - | AG80: - | AI80: - | AK80: - | AM80: -
B81: 15 | C81: - | E81: W6 x 16 | F81: #1 | G81: W8 x 18 | H81: #1 | I81: W6 x 20 | J81: #1 | K81: W8 x 24 | L81: #1 | M81: W10 x 26 | N81: #1 | O81: W10 x 26 | P81: #1 | Q81: W10 x 30 | R81: #1 | S81: W12 x 30 | T81: #1 | U81: W14 x 34 | V81: #1 | W81: - | Y81: - | AA81: - | AC81: - | AE81: - | AG81: - | AI81: - | AK81: - | AM81: -
B82: 16 | C82: - | E82: W8 x 18 | F82: #1 | G82: W6 x 20 | H82: #1 | I82: W6 x 20 | J82: #1 | K82: W8 x 24 | L82: #1 | M82: W10 x 26 | N82: #1 | O82: W10 x 30 | P82: #1 | Q82: W10 x 30 | R82: #1 | S82: W14 x 34 | T82: #1 | U82: - | W82: - | Y82: - | AA82: - | AC82: - | AE82: - | AG82: - | AI82: - | AK82: - | AM82: -

Sheet Custom Design
A1: SPECIAL INSTRUCTIONS / RESTRICTIONS:
A2: Safety Result:
A6: Stiffness Check: | C6: NO RESTRICTIONS
A10: Shape | B10: Member Properties | H10: X-X Axis | K10: Y-Y Axis
B11: W (lb/ft) | C11: A (in2) | D11: D (in) | E11: Bf (in) | F11: Tw (in) | G11: Tf (in) | H11: Ix (in4) | I11: Sx (in3) | J11: Rx (in) | K11: Iy (in4) | L11: Sy (in3) | M11: Ry (in)
A12: - | B12: - | C12: - | D12: - | E12: - | F12: - | G12: - | H12: - | I12: - | J12: - | K12: - | L12: - | M12: -
A13: Post Design | G13: Analysis Result (Post Design)
A14: Sign Width | D14: W = | E14: 15 | G14: Radius of Gyration | K14: Rt = | L14: -
A15: Post Length | D15: L = | E15: 12 | G15: Actual Bending Stress | K15: fb = | L15: -
A16: Sign Height | D16: H = | E16: 18 | G16: Allowable Bending Stress
A17: Weight of Sign | D17: Ws = | E17: 3 | G17: Tension Flange | K17: Fbten = | L17: -
A18: Design Load (Wind) | D18: Pw = | E18: 23.0801901 | G18: Compression Flange | K18: Fbcomp = | L18: -
A19: Post Yield Strength | D19: Fy = | E19: 36000 | G19: Actual Compression Stress | K19: fa = | L19: -
A20: Modulus of Elasticity | D20: Es = | E20: 29000000 | G20: Allowable Compression Stress | K20: Fa = | L20: -
A21: Bending Coefficient | D21: Cb = | E21: 1 | G21: Combined Stress Ratio | K21: CSR = | L21: -
A22: Effective Length Factor | D22: K = | E22: 1.65
A23: Hinge Design | G23: Analysis Result (Hinge Design)
A24: Hinge Type (Fy = | C24: 90 | D24: - | G24: Actual Hinge Tension | K24: Tact = | L24: -
A25: Hinge Plate Acceptable, No Shim Plate Required | G25: Allowable Hinge Tension | K25: Tallow = | L25: -
A26: Bracket Design | G26: Analysis Result (Bracket Design)
A27: Bracket Type | E27: - | G27: Actual Bending Stress | K27: fb = | L27: -
A28: Anchor Bolt Spacing (Eccentricity) | E28: - | G28: Allowable Bending Stress | K28: Fb = | L28: -
A29: Tensile Ultimate Strength | D29: Ftu = | E29: 42000 | G29: Actual Shear Stress | K29: fv = | L29: -
A30: Tensile Yield Strength | D30: Fty = | E30: 35000 | G30: Allowable Shear Stress | K30: Fv = | L30: -
A31: Shear Yield Strength | D31: Fsy = | E31: 20000 | G31: Combined Stress Ratio | K31: CSR = | L31: -
A32: Coupling Design | G32: Analysis Result (Coupling Design)
A33: Coupling Yield Strength | D33: Fycoupling = | E33: 130000 | G33: Actual Coupling Tension | K33: ft,act = | L33: -
G34: Allowable Coupling Tension | K34: Ft,allow = | L34: -
A35: Safety Check | G35: Torsional Stiffness Check
A36: - | G36: OK

Sheet Custom Shape
A1: STRUCTURAL CHECKS RESULT:
A2: SECTION FAILS - SEE RESULTS BELOW
B3: Post Check: | D3: Post Acceptable
B4: Hinge Check: | D4: Hinge Plate Acceptable with Shim Plate
B5: Bracket Check: | D5: Bracket Not Accpetable, Increase Post Depth or Reduce Sign Dimensions
B6: Coupling Check: | D6: Coupling Acceptable
A8: SPECIAL INSTRUCTIONS / RESTRICTIONS:
A9: Safety Result: | C9: NO RESTRICTIONS
A13: Stiffness Check: | C13: NO RESTRICTIONS
A17: Shape | B17: Member Properties | H17: X-X Axis | K17: Y-Y Axis
B18: W (lb/ft) | C18: A (in2) | D18: D (in) | E18: Bf (in) | F18: Tw (in) | G18: Tf (in) | H18: Ix (in4) | I18: Sx (in3) | J18: Rx (in) | K18: Iy (in4) | L18: Sy (in3) | M18: Ry (in)
A19: W12 x 45 | B19: 45 | C19: 13.1 | D19: 12.1 | E19: 8.05 | F19: 0.335 | G19: 0.575 | H19: 348 | I19: 57.7 | J19: 5.15 | K19: 50 | L19: 12.4 | M19: 1.95
A20: Post Design | G20: Analysis Result (Post Design)
A21: Sign Width | D21: W = | E21: 15 | G21: Radius of Gyration | K21: Rt = | L21: 2.178041508
A22: Post Length | D22: L = | E22: 12 | G22: Actual Bending Stress | K22: fb = | L22: 13839.95399
A23: Sign Height | D23: H = | E23: 18 | G23: Allowable Bending Stress
A24: Weight of Sign | D24: Ws = | E24: 3 | G24: Tension Flange | K24: Fbten = | L24: 28728
A25: Design Load (Wind) | D25: Pw = | E25: 23.0801901 | G25: Compression Flange | K25: Fbcomp = | L25: 24228.02087
A26: Post Yield Strength | D26: Fy = | E26: 36000 | G26: Actual Compression Stress | K26: fa = | L26: 133.9694656
A27: Modulus of Elasticity | D27: Es = | E27: 29000000 | G27: Allowable Compression Stress | K27: Fa = | L27: 13321.72262
A28: Bending Coefficient | D28: Cb = | E28: 1 | G28: Combined Stress Ratio | K28: CSR = | L28: 0.5812939639
A29: Effective Length Factor | D29: K = | E29: 1.65
A30: Hinge Design | G30: Analysis Result (Hinge Design)
A31: Hinge Type | E31: HI-3 (B650) | G31: Actual Hinge Tension | K31: Tact = | L31: 14323.78533
A32: Hinge Yield Strength | D32: Fyhinge = | E32: 90000 | G32: Allowable Hinge Tension | K32: Tallow = | L32: 12173.49
A33: Shim Plate Thickness | D33: tshim = | E33: 1 | G33: Combined Stress Ratio (Hinge Only) | K33: CSR = | L33: 1.176637541
A34: Shim Plate Required on Each Flange | G34: Combined Stress Ratio (Shim+Hinge) | K34: CSR = | L34: 0.9802406172
A35: Bracket Design | G35: Analysis Result (Bracket Design)
A36: Bracket Type | E36: B-650 | F36: #1 | G36: Actual Bending Stress | K36: fb = | L36: 51022.52822
A37: Anchor Bolt Spacing (Eccentricity) | E37: 20.058 | G37: Allowable Bending Stress | K37: Fb = | L37: 36675.75758
A38: Tensile Ultimate Strength | D38: Ftu = | E38: 42000 | G38: Actual Shear Stress | K38: fv = | L38: 5002.208649
A39: Tensile Yield Strength | D39: Fty = | E39: 35000 | G39: Allowable Shear Stress | K39: Fv = | L39: 16121.21212
A40: Shear Yield Strength | D40: Fsy = | E40: 20000 | G40: Combined Stress Ratio | K40: CSR = | L40: 1.487456834
A41: Coupling Design | G41: Analysis Result (Coupling Design)
A42: Coupling Yield Strength | D42: Fy,coupling = | E42: 130000 | G42: Actual Coupling Tension | K42: ft,act = | L42: 87042.68968
A43: Actual Coupling Shear | D43: fv,act = | E43: 3070.899749 | G43: Allowable Coupling Tension | K43: Ft,allow = | L43: 103740
A44: Allowable Coupling Shear | D44: Fv,allow = | E44: 57057 | G44: Combined Stress Ratio | K44: CSR = | L44: 0.8419433216
A45: Safety Check | G45: Torsional Stiffness and Bending Strength
A46: OK | G46: Torsional Stiffness Check | L46: OK
A47: Post Unit Weight < 18 lb/ft (for Clearance < 7 ft.) | F47: N/A | G47: Aluminum Panel Bending Capacity check: | L47: OK | N47: 0
A48: Post Unit Weight ≤ 45 lb/ft (for Clearance ≥ 7 ft.) | F48: OK | N48: 1
A49: Total Weight below Hinge ≤ 600 lbs. | F49: OK | N49: 0.9315998553

Sheet Merritt
A1: SPACING REQUIREMENTS
A2: W | B2: H
B3: 4 | C3: 5 | D3: 6 | E3: 7 | F3: 8 | G3: 9 | H3: 10 | I3: 11 | J3: 12 | K3: 13 | L3: 14 | M3: 15 | N3: 16 | O3: 17 | P3: 18 | Q3: 19 | R3: 20 | S3: 21 | T3: 22
A4: 8 | B4: 3.609152234 | C4: 3.649128626 | D4: 3.656729155 | E4: 3.657365055 | F4: 3.653874595 | G4: 3.621039939 | H4: 3.589465816 | I4: 3.559047043 | J4: 3.529691824 | K4: 3.501319545 | L4: 3.473858995 | M4: 3.447246937 | N4: 3.421426934 | O4: 3.408215477 | P4: 3.395480462 | Q4: 3.38318913 | R4: 3.371311946 | S4: 3.359822192 | T4: 3.34869562 | V4: 4 | W4: 5 | X4: 6 | Y4: 7 | Z4: 8 | AA4: 9 | AB4: 10 | AC4: 11 | AD4: 12 | AE4: 13 | AF4: 14 | AG4: 15 | AH4: 16 | AI4: 17 | AJ4: 18 | AK4: 19 | AL4: 20 | AM4: 21 | AN4: 22 | AP4: 4 | AQ4: 5 | AR4: 6 | AS4: 7 | AT4: 8 | AU4: 9 | AV4: 10 | AW4: 11 | AX4: 12 | AY4: 13 | AZ4: 14 | BA4: 15 | BB4: 16 | BC4: 17 | BD4: 18 | BE4: 19 | BF4: 20 | BG4: 21 | BH4: 22 | BJ4: 4 | BK4: 5 | BL4: 6 | BM4: 7 | BN4: 8 | BO4: 9 | BP4: 10 | BQ4: 11 | BR4: 12 | BS4: 13 | BT4: 14 | BU4: 15 | BV4: 16 | BW4: 17 | BX4: 18 | BY4: 19 | BZ4: 20 | CA4: 21 | CB4: 22 | CD4: 4 | CE4: 5 | CF4: 6 | CG4: 7 | CH4: 8 | CI4: 9 | CJ4: 10 | CK4: 11 | CL4: 12 | CM4: 13 | CN4: 14 | CO4: 15 | CP4: 16 | CQ4: 17 | CR4: 18 | CS4: 19 | CT4: 20 | CU4: 21 | CV4: 22 | CX4: 4 | CY4: 5 | CZ4: 6 | DA4: 7 | DB4: 8 | DC4: 9 | DD4: 10 | DE4: 11 | DF4: 12 | DG4: 13 | DH4: 14 | DI4: 15 | DJ4: 16 | DK4: 17 | DL4: 18 | DM4: 19 | DN4: 20 | DO4: 21 | DP4: 22 | DR4: 4 | DS4: 5 | DT4: 6 | DU4: 7 | DV4: 8 | DW4: 9 | DX4: 10 | DY4: 11 | DZ4: 12 | EA4: 13 | EB4: 14 | EC4: 15 | ED4: 16 | EE4: 17 | EF4: 18 | EG4: 19 | EH4: 20 | EI4: 21 | EJ4: 22 | EL4: 4 | EM4: 5 | EN4: 6 | EO4: 7 | EP4: 8 | EQ4: 9 | ER4: 10 | ES4: 11 | ET4: 12 | EU4: 13 | EV4: 14 | EW4: 15 | EX4: 16 | EY4: 17 | EZ4: 18 | FA4: 19 | FB4: 20 | FC4: 21 | FD4: 22 | FF4: 4 | FG4: 5 | FH4: 6 | FI4: 7 | FJ4: 8 | FK4: 9 | FL4: 10 | FM4: 11 | FN4: 12 | FO4: 13 | FP4: 14 | FQ4: 15 | FR4: 16 | FS4: 17 | FT4: 18 | FU4: 19 | FV4: 20 | FW4: 21 | FX4: 22 | FZ4: 4 | GA4: 5 | GB4: 6 | GC4: 7 | GD4: 8 | GE4: 9 | GF4: 10 | GG4: 11 | GH4: 12 | GI4: 13 | GJ4: 14 | GK4: 15 | GL4: 16 | GM4: 17 | GN4: 18 | GO4: 19 | GP4: 20 | GQ4: 21 | GR4: 22 | GT4: 4 | GU4: 5 | GV4: 6 | GW4: 7 | GX4: 8 | GY4: 9 | GZ4: 10 | HA4: 11 | HB4: 12 | HC4: 13 | HD4: 14 | HE4: 15 | HF4: 16 | HG4: 17 | HH4: 18 | HI4: 19 | HJ4: 20 | HK4: 21 | HL4: 22 | HN4: 4 | HO4: 5 | HP4: 6 | HQ4: 7 | HR4: 8 | HS4: 9 | HT4: 10 | HU4: 11 | HV4: 12 | HW4: 13 | HX4: 14 | HY4: 15 | HZ4: 16 | IA4: 17 | IB4: 18 | IC4: 19 | ID4: 20 | IE4: 21 | IF4: 22 | IH4: 4 | II4: 5 | IJ4: 6 | IK4: 7 | IL4: 8 | IM4: 9 | IN4: 10 | IO4: 11 | IP4: 12 | IQ4: 13 | IR4: 14 | IS4: 15 | IT4: 16 | IU4: 17 | IV4: 18
A5: 9 | B5: 3.607889189 | C5: 3.627342589 | D5: 3.638213952 | E5: 3.641288648 | F5: 3.639684737 | G5: 3.635157107 | H5: 3.60490445 | I5: 3.57576698 | J5: 3.547654749 | K5: 3.520488842 | L5: 3.494199623 | M5: 3.468725318 | N5: 3.444010856 | O5: 3.420006917 | P5: 3.396669147 | Q5: 3.38443891 | R5: 3.372622466 | S5: 3.361193108 | T5: 3.350126603 | V5: 4 | W5: 5 | X5: 6 | Y5: 7 | Z5: 8 | AA5: 9 | AB5: 10 | AC5: 11 | AD5: 12 | AE5: 13 | AF5: 14 | AG5: 15 | AH5: 16 | AI5: 17 | AJ5: 18 | AK5: 19 | AL5: 20 | AM5: 21 | AN5: 22
A6: 10 | B6: 3.606627468 | C6: 3.605942151 | D6: 3.619977176 | E6: 3.625422391 | F6: 3.625658925 | G6: 3.622600396 | H6: 3.617399823 | I6: 3.589313933 | J6: 3.562224234 | K6: 3.536053058 | L6: 3.510731921 | M6: 3.486200116 | N6: 3.462403568 | O6: 3.439293889 | P6: 3.416827598 | Q6: 3.394965468 | R6: 3.373671983 | S6: 3.362291051 | T6: 3.351272711 | AP6: 4 | AQ6: 5 | AR6: 6 | AS6: 7 | AT6: 8 | AU6: 9 | AV6: 10 | AW6: 11 | AX6: 12 | AY6: 13 | AZ6: 14 | BA6: 15 | BB6: 16 | BC6: 17 | BD6: 18 | BE6: 19 | BF6: 20 | BG6: 21 | BH6: 22
A7: 11 | B7: 3.605367071 | C7: 3.604932508 | D7: 3.602011918 | E7: 3.609761745 | F7: 3.611794022 | G7: 3.610172913 | H7: 3.606148164 | I7: 3.600513067 | J7: 3.574279173 | K7: 3.548942121 | L7: 3.5244343 | M7: 3.500695813 | N7: 3.477673338 | O7: 3.455319191 | P7: 3.433590549 | Q7: 3.412448805 | R7: 3.391859026 | S7: 3.371789492 | T7: 3.352211312 | BJ7: 4 | BK7: 5 | BL7: 6 | BM7: 7 | BN7: 8 | BO7: 9 | BP7: 10 | BQ7: 11 | BR7: 12 | BS7: 13 | BT7: 14 | BU7: 15 | BV7: 16 | BW7: 17 | BX7: 18 | BY7: 19 | BZ7: 20 | CA7: 21 | CB7: 22
A8: 12 | B8: 3.604107994 | C8: 3.603923712 | D8: 3.584311506 | E8: 3.594302309 | F8: 3.598086974 | G8: 3.597872459 | H8: 3.595000848 | I8: 3.59032772 | J8: 3.584418992 | K8: 3.559791352 | L8: 3.535976338 | M8: 3.512914684 | N8: 3.490553654 | O8: 3.468846111 | P8: 3.447749745 | Q8: 3.42722643 | R8: 3.407241685 | S8: 3.387764218 | T8: 3.368765542 | CD8: 4 | CE8: 5 | CF8: 6 | CG8: 7 | CH8: 8 | CI8: 9 | CJ8: 10 | CK8: 11 | CL8: 12 | CM8: 13 | CN8: 14 | CO8: 15 | CP8: 16 | CQ8: 17 | CR8: 18 | CS8: 19 | CT8: 20 | CU8: 21 | CV8: 22
A9: 13 | B9: 3.602850235 | C9: 3.602915762 | D9: 3.583475125 | E9: 3.57903981 | F9: 3.584534809 | G9: 3.585696883 | H9: 3.583956272 | I9: 3.580228325 | J9: 3.575120873 | K9: 3.569049603 | L9: 3.545831756 | M9: 3.523354275 | N9: 3.501564891 | O9: 3.480416904 | P9: 3.459868411 | Q9: 3.439881667 | R9: 3.420422553 | S9: 3.401460116 | T9: 3.382966188 | CX9: 4 | CY9: 5 | CZ9: 6 | DA9: 7 | DB9: 8 | DC9: 9 | DD9: 10 | DE9: 11 | DF9: 12 | DG9: 13 | DH9: 14 | DI9: 15 | DJ9: 16 | DK9: 17 | DL9: 18 | DM9: 19 | DN9: 20 | DO9: 21 | DP9: 22
A10: 14 | B10: 3.601593792 | C10: 3.601908658 | D10: 3.582639329 | E10: 3.563970102 | F10: 3.571134632 | G10: 3.573644086 | H10: 3.573012869 | I10: 3.570213681 | J10: 3.565894739 | K10: 3.560500968 | L10: 3.55434517 | M10: 3.532376964 | N10: 3.511086499 | O10: 3.490427429 | P10: 3.470358182 | Q10: 3.450841325 | R10: 3.431843028 | S10: 3.413332613 | T10: 3.395282174 | DR10: 4 | DS10: 5 | DT10: 6 | DU10: 7 | DV10: 8 | DW10: 9 | DX10: 10 | DY10: 11 | DZ10: 12 | EA10: 13 | EB10: 14 | EC10: 15 | ED10: 16 | EE10: 17 | EF10: 18 | EG10: 19 | EH10: 20 | EI10: 21 | EJ10: 22
A11: 15 | B11: 3.600338662 | C11: 3.600902397 | D11: 3.581804118 | E11: 3.563257237 | F11: 3.557883623 | G11: 3.561712019 | H11: 3.562169102 | I11: 3.560282608 | J11: 3.556739667 | K11: 3.552013469 | L11: 3.546437829 | M11: 3.540252953 | N11: 3.519401695 | O11: 3.499173447 | P11: 3.479526912 | Q11: 3.460424912 | R11: 3.441833858 | S11: 3.423723299 | T11: 3.406065543 | EL11: 4 | EM11: 5 | EN11: 6 | EO11: 7 | EP11: 8 | EQ11: 9 | ER11: 10 | ES11: 11 | ET11: 12 | EU11: 13 | EV11: 14 | EW11: 15 | EX11: 16 | EY11: 17 | EZ11: 18 | FA11: 19 | FB11: 20 | FC11: 21 | FD11: 22
A12: 16 | B12: 3.599084844 | C12: 3.59989698 | D12: 3.58096949 | E12: 3.562544799 | F12: 3.544779035 | G12: 3.549898679 | H12: 3.551423469 | I12: 3.550433952 | J12: 3.547654749 | K12: 3.543586379 | L12: 3.538583029 | M12: 3.532900395 | N12: 3.52672616 | O12: 3.506880388 | P12: 3.487609448 | Q12: 3.468876377 | R12: 3.450647788 | S12: 3.432893418 | T12: 3.415585755 | FF12: 4 | FG12: 5 | FH12: 6 | FI12: 7 | FJ12: 8 | FK12: 9 | FL12: 10 | FM12: 11 | FN12: 12 | FO12: 13 | FP12: 14 | FQ12: 15 | FR12: 16 | FS12: 17 | FT12: 18 | FU12: 19 | FV12: 20 | FW12: 21 | FX12: 22
A13: 17 | B13: 3.597832335 | C13: 3.598892404 | D13: 3.580135446 | E13: 3.561832788 | F13: 3.544158613 | G13: 3.538202112 | H13: 3.540774499 | I13: 3.540666577 | J13: 3.538639093 | K13: 3.535218985 | L13: 3.53078019 | M13: 3.525593458 | N13: 3.519858138 | O13: 3.513723088 | P13: 3.494788068 | Q13: 3.476385204 | R13: 3.458481277 | S13: 3.441046188 | T13: 3.424052572 | FZ13: 4 | GA13: 5 | GB13: 6 | GC13: 7 | GD13: 8 | GE13: 9 | GF13: 10 | GG13: 11 | GH13: 12 | GI13: 13 | GJ13: 14 | GK13: 15 | GL13: 16 | GM13: 17 | GN13: 18 | GO13: 19 | GP13: 20 | GQ13: 21 | GR13: 22
A14: 18 | B14: 3.596581133 | C14: 3.597888669 | D14: 3.579301984 | E14: 3.561121205 | F14: 3.543538517 | G14: 3.526620404 | H14: 3.530220752 | I14: 3.530979373 | J14: 3.529691824 | K14: 3.526910586 | L14: 3.523028743 | M14: 3.518331672 | N14: 3.513030085 | O14: 3.507281794 | P14: 3.501206417 | Q14: 3.483100814 | R14: 3.465489352 | S14: 3.448342069 | T14: 3.43163173 | GT14: 4 | GU14: 5 | GV14: 6 | GW14: 7 | GX14: 8 | GY14: 9 | GZ14: 10 | HA14: 11 | HB14: 12 | HC14: 13 | HD14: 14 | HE14: 15 | HF14: 16 | HG14: 17 | HH14: 18 | HI14: 19 | HJ14: 20 | HK14: 21 | HL14: 22
A15: 19 | B15: 3.595331235 | C15: 3.596885773 | D15: 3.578469104 | E15: 3.560410047 | F15: 3.542918747 | G15: 3.526071727 | H15: 3.519760815 | I15: 3.521371248 | J15: 3.520812083 | K15: 3.518660491 | L15: 3.515328124 | M15: 3.511114573 | N15: 3.506241614 | O15: 3.500875794 | P15: 3.495143718 | Q15: 3.489142624 | R15: 3.47179598 | S15: 3.454909452 | T15: 3.438455916 | HN15: 4 | HO15: 5 | HP15: 6 | HQ15: 7 | HR15: 8 | HS15: 9 | HT15: 10 | HU15: 11 | HV15: 12 | HW15: 13 | HX15: 14 | HY15: 15 | HZ15: 16 | IA15: 17 | IB15: 18 | IC15: 19 | ID15: 20 | IE15: 21 | IF15: 22
A16: 20 | B16: 3.594082639 | C16: 3.595883716 | D16: 3.577636805 | E16: 3.559699315 | F16: 3.542299301 | G16: 3.525523307 | H16: 3.509393309 | I16: 3.511841132 | J16: 3.511999022 | K16: 3.510468023 | L16: 3.507677782 | M16: 3.503941707 | N16: 3.499492346 | O16: 3.494504768 | P16: 3.489112404 | Q16: 3.483418022 | R16: 3.477501483 | S16: 3.460852291 | T16: 3.44463262 | IH16: 4 | II16: 5 | IJ16: 6 | IK16: 7 | IL16: 8 | IM16: 9 | IN16: 10 | IO16: 11 | IP16: 12 | IQ16: 13 | IR16: 14 | IS16: 15 | IT16: 16 | IU16: 17 | IV16: 18
A17: 21 | B17: 3.591838441 | C17: 3.594882495 | D17: 3.576805086 | E17: 3.558989009 | F17: 3.54168018 | G17: 3.524975142 | H17: 3.5089019 | I17: 3.502387976 | J17: 3.503251813 | K17: 3.502332512 | L17: 3.500077171 | M17: 3.496812622 | N17: 3.492781904 | O17: 3.488168399 | P17: 3.483112206 | Q17: 3.477721504 | R17: 3.472080589 | S17: 3.466255654 | T17: 3.450249844
A18: 22 | B18: 3.589598442 | C18: 3.59388211 | D18: 3.575973948 | E18: 3.558279128 | F18: 3.541061384 | G18: 3.524427232 | H18: 3.508410698 | I18: 3.493010749 | J18: 3.494569639 | K18: 3.494253303 | L18: 3.492525755 | M18: 3.489726875 | N18: 3.486109917 | O18: 3.481866373 | P18: 3.477142858 | Q18: 3.472052843 | R18: 3.466684967 | S18: 3.461109021 | T18: 3.45538033
B19: NOTE : | C19: Result = "-NA-" = No Spacing Restriction
C20: Result = "Number" = Spacing Req'd
A22: SPACING REQUIREMENTS
A23: W | B23: H
B24: 4 | C24: 5 | D24: 6 | E24: 7 | F24: 8 | G24: 9 | H24: 10 | I24: 11 | J24: 12 | K24: 13 | L24: 14 | M24: 15 | N24: 16 | O24: 17 | P24: 18 | Q24: 19 | R24: 20 | S24: 21 | T24: 22
A25: 8 | B25: 3.609152234 | C25: 3.649128626 | D25: 3.656729155 | E25: 3.657365055 | F25: 3.653874595 | G25: 3.621039939 | H25: 3.589465816 | I25: 3.559047043 | J25: 3.529691824 | K25: 3.501319545 | L25: 3.473858995 | M25: 3.447246937 | N25: 3.421426934 | O25: 3.408215477 | P25: 3.395480462 | Q25: 3.38318913 | R25: 3.371311946 | S25: 3.359822192 | T25: 3.34869562
A26: 9 | B26: 3.607889189 | C26: 3.627342589 | D26: 3.638213952 | E26: 3.641288648 | F26: 3.639684737 | G26: 3.635157107 | H26: 3.60490445 | I26: 3.57576698 | J26: 3.547654749 | K26: 3.520488842 | L26: 3.494199623 | M26: 3.468725318 | N26: 3.444010856 | O26: 3.420006917 | P26: 3.396669147 | Q26: 3.38443891 | R26: 3.372622466 | S26: 3.361193108 | T26: 3.350126603
A27: 10 | B27: 3.606627468 | C27: 3.605942151 | D27: 3.619977176 | E27: 3.625422391 | F27: 3.625658925 | G27: 3.622600396 | H27: 3.617399823 | I27: 3.589313933 | J27: 3.562224234 | K27: 3.536053058 | L27: 3.510731921 | M27: 3.486200116 | N27: 3.462403568 | O27: 3.439293889 | P27: 3.416827598 | Q27: 3.394965468 | R27: 3.373671983 | S27: 3.362291051 | T27: 3.351272711
A28: 11 | B28: 3.605367071 | C28: 3.604932508 | D28: 3.602011918 | E28: 3.609761745 | F28: 3.611794022 | G28: 3.610172913 | H28: 3.606148164 | I28: 3.600513067 | J28: 3.574279173 | K28: 3.548942121 | L28: 3.5244343 | M28: 3.500695813 | N28: 3.477673338 | O28: 3.455319191 | P28: 3.433590549 | Q28: 3.412448805 | R28: 3.391859026 | S28: 3.371789492 | T28: 3.352211312
A29: 12 | B29: 3.604107994 | C29: 3.603923712 | D29: 3.584311506 | E29: 3.594302309 | F29: 3.598086974 | G29: 3.597872459 | H29: 3.595000848 | I29: 3.59032772 | J29: 3.584418992 | K29: 3.559791352 | L29: 3.535976338 | M29: 3.512914684 | N29: 3.490553654 | O29: 3.468846111 | P29: 3.447749745 | Q29: 3.42722643 | R29: 3.407241685 | S29: 3.387764218 | T29: 3.368765542
A30: 13 | B30: 3.602850235 | C30: 3.602915762 | D30: 3.583475125 | E30: 3.57903981 | F30: 3.584534809 | G30: 3.585696883 | H30: 3.583956272 | I30: 3.580228325 | J30: 3.575120873 | K30: 3.569049603 | L30: 3.545831756 | M30: 3.523354275 | N30: 3.501564891 | O30: 3.480416904 | P30: 3.459868411 | Q30: 3.439881667 | R30: 3.420422553 | S30: 3.401460116 | T30: 3.382966188
A31: 14 | B31: 3.601593792 | C31: 3.601908658 | D31: 3.582639329 | E31: 3.563970102 | F31: 3.571134632 | G31: 3.573644086 | H31: 3.573012869 | I31: 3.570213681 | J31: 3.565894739 | K31: 3.560500968 | L31: 3.55434517 | M31: 3.532376964 | N31: 3.511086499 | O31: 3.490427429 | P31: 3.470358182 | Q31: 3.450841325 | R31: 3.431843028 | S31: 3.413332613 | T31: 3.395282174
A32: 15 | B32: 3.600338662 | C32: 3.600902397 | D32: 3.581804118 | E32: 3.563257237 | F32: 3.557883623 | G32: 3.561712019 | H32: 3.562169102 | I32: 3.560282608 | J32: 3.556739667 | K32: 3.552013469 | L32: 3.546437829 | M32: 3.540252953 | N32: 3.519401695 | O32: 3.499173447 | P32: 3.479526912 | Q32: 3.460424912 | R32: 3.441833858 | S32: 3.423723299 | T32: 3.406065543
A33: 16 | B33: 3.599084844 | C33: 3.59989698 | D33: 3.58096949 | E33: 3.562544799 | F33: 3.544779035 | G33: 3.549898679 | H33: 3.551423469 | I33: 3.550433952 | J33: 3.547654749 | K33: 3.543586379 | L33: 3.538583029 | M33: 3.532900395 | N33: 3.52672616 | O33: 3.506880388 | P33: 3.487609448 | Q33: 3.468876377 | R33: 3.450647788 | S33: 3.432893418 | T33: 3.415585755
A34: 17 | B34: 3.597832335 | C34: 3.598892404 | D34: 3.580135446 | E34: 3.561832788 | F34: 3.544158613 | G34: 3.538202112 | H34: 3.540774499 | I34: 3.540666577 | J34: 3.538639093 | K34: 3.535218985 | L34: 3.53078019 | M34: 3.525593458 | N34: 3.519858138 | O34: 3.513723088 | P34: 3.494788068 | Q34: 3.476385204 | R34: 3.458481277 | S34: 3.441046188 | T34: 3.424052572
A35: 18 | B35: 3.596581133 | C35: 3.597888669 | D35: 3.579301984 | E35: 3.561121205 | F35: 3.543538517 | G35: 3.526620404 | H35: 3.530220752 | I35: 3.530979373 | J35: 3.529691824 | K35: 3.526910586 | L35: 3.523028743 | M35: 3.518331672 | N35: 3.513030085 | O35: 3.507281794 | P35: 3.501206417 | Q35: 3.483100814 | R35: 3.465489352 | S35: 3.448342069 | T35: 3.43163173
A36: 19 | B36: 3.595331235 | C36: 3.596885773 | D36: 3.578469104 | E36: 3.560410047 | F36: 3.542918747 | G36: 3.526071727 | H36: 3.519760815 | I36: 3.521371248 | J36: 3.520812083 | K36: 3.518660491 | L36: 3.515328124 | M36: 3.511114573 | N36: 3.506241614 | O36: 3.500875794 | P36: 3.495143718 | Q36: 3.489142624 | R36: 3.47179598 | S36: 3.454909452 | T36: 3.438455916
A37: 20 | B37: 3.594082639 | C37: 3.595883716 | D37: 3.577636805 | E37: 3.559699315 | F37: 3.542299301 | G37: 3.525523307 | H37: 3.509393309 | I37: 3.511841132 | J37: 3.511999022 | K37: 3.510468023 | L37: 3.507677782 | M37: 3.503941707 | N37: 3.499492346 | O37: 3.494504768 | P37: 3.489112404 | Q37: 3.483418022 | R37: 3.477501483 | S37: 3.460852291 | T37: 3.44463262
A38: 21 | B38: 3.591838441 | C38: 3.594882495 | D38: 3.576805086 | E38: 3.558989009 | F38: 3.54168018 | G38: 3.524975142 | H38: 3.5089019 | I38: 3.502387976 | J38: 3.503251813 | K38: 3.502332512 | L38: 3.500077171 | M38: 3.496812622 | N38: 3.492781904 | O38: 3.488168399 | P38: 3.483112206 | Q38: 3.477721504 | R38: 3.472080589 | S38: 3.466255654 | T38: 3.450249844
A39: 22 | B39: 3.589598442 | C39: 3.59388211 | D39: 3.575973948 | E39: 3.558279128 | F39: 3.541061384 | G39: 3.524427232 | H39: 3.508410698 | I39: 3.493010749 | J39: 3.494569639 | K39: 3.494253303 | L39: 3.492525755 | M39: 3.489726875 | N39: 3.486109917 | O39: 3.481866373 | P39: 3.477142858 | Q39: 3.472052843 | R39: 3.466684967 | S39: 3.461109021 | T39: 3.45538033

Sheet Design Basis
A1: A. Post Design
B32: 1. Variables
C33: Pw ---> | D33: Pressure Due to Wind Load (psf)
C34: FD ---> | D34: Axial Load Due to Dead Load (lbs)
D35: Includes Ws (Sign Weight) and g (Post Weight)
C36: Mw ---> | D36: Moment at the Base of the Column Due to Wind Load (ft-lb)
B38: 2. Bending Analysis
C39: Cb ---> | D39: Bending Coefficient
D40: (Per Section 5.7.1.2 Commentary, Cb = 1.0 for cantilevers)
C41: fb -----> | D41: Actual Bending Stress in Post (psi)
C42: Fb ----> | D42: Allowable Bending Stress in Post (psi)
D43: (Calculated for the tension and Compression Flange)
C44: Actual Bending Stress:
C49: Allowable Bending Stress:
B71: 3. Compression Analysis | E71: (Section 5.10)
C72: K -----> | D72: Effective Length Factor
C74: fa -----> | D74: Actual Compression Stress in Post (psi)
C75: Fa ----> | D75: Allowable Compression Stress in Post (psi)
B102: 4. Combined Stress Ratio
C103: CSR -> | D103: Combined Stress Ratio
A126: B. Hinge Design
B154: 1. Variables
C155: Pw ---> | D155: Pressure Due to Wind Load (psf)
C156: FW ---> | D156: Resultant Force Due to Wind Load (lbs)
C157: RA ---> | D157: Resulting Compression Load in Hinge Plate (lbs)
C158: RB ---> | D158: Resulting Tension Load in Hinge Plate (lbs)
B160: 2. Tension Analysis
A187: Note: | B187: 1. Apply a 33% Increase in Allowable Load for Wind Load per Table 3-1
B188: 2. Shear Stress is not included in the CSR calculation because shear force is relatively negligible compared to axial tension. The hinge will unlikely to fail due to shear.
A189: C. Bracket Design
B239: 1. Variables
C240: Pw ---> | D240: Pressure Due to Wind Load (psf)
C241: P2 ---> | D241: Resultant Force due to Wind Load on Sign Panel (lbs)
C242: P3 ---> | D242: Resultant Force due to Wind Load on Post Flange (lbs)
C243: RA ---> | D243: Resulting Tension Load in Bracket at Centerline of Boss(lbs)
C244: RB ---> | D244: Resulting Compression Load in Bracket at Centerline of Boss (lbs)
C245: E ----> | D245: Bracket Eccentricity (in) - distance from Boss-Centerline to outer face of vertical leg
C246: D ----> | D246: Post Depth (in)
C247: V ----> | D247: Bracket Vertical Leg Thickness (in)
C248: H ----> | D248: Bracket Horizontal Leg Thickness (in)
B250: 2. Constants and Factor of Safety - Aluminum Design
C254: Nu ---> | D254: Factor of Safety on Ultimate Strength (See Section 6.4)
C255: Ny ---> | D255: Factor of Safety on Yield Strength (See Section 6.4)
C256: Kt ---> | D256: Coefficient for Tension Members (See Table 6-6)
B258: 3. Section Properties
B287: 4. Bending and Shear Analysis
C288: Ws --> | D288: Weight of Sign (psf)
C289: Wp --> | D289: Weight of Post (plf)
C290: fb ----> | D290: Actual Bending Stress in Bracket (psi)
C291: Fb ---> | D291: Allowable Bending Stress in Bracket (psi)
C292: Refer to "Bracket Detail" on Sheet 9 for Additional Variables
B294: Reactions:
C295: Gravity Load:
C299: Wind Load:
G302: (Bf: Post Flange Width)
C304: Bracket Loads:
D312: RBracket = Max (|+RBracket|, |-RBracket|)
C313: Actual Bending Stress:
J319: (Section 6.4.2.c)
A337: D. Coupling Design
I339: Eccentricity: CLBoss _ CLCoupling
I341: Bracket No. | K341: E0 (in)
I342: Bracket # 1 | K342: 0.1
I343: Bracket # 2 | K343: 0.15
I344: Bracket # 3 | K344: 0.2
B370: 2. Tensile Stress in a single coupling:
B372: Actual Tensile stress:
E379: T = 0.5 x RB | H379: (Calculated from Section C - Bracket Design)
E380: FH = Horizontal force acting on one single post
E381: = P2 + P3
E382: P2 = PW x 0.5 x W x H | H382: (Wind Force acting on Sign Panel)
E383: P3 = PW x L x Bf | H383: (Wind Force acting on Post Flange)
B384: Note: Mnet is close to zero, therefore bending stress component (Mnet / S) is negligible, and bending stress is combined with axial tension stress in calculation of coupling tensile stress.
B385: 3. Calculate Optimum Eccentricity for Bracket Selection:
B386: Compute desired Eccentricity of Boss to make MNet = 0 and minimize Tensile Stress at critical section of Coupling due to Bending:
B387: For MNET = 0:
E389: and
B392: Thus, | C392: T x EOptimum = (FH / 4 couplings ) x 2.8
J399: D1 = Post Depth D + 2 x E
J400: (Section C - Bracket Detail)
J410: (PW drops out)
B419: Compare Eoptimum to boss eccentricities available and select Bracket Number with boss eccentricity E0 closest to Eoptimum. Then use that E0 value to compute Actual Tensile Stress sT,ctual (part 2 above).
B421: 4. Combined Stress Ratio:
C423: Allowable Tensile Stress:
C425: Actual Shear Stress:
C427: Allowable Shear Stress:
C429: Combined Stress Ratio:

Sheet Wind Pressure
A1: W | B1: L | C1: H | AQ1: W | AR1: L | AS1: H
C2: 4 | D2: 5 | E2: 6 | F2: 7 | G2: 8 | H2: 9 | I2: 10 | J2: 11 | K2: 12 | L2: 13 | M2: 14 | N2: 15 | O2: 16 | P2: 17 | Q2: 18 | R2: 19 | S2: 20 | T2: 21 | U2: 22 | V2: Table of | AS2: 4 | AT2: 5 | AU2: 6 | AV2: 7 | AW2: 8 | AX2: 9 | AY2: 10 | AZ2: 11 | BA2: 12 | BB2: 13 | BC2: 14 | BD2: 15 | BE2: 16 | BF2: 17 | BG2: 18 | BH2: 19 | BI2: 20 | BJ2: 21 | BK2: 22
A3: 8 | B3: 7 | C3: 21.45207859 | D3: 20.9473238 | E3: 20.61082061 | F3: 20.37046118 | G3: 20.19019162 | H3: 20.34792749 | I3: 20.54218872 | J3: 20.95080313 | K3: 21.35240017 | L3: 21.74774224 | M3: 22.13748294 | N3: 22.52218669 | O3: 22.90234419 | P3: 23.11656059 | Q3: 23.32424388 | R3: 23.52585797 | S3: 23.72181762 | T3: 23.91249521 | U3: 24.09822649 | AQ3: 16 | AR3: 7 | AS3: - | AT3: 21.52418642 | AU3: 21.4921385 | AV3: 21.46924712 | AW3: 21.45207859 | AX3: 21.17165926 | AY3: 20.98463587 | AZ3: 21.05257663 | BA3: 21.13671936 | BB3: 21.23203523 | BC3: 21.33505818 | BD3: 21.44334614 | BE3: 21.55514747 | BF3: 21.83410526 | BG3: 22.10824936 | BH3: 22.3779541 | BI3: 22.64355318 | BJ3: - | BK3: -
B4: 8 | C4: 21.45207859 | D4: 20.9473238 | E4: 20.61082061 | F4: 20.37046118 | G4: 20.19019162 | H4: 20.38417189 | I4: 20.79087333 | J4: 21.19063956 | K4: 21.58422538 | L4: 21.97227784 | M4: 22.35535568 | N4: 22.7339446 | O4: 23.10846938 | P4: 23.31608284 | Q4: 23.51762927 | R4: 23.71352328 | S4: 23.90413712 | T4: 24.08980642 | U4: 24.27083483 | AR4: 8 | AS4: - | AT4: 21.52418642 | AU4: 21.4921385 | AV4: 21.46924712 | AW4: 21.45207859 | AX4: 21.20937092 | AY4: 21.23867676 | AZ4: 21.29357813 | BA4: 21.3662029 | BB4: 21.45124638 | BC4: 21.54503362 | BD4: 21.64496058 | BE4: 21.74914766 | BF4: 22.02255847 | BG4: 22.29155273 | BH4: 22.55646259 | BI4: - | BJ4: - | BK4: -
B5: 9 | C5: 21.45207859 | D5: 20.9473238 | E5: 20.61082061 | F5: 20.37046118 | G5: 20.22615505 | H5: 20.63094354 | I5: 21.02887895 | J5: 21.42070852 | K5: 21.80707275 | L5: 22.18852466 | M5: 22.56554501 | N5: 22.93855417 | O5: 23.30792181 | P5: 23.50940057 | Q5: 23.70522893 | R5: 23.89577903 | S5: 24.08138636 | T5: 24.26235445 | U5: 24.43895895 | AR5: 9 | AS5: - | AT5: 21.52418642 | AU5: 21.4921385 | AV5: 21.46924712 | AW5: 21.49028974 | AX5: 21.46613246 | AY5: 21.48180865 | AZ5: 21.52476471 | BA5: 21.58679928 | BB5: 21.66236532 | BC5: 21.74760414 | BD5: 21.8397691 | BE5: 21.93686758 | BF5: 22.20515136 | BG5: 22.469372 | BH5: 22.72982549 | BI5: - | BJ5: - | BK5: -
B6: 10 | C6: 21.45207859 | D6: 20.9473238 | E6: 20.61082061 | F6: 20.40674572 | G6: 20.47101374 | H6: 20.86711834 | I6: 21.25719167 | J6: 21.64186765 | K6: 22.02169365 | L6: 22.39714542 | M6: 22.76863895 | N6: 23.13654003 | O6: 23.50117187 | P6: 23.69693459 | Q6: 23.88742094 | R6: 24.07296629 | S6: - | T6: - | U6: - | AR6: 10 | AS6: - | AT6: 21.52418642 | AU6: 21.4921385 | AV6: 21.50748885 | AW6: 21.7504521 | AX6: 21.71186818 | AY6: 21.71503887 | AZ6: 21.74699817 | BA6: 21.7992523 | BB6: 21.86603902 | BC6: 21.94333647 | BD6: 22.0282712 | BE6: 22.11875 | BF6: 22.38228141 | BG6: 22.64206555 | BH6: - | BI6: - | BJ6: - | BK6: -
B7: 11 | C7: 21.45207859 | D7: 20.9473238 | E7: 20.64753328 | F7: 20.65379065 | G7: 20.70535774 | H7: 21.09367481 | I7: 21.47666255 | J7: 21.85486264 | K7: 22.22874583 | L7: 22.59872374 | M7: 22.96515825 | N7: 23.32836914 | O7: - | P7: - | Q7: - | R7: - | S7: - | T7: - | U7: - | AR7: 11 | AS7: - | AT7: 21.52418642 | AU7: 21.530421 | AV7: 21.76785942 | AW7: 21.99944259 | AX7: 21.94759618 | AY7: 21.93923682 | AZ7: 21.96102783 | BA7: 22.00421304 | BB7: 22.06283729 | BC7: 22.13273247 | BD7: 22.21091145 | BE7: 22.29519082 | BF7: 22.55430561 | BG7: - | BH7: - | BI7: - | BJ7: - | BK7: -
B8: 12 | C8: 21.45207859 | D8: 20.98463587 | E8: 20.89749319 | F8: 20.890227 | G8: 20.93015795 | H8: 21.31145746 | I8: 21.68803163 | J8: 22.06034624 | K8: 22.42880852 | L8: 22.79377647 | M8: 23.1555664 | N8: - | O8: - | P8: - | Q8: - | R8: - | S8: - | T8: - | U8: - | AR8: 12 | AS8: - | AT8: 21.56252601 | AU8: 21.79106919 | AV8: 22.01704919 | AW8: 22.23829282 | AX8: 22.17419518 | AY8: 22.15515846 | AZ8: 22.16750961 | BA8: 22.2022549 | BB8: 22.25326471 | BC8: 22.31623883 | BD8: 22.38808745 | BE8: 22.46654566 | BF8: - | BG8: - | BH8: - | BI8: - | BJ8: - | BK8: -
B9: 13 | C9: 21.49028974 | D9: 21.23867676 | E9: 21.13671936 | F9: 21.11703436 | G9: 21.14625236 | H9: 21.52120061 | I9: 21.89194665 | J9: 22.2588933 | K9: 22.62239469 | L9: 22.98276367 | M9: - | N9: - | O9: - | P9: - | Q9: - | R9: - | S9: - | T9: - | U9: - | W9: : Max Pressure | AR9: 13 | AS9: - | AT9: 21.82356286 | AU9: 22.04052465 | AV9: 22.25609057 | AW9: 22.46789313 | AX9: 22.39242923 | AY9: 22.3634655 | AZ9: 22.36702117 | BA9: 22.39388566 | BB9: 22.43777043 | BC9: 22.49425503 | BD9: 22.56015627 | BE9: - | BF9: - | BG9: - | BH9: - | BI9: - | BJ9: - | BK9: -
B10: 14 | C10: 21.7504521 | D10: 21.48180865 | E10: 21.3662029 | F10: 21.33505818 | G10: 21.3543696 | H10: 21.72354706 | I10: 22.08897809 | J10: 22.45101292 | K10: 22.80996093 | L10: - | M10: - | N10: - | O10: - | P10: - | Q10: - | R10: - | S10: - | T10: - | U10: - | AR10: 14 | AS10: - | AT10: 22.0733903 | AU10: 22.27982091 | AV10: 22.48587464 | AW10: 22.6890177 | AX10: 22.60296714 | AY10: 22.56474069 | AZ10: 22.56007405 | BA10: 22.57955729 | BB10: 22.61675608 | BC10: 22.66713982 | BD10: - | BE10: - | BF10: - | BG10: - | BH10: - | BI10: - | BJ10: - | BK10: -
B11: 15 | C11: 21.99944259 | D11: 21.71503887 | E11: 21.58679928 | F11: 21.54503362 | G11: 21.55514747 | H11: 21.91906287 | I11: - | J11: - | K11: - | L11: - | M11: - | N11: - | O11: - | P11: - | Q11: - | R11: - | S11: - | T11: - | U11: - | AR11: 15 | AS11: - | AT11: 22.31304338 | AU11: 22.50984998 | AV11: 22.70717618 | AW11: 22.90234419 | AX11: 22.80639789 | AY11: 22.75950012 | AZ11: 22.74712357 | BA11: 22.75967397 | BB11: 22.79058238 | BC11: - | BD11: - | BE11: - | BF11: - | BG11: - | BH11: - | BI11: - | BJ11: - | BK11: -
B12: 16 | C12: 22.23829282 | D12: 21.93923682 | E12: 21.7992523 | F12: 21.74760414 | G12: - | H12: - | I12: - | J12: - | K12: - | L12: - | M12: - | N12: - | O12: - | P12: - | Q12: - | R12: - | S12: - | T12: - | U12: - | AR12: 16 | AS12: - | AT12: 22.54341546 | AU12: 22.73138748 | AV12: 22.92067339 | AW12: 23.10846938 | AX12: 23.00324309 | AY12: 22.94820312 | AZ12: 22.92857693 | BA12: 22.9345987 | BB12: - | BC12: - | BD12: - | BE12: - | BF12: - | BG12: - | BH12: - | BI12: - | BJ12: - | BK12: -
A13: 9 | B13: 7 | C13: 21.46710106 | D13: 21.1997012 | E13: 20.8211351 | F13: 20.55073075 | G13: 20.34792749 | H13: 20.19019162 | I13: 20.36661446 | J13: 20.75533338 | K13: 21.13671936 | L13: 21.51155122 | M13: 21.88049723 | N13: 22.244135 | O13: 22.60296714 | P13: 22.95743364 | Q13: 23.30792181 | R13: 23.50848627 | S13: 23.70338575 | T13: 23.892993 | U13: 24.0776441 | AQ13: 17 | AR13: 7 | AS13: - | AT13: 21.53620439 | AU13: 21.50215347 | AV13: 21.47783139 | AW13: 21.45958982 | AX13: 21.31186893 | AY13: 21.11104934 | AZ13: 21.16888921 | BA13: 21.24455976 | BB13: 21.33266099 | BC13: 21.4294611 | BD13: 21.53232268 | BE13: 21.63934726 | BF13: 21.74914766 | BG13: 22.01751783 | BH13: 22.28138786 | BI13: - | BJ13: - | BK13: -
B14: 8 | C14: 21.46710106 | D14: 21.1997012 | E14: 20.8211351 | F14: 20.55073075 | G14: 20.34792749 | H14: 20.22615505 | I14: 20.61317356 | J14: 20.99293215 | K14: 21.3662029 | L14: 21.73364826 | M14: 22.09584077 | N14: 22.45327861 | O14: 22.80639789 | P14: 23.15558245 | Q14: 23.50117187 | R14: 23.696013 | S14: 23.88556359 | T14: 24.0701596 | U14: 24.25010502 | AR14: 8 | AS14: - | AT14: 21.53620439 | AU14: 21.50215347 | AV14: 21.47783139 | AW14: 21.45958982 | AX14: 21.34983033 | AY14: 21.36662059 | AZ14: 21.4112222 | BA14: 21.47521414 | BB14: 21.55291106 | BC14: 21.64036562 | BD14: 21.7347737 | BE14: 21.83410526 | BF14: 21.93686758 | BG14: 22.20006893 | BH14: 22.45912605 | BI14: - | BJ14: - | BK14: -
B15: 9 | C15: 21.46710106 | D15: 21.1997012 | E15: 20.8211351 | F15: 20.55073075 | G15: 20.38417189 | H15: 20.47101374 | I15: 20.84914494 | J15: 21.22085459 | K15: 21.58679928 | L15: 21.94754653 | M15: 22.30359009 | N15: 22.65536214 | O15: 23.00324309 | P15: 23.34756944 | Q15: 23.68864025 | R15: 23.87813418 | S15: 24.0626751 | T15: 24.24256691 | U15: - | AR15: 9 | AS15: - | AT15: 21.53620439 | AU15: 21.50215347 | AV15: 21.47783139 | AW15: 21.49781435 | AX15: 21.60829228 | AY15: 21.61121714 | AZ15: 21.64368606 | BA15: 21.69693602 | BB15: 21.76503056 | BC15: 21.84383248 | BD15: 21.93039055 | BE15: 22.02255847 | BF15: 22.11875 | BG15: 22.37715844 | BH15: - | BI15: - | BJ15: - | BK15: -
B16: 10 | C16: 21.46710106 | D16: 21.1997012 | E16: 20.8211351 | F16: 20.58733639 | G16: 20.63094354 | H16: 20.70535774 | I16: 21.07550627 | J16: 21.43995031 | K16: 21.7992523 | L16: 22.15390157 | M16: 22.50432639 | N16: 22.85090373 | O16: 23.19396701 | P16: 23.53381254 | Q16: 23.87070477 | R16: - | S16: - | T16: - | U16: - | AR16: 10 | AS16: - | AT16: 21.53620439 | AU16: 21.50215347 | AV16: 21.51608841 | AW16: 21.7580678 | AX16: 21.85565539 | AY16: 21.84585236 | AZ16: 21.86714733 | BA16: 21.91047298 | BB16: 21.96966954 | BC16: 22.04043088 | BD16: 22.11967481 | BE16: 22.20515136 | BF16: 22.29519082 | BG16: - | BH16: - | BI16: - | BJ16: - | BK16: -
B17: 11 | C17: 21.46710106 | D17: 21.1997012 | E17: 20.8582224 | F17: 20.83656756 | G17: 20.86711834 | H17: 20.93015795 | I17: 21.29310133 | J17: 21.65095807 | K17: 22.00421304 | L17: 22.35329065 | M17: 22.69856437 | N17: - | O17: - | P17: - | Q17: - | R17: - | S17: - | T17: - | U17: - | AR17: 11 | AS17: - | AT17: 21.53620439 | AU17: 21.54045382 | AV17: 21.77656309 | AW17: 22.00714548 | AX17: 22.0929445 | AY17: 22.0714009 | AZ17: 22.08235947 | BA17: 22.11647943 | BB17: 22.1674005 | BC17: 22.23066492 | BD17: 22.30307291 | BE17: 22.38228141 | BF17: 22.46654566 | BG17: - | BH17: - | BI17: - | BJ17: - | BK17: -
B18: 12 | C18: 21.46710106 | D18: 21.2374628 | E18: 21.11073292 | F18: 21.07509627 | G18: 21.09367481 | H18: 21.14625236 | I18: 21.50266383 | J18: 21.85452452 | K18: 22.2022549 | L18: 22.54622502 | M18: - | N18: - | O18: - | P18: - | Q18: - | R18: - | S18: - | T18: - | U18: - | AR18: 12 | AS18: - | AT18: 21.57456539 | AU18: 21.80122346 | AV18: 22.02585249 | AW18: 22.24607934 | AX18: 22.32104416 | AY18: 22.28862327 | AZ18: 22.28998204 | BA18: 22.31553171 | BB18: 22.35873042 | BC18: 22.41498325 | BD18: 22.48098408 | BE18: 22.55430561 | BF18: - | BG18: - | BH18: - | BI18: - | BJ18: - | BK18: -
B19: 13 | C19: 21.50533897 | D19: 21.49456443 | E19: 21.35240017 | F19: 21.30391077 | G19: 21.31145746 | H19: 21.3543696 | I19: 21.70483599 | J19: 22.05121915 | K19: 22.39388566 | L19: - | M19: - | N19: - | O19: - | P19: - | Q19: - | R19: - | S19: - | T19: - | U19: - | AR19: 13 | AS19: - | AT19: 21.83574799 | AU19: 22.05079517 | AV19: 22.26498945 | AW19: 22.47576004 | AX19: 22.54072347 | AY19: 22.49818517 | AZ19: 22.49059587 | BA19: 22.50814018 | BB19: 22.54411057 | BC19: 22.59378713 | BD19: 22.65376688 | BE19: - | BF19: - | BG19: - | BH19: - | BI19: - | BJ19: - | BK19: -
B20: 14 | C20: 21.76568351 | D20: 21.74062562 | E20: 21.58422538 | F20: 21.52386401 | G20: 21.52120061 | H20: 21.55514747 | I20: 21.9001834 | J20: 22.2415463 | K20: 22.57955729 | L20: - | M20: - | N20: - | O20: - | P20: - | Q20: - | R20: - | S20: - | T20: - | U20: - | AR20: 14 | AS20: - | AT20: 22.08571492 | AU20: 22.29020293 | AV20: 22.49486539 | AW20: 22.69696204 | AX20: 22.75265566 | AY20: 22.70067287 | AZ20: 22.68471534 | BA20: 22.69475911 | BB20: 22.72394449 | BC20: 22.7674369 | BD20: - | BE20: - | BF20: - | BG20: - | BH20: - | BI20: - | BJ20: - | BK20: -
B21: 15 | C21: 22.01484837 | D21: 21.97666584 | E21: 21.80707275 | F21: 21.73569763 | G21: 21.72354706 | H21: - | I21: - | J21: - | K21: - | L21: - | M21: - | N21: - | O21: - | P21: - | Q21: - | R21: - | S21: - | T21: - | U21: - | AR21: 15 | AS21: - | AT21: 22.32550181 | AU21: 22.52033919 | AV21: 22.71625542 | AW21: 22.91036321 | AX21: 22.95743364 | AY21: 22.89660554 | AZ21: 22.87279829 | BA21: 22.87579475 | BB21: - | BC21: - | BD21: - | BE21: - | BF21: - | BG21: - | BH21: - | BI21: - | BJ21: - | BK21: -
B22: 16 | C22: 22.25386585 | D22: 22.20356498 | E22: 22.02169365 | F22: - | G22: - | H22: - | I22: - | J22: - | K22: - | L22: - | M22: - | N22: - | O22: - | P22: - | Q22: - | R22: - | S22: - | T22: - | U22: - | AR22: 16 | AS22: - | AT22: 22.55600252 | AU22: 22.74197993 | AV22: 22.929838 | AW22: 23.11656059 | AX22: 23.15558245 | AY22: 23.08644531 | AZ22: 23.05525415 | BA22: - | BB22: - | BC22: - | BD22: - | BE22: - | BF22: - | BG22: - | BH22: - | BI22: - | BJ22: - | BK22: -
A23: 10 | B23: 7 | C23: 21.48212352 | D23: 21.45207859 | E23: 21.0314496 | F23: 20.73100032 | G23: 20.50566336 | H23: 20.33040128 | I23: 20.22615505 | J23: 20.59895758 | K23: 20.96417471 | L23: 21.32259841 | M23: 21.67490867 | N23: 22.02169365 | O23: 22.3634655 | P23: 22.70067287 | Q23: 23.03371096 | R23: 23.36292968 | S23: 23.68864025 | T23: 23.87739124 | U23: 24.0611782 | AQ23: 18 | AR23: 7 | AS23: - | AT23: 21.54822236 | AU23: 21.51216845 | AV23: 21.48641565 | AW23: 21.46710106 | AX23: 21.45207859 | AY23: 21.2374628 | AZ23: 21.28520179 | BA23: 21.35240017 | BB23: 21.43328674 | BC23: 21.52386401 | BD23: 21.62129922 | BE23: 21.72354706 | BF23: 21.82910776 | BG23: 21.93686758 | BH23: 22.19555121 | BI23: - | BJ23: - | BK23: -
B24: 8 | C24: 21.48212352 | D24: 21.45207859 | E24: 21.0314496 | F24: 20.73100032 | G24: 20.50566336 | H24: 20.36661446 | I24: 20.47101374 | J24: 20.83476622 | K24: 21.19178492 | L24: 21.54274459 | M24: 21.88822884 | N24: 22.22874583 | O24: 22.56474069 | P24: 22.89660554 | Q24: 23.22468749 | R24: 23.54929531 | S24: 23.87070477 | T24: 24.05444215 | U24: - | AR24: 8 | AS24: - | AT24: 21.54822236 | AU24: 21.51216845 | AV24: 21.48641565 | AW24: 21.46710106 | AX24: 21.49028974 | AY24: 21.49456443 | AZ24: 21.52886628 | BA24: 21.58422538 | BB24: 21.65457573 | BC24: 21.73569763 | BD24: 21.82458681 | BE24: 21.91906287 | BF24: 22.01751783 | BG24: 22.11875 | BH24: - | BI24: - | BJ24: - | BK24: -
B25: 9 | C25: 21.48212352 | D25: 21.45207859 | E25: 21.0314496 | F25: 20.73100032 | G25: 20.54218872 | H25: 20.61317356 | I25: 20.70535774 | J25: 21.06097143 | K25: 21.41058051 | L25: 21.75476403 | M25: 22.09402616 | N25: 22.42880852 | O25: 22.75950012 | P25: 23.08644531 | Q25: 23.40995037 | R25: 23.73028885 | S25: 24.04770609 | T25: - | U25: - | AR25: 9 | AS25: - | AT25: 21.54822236 | AU25: 21.51216845 | AV25: 21.48641565 | AW25: 21.50533897 | AX25: 21.7504521 | AY25: 21.74062562 | AZ25: 21.76260741 | BA25: 21.80707275 | BB25: 21.86769579 | BC25: 21.94006082 | BD25: 22.021012 | BE25: 22.10824936 | BF25: 22.20006893 | BG25: - | BH25: - | BI25: - | BJ25: - | BK25: -
B26: 10 | C26: 21.48212352 | D26: 21.45207859 | E26: 21.0314496 | F26: 20.76792706 | G26: 20.79087333 | H26: 20.84914494 | I26: 20.93015795 | J26: 21.27841644 | K26: 21.62129922 | L26: 21.95930648 | M26: 22.29287635 | N26: 22.62239469 | O26: 22.94820312 | P26: 23.27060542 | Q26: - | R26: - | S26: - | T26: - | U26: - | AR26: 10 | AS26: - | AT26: 21.54822236 | AU26: 21.51216845 | AV26: 21.52468797 | AW26: 21.76568351 | AX26: 21.99944259 | AY26: 21.97666584 | AZ26: 21.98729649 | BA26: 22.02169365 | BB26: 22.07330005 | BC26: 22.13752529 | BD26: 22.21107843 | BE26: 22.29155273 | BF26: 22.37715844 | BG26: - | BH26: - | BI26: - | BJ26: - | BK26: -
B27: 11 | C27: 21.48212352 | D27: 21.45207859 | E27: 21.06891151 | F27: 21.01934447 | G27: 21.02887895 | H27: 21.07550627 | I27: 21.14625236 | J27: 21.48783441 | K27: 21.82458681 | L27: 22.15694417 | M27: 22.48528927 | N27: - | O27: - | P27: - | Q27: - | R27: - | S27: - | T27: - | U27: - | AR27: 11 | AS27: - | AT27: 21.54822236 | AU27: 21.55048663 | AV27: 21.78526675 | AW27: 22.01484837 | AX27: 22.23829282 | AY27: 22.20356498 | AZ27: 22.20369112 | BA27: 22.22874583 | BB27: 22.27196371 | BC27: 22.32859736 | BD27: 22.39523437 | BE27: 22.469372 | BF27: - | BG27: - | BH27: - | BI27: - | BJ27: - | BK27: -
B28: 12 | C28: 21.48212352 | D28: 21.49028974 | E28: 21.32397265 | F28: 21.25996553 | G28: 21.25719167 | H28: 21.29310133 | I28: 21.3543696 | J28: 21.68986714 | K28: 22.021012 | L28: 22.34818385 | M28: - | N28: - | O28: - | P28: - | Q28: - | R28: - | S28: - | T28: - | U28: - | AR28: 12 | AS28: - | AT28: 21.58660477 | AU28: 21.81137774 | AV28: 22.03465579 | AW28: 22.25386585 | AX28: 22.46789313 | AY28: 22.42208808 | AZ28: 22.41245447 | BA28: 22.42880852 | BB28: 22.46419613 | BC28: 22.51372767 | BD28: 22.57388071 | BE28: - | BF28: - | BG28: - | BH28: - | BI28: - | BJ28: - | BK28: -
B29: 13 | C29: 21.52038819 | D29: 21.7504521 | E29: 21.56808097 | F29: 21.49078718 | G29: 21.47666255 | H29: 21.50266383 | I29: 21.55514747 | J29: 21.88507983 | K29: 22.21107843 | L29: - | M29: - | N29: - | O29: - | P29: - | Q29: - | R29: - | S29: - | T29: - | U29: - | AR29: 13 | AS29: - | AT29: 21.84793312 | AU29: 22.06106568 | AV29: 22.27388833 | AW29: 22.48362695 | AX29: 22.6890177 | AY29: 22.63290484 | AZ29: 22.61417057 | BA29: 22.62239469 | BB29: 22.65045072 | BC29: 22.69331923 | BD29: - | BE29: - | BF29: - | BG29: - | BH29: - | BI29: - | BJ29: - | BK29: -
B30: 14 | C30: 21.78091492 | D30: 21.99944259 | E30: 21.80224786 | F30: 21.71266983 | G30: 21.68803163 | H30: 21.70483599 | I30: 21.74914766 | J30: 22.073973 | K30: - | L30: - | M30: - | N30: - | O30: - | P30: - | Q30: - | R30: - | S30: - | T30: - | U30: - | AR30: 14 | AS30: - | AT30: 22.09803954 | AU30: 22.30058496 | AV30: 22.50385615 | AW30: 22.70490637 | AX30: 22.90234419 | AY30: 22.83660504 | AZ30: 22.80935663 | BA30: 22.80996093 | BB30: 22.83113291 | BC30: - | BD30: - | BE30: - | BF30: - | BG30: - | BH30: - | BI30: - | BJ30: - | BK30: -
B31: 15 | C31: 22.03025414 | D31: 22.23829282 | E31: 22.02734621 | F31: 21.92636164 | G31: 21.89194665 | H31: - | I31: - | J31: - | K31: - | L31: - | M31: - | N31: - | O31: - | P31: - | Q31: - | R31: - | S31: - | T31: - | U31: - | AR31: 15 | AS31: - | AT31: 22.33796024 | AU31: 22.53082841 | AV31: 22.72533466 | AW31: 22.91838224 | AX31: 23.10846938 | AY31: 23.03371096 | AZ31: 22.99847301 | BA31: 22.99191554 | BB31: - | BC31: - | BD31: - | BE31: - | BF31: - | BG31: - | BH31: - | BI31: - | BJ31: - | BK31: -
B32: 16 | C32: 22.26943889 | D32: 22.46789313 | E32: 22.244135 | F32: - | G32: - | H32: - | I32: - | J32: - | K32: - | L32: - | M32: - | N32: - | O32: - | P32: - | Q32: - | R32: - | S32: - | T32: - | U32: - | AR32: 16 | AS32: - | AT32: 22.56858957 | AU32: 22.75257237 | AV32: 22.9390026 | AW32: 23.12465179 | AX32: 23.30792181 | AY32: 23.22468749 | AZ32: 23.18193137 | BA32: - | BB32: - | BC32: - | BD32: - | BE32: - | BF32: - | BG32: - | BH32: - | BI32: - | BJ32: - | BK32: -
A33: 11 | B33: 7 | C33: 21.49714598 | D33: 21.46409656 | E33: 21.2417641 | F33: 20.91126989 | G33: 20.66339923 | H33: 20.47061094 | I33: 20.35256852 | J33: 20.47101374 | K33: 20.82300181 | L33: 21.16800065 | M33: 21.50669984 | N33: 21.83969618 | O33: 22.16750961 | P33: 22.49059587 | Q33: 22.80935663 | R33: 23.12414772 | S33: 23.43528581 | T33: 23.74305394 | U33: 24.04770609 | AQ33: 19 | AR33: 7 | AS33: - | AT33: - | AU33: 21.52218342 | AV33: 21.49499992 | AW33: 21.47461229 | AX33: 21.45875524 | AY33: 21.36387627 | AZ33: 21.40151437 | BA33: 21.46024057 | BB33: 21.5339125 | BC33: 21.61826692 | BD33: 21.71027576 | BE33: 21.80774685 | BF33: 21.90906786 | BG33: 22.01303726 | BH33: - | BI33: - | BJ33: - | BK33: -
B34: 8 | C34: 21.49714598 | D34: 21.46409656 | E34: 21.2417641 | F34: 20.91126989 | G34: 20.66339923 | H34: 20.50707387 | I34: 20.59895758 | J34: 20.70535774 | K34: 21.0490793 | L34: 21.38655068 | M34: 21.71836454 | N34: 22.04503718 | O34: 22.36702117 | P34: 22.68471534 | Q34: 22.99847301 | R34: 23.30860859 | S34: 23.61540311 | T34: - | U34: - | AR34: 8 | AS34: - | AT34: - | AU34: 21.52218342 | AV34: 21.49499992 | AW34: 21.47461229 | AX34: 21.49697829 | AY34: 21.62250826 | AZ34: 21.64651036 | BA34: 21.69323662 | BB34: 21.75624041 | BC34: 21.83102964 | BD34: 21.91439993 | BE34: 22.00402048 | BF34: 22.09816808 | BG34: 22.19555121 | BH34: - | BI34: - | BJ34: - | BK34: -
B35: 9 | C35: 21.49714598 | D35: 21.46409656 | E35: 21.2417641 | F35: 20.91126989 | G35: 20.70020556 | H35: 20.75533338 | I35: 20.83476622 | J35: 20.93015795 | K35: 21.26640152 | L35: 21.59703289 | M35: 21.92256476 | N35: 22.24344647 | O35: 22.56007405 | P35: 22.87279829 | Q35: 23.18193137 | R35: 23.48775228 | S35: - | T35: - | U35: - | AR35: 9 | AS35: - | AT35: - | AU35: 21.52218342 | AV35: 21.49499992 | AW35: 21.51286358 | AX35: 21.75722162 | AY35: 21.87003411 | AZ35: 21.88152876 | BA35: 21.91720948 | BB35: 21.97036103 | BC35: 22.03628915 | BD35: 22.11163345 | BE35: 22.19394025 | BF35: 22.28138786 | BG35: - | BH35: - | BI35: - | BJ35: - | BK35: -
B36: 10 | C36: 21.49714598 | D36: 21.46409656 | E36: 21.2417641 | F36: 20.94851773 | G36: 20.95080313 | H36: 20.99293215 | I36: 21.06097143 | J36: 21.14625236 | K36: 21.47570125 | L36: 21.80009233 | M36: 22.11987176 | N36: 22.43543275 | O36: 22.74712357 | P36: 23.05525415 | Q36: - | R36: - | S36: - | T36: - | U36: - | AR36: 10 | AS36: - | AT36: - | AU36: 21.52218342 | AV36: 21.53328752 | AW36: 21.77329921 | AX36: 22.0062896 | AY36: 22.10747933 | AZ36: 22.10744565 | BA36: 22.13291433 | BB36: 22.17693057 | BC36: 22.2346197 | BD36: 22.30248204 | BE36: 22.3779541 | BF36: - | BG36: - | BH36: - | BI36: - | BJ36: - | BK36: -
B37: 11 | C37: 21.49714598 | D37: 21.46409656 | E37: 21.27960063 | F37: 21.20212137 | G37: 21.19063956 | H37: 21.22085459 | I37: 21.27841644 | J37: 21.3543696 | K37: 21.6776199 | L37: 21.99629706 | M37: - | N37: - | O37: - | P37: - | Q37: - | R37: - | S37: - | T37: - | U37: - | AR37: 11 | AS37: - | AT37: - | AU37: 21.56051945 | AV37: 21.79397041 | AW37: 22.02255125 | AX37: 22.24521417 | AY37: 22.33572906 | AZ37: 22.32502277 | BA37: 22.34101222 | BB37: 22.37652692 | BC37: 22.42652981 | BD37: 22.48739583 | BE37: - | BF37: - | BG37: - | BH37: - | BI37: - | BJ37: - | BK37: -
B38: 12 | C38: 21.49714598 | D38: 21.50232912 | E38: 21.53721237 | F38: 21.4448348 | G38: 21.42070852 | H38: 21.43995031 | I38: 21.48783441 | J38: 21.55514747 | K38: 21.87272236 | L38: - | M38: - | N38: - | O38: - | P38: - | Q38: - | R38: - | S38: - | T38: - | U38: - | AR38: 12 | AS38: - | AT38: - | AU38: 21.82153201 | AV38: 22.04345909 | AW38: 22.26165237 | AX38: 22.47488594 | AY38: 22.55555289 | AZ38: 22.5349269 | BA38: 22.54208533 | BB38: 22.56966184 | BC38: 22.61247209 | BD38: 22.66677734 | BE38: - | BF38: - | BG38: - | BH38: - | BI38: - | BJ38: - | BK38: -
B39: 13 | C39: 21.53543741 | D39: 21.76263723 | E39: 21.78376178 | F39: 21.67766359 | G39: 21.64186765 | H39: 21.65095807 | I39: 21.68986714 | J39: 21.74914766 | K39: - | L39: - | M39: - | N39: - | O39: - | P39: - | Q39: - | R39: - | S39: - | T39: - | U39: - | AR39: 13 | AS39: - | AT39: - | AU39: 22.0713362 | AV39: 22.2827872 | AW39: 22.49149386 | AX39: 22.69607933 | AY39: 22.76762451 | AZ39: 22.73774528 | BA39: 22.73664921 | BB39: 22.75679086 | BC39: 22.79285133 | BD39: - | BE39: - | BF39: - | BG39: - | BH39: - | BI39: - | BJ39: - | BK39: -
B40: 14 | C40: 21.79614633 | D40: 22.01176721 | E40: 22.02027034 | F40: 21.90147566 | G40: 21.85486264 | H40: 21.85452452 | I40: 21.88507983 | J40: - | K40: - | L40: - | M40: - | N40: - | O40: - | P40: - | Q40: - | R40: - | S40: - | T40: - | U40: - | AR40: 14 | AS40: - | AT40: - | AU40: 22.31096698 | AV40: 22.5128469 | AW40: 22.7128507 | AX40: 22.90947221 | AY40: 22.97253721 | AZ40: 22.93399793 | BA40: 22.92516276 | BB40: - | BC40: - | BD40: - | BE40: - | BF40: - | BG40: - | BH40: - | BI40: - | BJ40: - | BK40: -
B41: 15 | C41: 22.04565991 | D41: 22.25075125 | E41: 22.24761967 | F41: 22.11702566 | G41: - | H41: - | I41: - | J41: - | K41: - | L41: - | M41: - | N41: - | O41: - | P41: - | Q41: - | R41: - | S41: - | T41: - | U41: - | AR41: 15 | AS41: - | AT41: - | AU41: 22.54131762 | AV41: 22.7344139 | AW41: 22.92640127 | AX41: 23.11566156 | AY41: 23.17081638 | AZ41: 23.12414772 | BA41: - | BB41: - | BC41: - | BD41: - | BE41: - | BF41: - | BG41: - | BH41: - | BI41: - | BJ41: - | BK41: -
B42: 16 | C42: 22.28501192 | D42: 22.48048019 | E42: - | F42: - | G42: - | H42: - | I42: - | J42: - | K42: - | L42: - | M42: - | N42: - | O42: - | P42: - | Q42: - | R42: - | S42: - | T42: - | U42: - | AR42: 16 | AS42: - | AT42: - | AU42: 22.76316482 | AV42: 22.9481672 | AW42: 23.13274299 | AX42: 23.31517606 | AY42: 23.36292968 | AZ42: - | BA42: - | BB42: - | BC42: - | BD42: - | BE42: - | BF42: - | BG42: - | BH42: - | BI42: - | BJ42: - | BK42: -
A43: 12 | B43: 7 | C43: 21.51216845 | D43: 21.47611453 | E43: 21.45207859 | F43: 21.09153946 | G43: 20.8211351 | H43: 20.61082061 | I43: 20.47898199 | J43: 20.58732632 | K43: 20.70535774 | L43: 21.03916919 | M43: 21.36652582 | N43: 21.68803163 | O43: 22.00421304 | P43: 22.31553171 | Q43: 22.62239469 | R43: 22.92516276 | S43: 23.22415711 | T43: 23.51966499 | U43: 23.81194427 | AQ43: 20 | AR43: 7 | AS43: - | AT43: - | AU43: 21.5321984 | AV43: 21.50358418 | AW43: 21.48212352 | AX43: 21.46543189 | AY43: 21.49028974 | AZ43: 21.51782694 | BA43: 21.56808097 | BB43: 21.63453826 | BC43: 21.71266983 | BD43: 21.7992523 | BE43: 21.89194665 | BF43: 21.98902796 | BG43: 22.08920694 | BH43: - | BI43: - | BJ43: - | BK43: -
B44: 8 | C44: 21.51216845 | D44: 21.47611453 | E44: 21.45207859 | F44: 21.09153946 | G44: 20.8211351 | H44: 20.64753328 | I44: 20.72690141 | J44: 20.82300181 | K44: 20.93015795 | L44: 21.25638909 | M44: 21.57681095 | N44: 21.89194665 | O44: 22.2022549 | P44: 22.50814018 | Q44: 22.80996093 | R44: 23.10803632 | S44: 23.40265173 | T44: - | U44: - | AR44: 8 | AS44: - | AT44: - | AU44: 21.5321984 | AV44: 21.50358418 | AW44: 21.48212352 | AX44: 21.50366683 | AY44: 21.7504521 | AZ44: 21.76415444 | BA44: 21.80224786 | BB44: 21.85790508 | BC44: 21.92636164 | BD44: 22.00421304 | BE44: 22.08897809 | BF44: 22.17881833 | BG44: - | BH44: - | BI44: - | BJ44: - | BK44: -
B45: 9 | C45: 21.51216845 | D45: 21.47611453 | E45: 21.45207859 | F45: 21.09153946 | G45: 20.8582224 | H45: 20.89749319 | I45: 20.96417471 | J45: 21.0490793 | K45: 21.14625236 | L45: 21.46559028 | M45: 21.77968026 | N45: 22.08897809 | O45: 22.39388566 | P45: 22.69475911 | Q45: 22.99191554 | R45: - | S45: - | T45: - | U45: - | AR45: 9 | AS45: - | AT45: - | AU45: 21.5321984 | AV45: 21.50358418 | AW45: 21.52038819 | AX45: 21.76399113 | AY45: 21.99944259 | AZ45: 22.00045012 | BA45: 22.02734621 | BB45: 22.07302627 | BC45: 22.13251749 | BD45: 22.2022549 | BE45: 22.27963114 | BF45: - | BG45: - | BH45: - | BI45: - | BJ45: - | BK45: -
B46: 10 | C46: 21.51216845 | D46: 21.47611453 | E46: 21.45207859 | F46: 21.1291084 | G46: 21.11073292 | H46: 21.13671936 | I46: 21.19178492 | J46: 21.26640152 | K46: 21.3543696 | L46: 21.66741386 | M46: 21.97570128 | N46: 22.27963114 | O46: 22.57955729 | P46: - | Q46: - | R46: - | S46: - | T46: - | U46: - | AR46: 10 | AS46: - | AT46: - | AU46: 21.5321984 | AV46: 21.54188708 | AW46: 21.78091492 | AX46: 22.01313661 | AY46: 22.23829282 | AZ46: 22.22759481 | BA46: 22.244135 | BB46: 22.28056109 | BC46: 22.33171411 | BD46: 22.39388566 | BE46: 22.46435546 | BF46: - | BG46: - | BH46: - | BI46: - | BJ46: - | BK46: -
B47: 11 | C47: 21.51216845 | D47: 21.47611453 | E47: 21.49028974 | F47: 21.38489828 | G47: 21.35240017 | H47: 21.3662029 | I47: 21.41058051 | J47: 21.47570125 | K47: 21.55514747 | L47: - | M47: - | N47: - | O47: - | P47: - | Q47: - | R47: - | S47: - | T47: - | U47: - | AR47: 11 | AS47: - | AT47: - | AU47: 21.57055226 | AV47: 21.80267407 | AW47: 22.03025414 | AX47: 22.25213552 | AY47: 22.46789313 | AZ47: 22.44635441 | BA47: 22.45327861 | BB47: 22.48109013 | BC47: 22.52446225 | BD47: 22.57955729 | BE47: - | BF47: - | BG47: - | BH47: - | BI47: - | BJ47: - | BK47: -
B48: 12 | C48: 21.51216845 | D48: 21.5143685 | E48: 21.7504521 | F48: 21.62970406 | G48: 21.58422538 | H48: 21.58679928 | I48: 21.62129922 | J48: 21.6776199 | K48: - | L48: - | M48: - | N48: - | O48: - | P48: - | Q48: - | R48: - | S48: - | T48: - | U48: - | AR48: 12 | AS48: - | AT48: - | AU48: 21.83168628 | AV48: 22.05226238 | AW48: 22.26943889 | AX48: 22.48187875 | AY48: 22.6890177 | AZ48: 22.65739933 | BA48: 22.65536214 | BB48: 22.67512755 | BC48: 22.71121651 | BD48: - | BE48: - | BF48: - | BG48: - | BH48: - | BI48: - | BJ48: - | BK48: -
B49: 13 | C49: 21.55048663 | D49: 21.77482235 | E49: 21.99944259 | F49: 21.86454 | G49: 21.80707275 | H49: 21.7992523 | I49: 21.82458681 | J49: - | K49: - | L49: - | M49: - | N49: - | O49: - | P49: - | Q49: - | R49: - | S49: - | T49: - | U49: - | AR49: 13 | AS49: - | AT49: - | AU49: 22.08160671 | AV49: 22.29168608 | AW49: 22.49936077 | AX49: 22.70314096 | AY49: 22.90234419 | AZ49: 22.86131998 | BA49: 22.85090373 | BB49: 22.863131 | BC49: 22.89238344 | BD49: - | BE49: - | BF49: - | BG49: - | BH49: - | BI49: - | BJ49: - | BK49: -
B50: 14 | C50: 21.81137774 | D50: 22.02409183 | E50: 22.23829282 | F50: 22.09028148 | G50: 22.02169365 | H50: 22.00421304 | I50: 22.021012 | J50: - | K50: - | L50: - | M50: - | N50: - | O50: - | P50: - | Q50: - | R50: - | S50: - | T50: - | U50: - | AR50: 14 | AS50: - | AT50: - | AU50: 22.321349 | AV50: 22.52183765 | AW50: 22.72079504 | AX50: 22.91660024 | AY50: 23.10846938 | AZ50: 23.05863922 | BA50: 23.04036458 | BB50: - | BC50: - | BD50: - | BE50: - | BF50: - | BG50: - | BH50: - | BI50: - | BJ50: - | BK50: -
B51: 15 | C51: 22.06106568 | D51: 22.26320967 | E51: 22.46789313 | F51: 22.30768967 | G51: - | H51: - | I51: - | J51: - | K51: - | L51: - | M51: - | N51: - | O51: - | P51: - | Q51: - | R51: - | S51: - | T51: - | U51: - | AR51: 15 | AS51: - | AT51: - | AU51: 22.55180683 | AV51: 22.74349313 | AW51: 22.9344203 | AX51: 23.12285374 | AY51: 23.30792181 | AZ51: 23.24982244 | BA51: - | BB51: - | BC51: - | BD51: - | BE51: - | BF51: - | BG51: - | BH51: - | BI51: - | BJ51: - | BK51: -
B52: 16 | C52: 22.30058496 | D52: 22.49306724 | E52: - | F52: - | G52: - | H52: - | I52: - | J52: - | K52: - | L52: - | M52: - | N52: - | O52: - | P52: - | Q52: - | R52: - | S52: - | T52: - | U52: - | AR52: 16 | AS52: - | AT52: - | AU52: 22.77375726 | AV52: 22.95733181 | AW52: 23.14083419 | AX52: 23.32243032 | AY52: 23.50117187 | AZ52: - | BA52: - | BB52: - | BC52: - | BD52: - | BE52: - | BF52: - | BG52: - | BH52: - | BI52: - | BJ52: - | BK52: -
A53: 13 | B53: 7 | C53: 21.52719091 | D53: 21.48813251 | E53: 21.46209357 | F53: 21.27180902 | G53: 20.97887098 | H53: 20.75103027 | I53: 20.60539546 | J53: 20.7036389 | K53: 20.81319814 | L53: 20.93015795 | M53: 21.24791703 | N53: 21.55970008 | O53: 21.86603902 | P53: 22.1674005 | Q53: 22.46419613 | R53: 22.75679086 | S53: 23.04550975 | T53: 23.33064357 | U53: 23.6124535 | AQ53: 21 | AR53: 7 | AS53: - | AT53: - | AU53: 21.54221338 | AV53: 21.51216845 | AW53: 21.48963475 | AX53: 21.47210854 | AY53: 21.49630943 | AZ53: 21.63413952 | BA53: 21.67592138 | BB53: 21.73516402 | BC53: 21.80707275 | BD53: 21.88822884 | BE53: 21.97614644 | BF53: 22.06898806 | BG53: - | BH53: - | BI53: - | BJ53: - | BK53: -
B54: 8 | C54: 21.52719091 | D54: 21.48813251 | E54: 21.46209357 | F54: 21.27180902 | G54: 20.97887098 | H54: 20.78799269 | I54: 20.85484525 | J54: 20.94064589 | K54: 21.03916919 | L54: 21.14625236 | M54: 21.45703484 | N54: 21.7624085 | O54: 22.06283729 | P54: 22.35873042 | Q54: 22.65045072 | R54: 22.93832133 | S54: 23.22263133 | T54: 23.50364035 | U54: 23.78158239 | AR54: 8 | AS54: - | AT54: - | AU54: 21.54221338 | AV54: 21.51216845 | AW54: 21.48963475 | AX54: 21.51035537 | AY54: 21.75654466 | AZ54: 21.88179852 | BA54: 21.9112591 | BB54: 21.95956976 | BC54: 22.02169365 | BD54: 22.09402616 | BE54: 22.1739357 | BF54: - | BG54: - | BH54: - | BI54: - | BJ54: - | BK54: -
B55: 9 | C55: 21.52719091 | D55: 21.48813251 | E55: 21.46209357 | F55: 21.27180902 | G55: 21.01623923 | H55: 21.03965301 | I55: 21.09358319 | J55: 21.16800065 | K55: 21.25638909 | L55: 21.3543696 | M55: 21.65877799 | N55: 21.95827408 | O55: 22.25326471 | P55: 22.54411057 | Q55: 22.83113291 | R55: 23.11461909 | S55: 23.3948272 | T55: 23.67198985 | U55: - | AR55: 9 | AS55: - | AT55: - | AU55: 21.54221338 | AV55: 21.51216845 | AW55: 21.5279128 | AX55: 21.77076065 | AY55: 22.0056049 | AZ55: 22.11937147 | BA55: 22.13748294 | BB55: 22.17569151 | BC55: 22.22874583 | BD55: 22.29287635 | BE55: 22.36532203 | BF55: - | BG55: - | BH55: - | BI55: - | BJ55: - | BK55: -
B56: 10 | C56: 21.52719091 | D56: 21.48813251 | E56: 21.46209357 | F56: 21.30969907 | G56: 21.27066272 | H56: 21.28050656 | I56: 21.32259841 | J56: 21.38655068 | K56: 21.46559028 | L56: 21.55514747 | M56: 21.85371087 | N56: 22.147799 | O56: 22.43777043 | P56: 22.72394449 | Q56: 23.00660686 | R56: 23.28601405 | S56: 23.5623973 | T56: - | U56: - | AR56: 10 | AS56: - | AT56: - | AU56: 21.54221338 | AV56: 21.55048663 | AW56: 21.78853062 | AX56: 22.01998362 | AY56: 22.24452203 | AZ56: 22.34774397 | BA56: 22.35535568 | BB56: 22.3841916 | BC56: 22.42880852 | BD56: 22.48528927 | BE56: - | BF56: - | BG56: - | BH56: - | BI56: - | BJ56: - | BK56: -
B57: 11 | C57: 21.52719091 | D57: 21.48813251 | E57: 21.50032256 | F57: 21.56767519 | G57: 21.51416077 | H57: 21.51155122 | I57: 21.54274459 | J57: 21.59703289 | K57: 21.66741386 | L57: 21.74914766 | M57: 22.04233329 | N57: 22.33143028 | O57: 22.61675608 | P57: 22.89859462 | Q57: 23.1772009 | R57: 23.45280476 | S57: - | T57: - | U57: - | AR57: 11 | AS57: - | AT57: - | AU57: 21.58058508 | AV57: 21.81137774 | AW57: 22.03795702 | AX57: 22.25905686 | AY57: 22.47418666 | AZ57: 22.56768606 | BA57: 22.56554501 | BB57: 22.58565334 | BC57: 22.62239469 | BD57: - | BE57: - | BF57: - | BG57: - | BH57: - | BI57: - | BJ57: - | BK57: -
B58: 12 | C58: 21.52719091 | D58: 21.52640788 | E58: 21.76060637 | F58: 21.81457333 | G58: 21.74774224 | H58: 21.73364826 | I58: 21.75476403 | J58: 21.80009233 | K58: 21.86242447 | L58: 21.93686758 | M58: 22.22509014 | N58: 22.50956766 | O58: 22.79058238 | P58: 23.06838775 | Q58: 23.34321221 | R58: - | S58: - | T58: - | U58: - | AR58: 12 | AS58: - | AT58: - | AU58: 21.84184055 | AV58: 22.06106568 | AW58: 22.2772254 | AX58: 22.48887156 | AY58: 22.69537317 | AZ58: 22.77987176 | BA58: 22.76863895 | BB58: 22.78059326 | BC58: 22.80996093 | BD58: - | BE58: - | BF58: - | BG58: - | BH58: - | BI58: - | BJ58: - | BK58: -
B59: 13 | C59: 21.56553586 | D59: 21.78700748 | E59: 22.00971311 | F59: 22.05141641 | G59: 21.97227784 | H59: 21.94754653 | I59: 21.95930648 | J59: 21.99629706 | K59: 22.0511221 | L59: 22.11875 | M59: 22.40237924 | N59: 22.68257014 | O59: 22.9595746 | P59: 23.23361967 | Q59: - | R59: - | S59: - | T59: - | U59: - | AR59: 13 | AS59: - | AT59: - | AU59: 22.09187723 | AV59: 22.30058496 | AW59: 22.50722768 | AX59: 22.71020259 | AY59: 22.90875941 | AZ59: 22.98489468 | BA59: 22.96515825 | BB59: 22.96947115 | BC59: - | BD59: - | BE59: - | BF59: - | BG59: - | BH59: - | BI59: - | BJ59: - | BK59: -
B60: 14 | C60: 21.82660915 | D60: 22.03641645 | E60: 22.24867484 | F60: 22.27908731 | G60: 22.18852466 | H60: 22.15390157 | I60: 22.15694417 | J60: 22.18615017 | K60: 22.23395182 | L60: 22.29519082 | M60: 22.5745579 | N60: 22.85076145 | O60: 23.12402712 | P60: - | Q60: - | R60: - | S60: - | T60: - | U60: - | AR60: 14 | AS60: - | AT60: - | AU60: 22.33173102 | AV60: 22.53082841 | AW60: 22.72873937 | AX60: 22.92372826 | AY60: 23.11494235 | AZ60: 23.18328051 | BA60: - | BB60: - | BC60: - | BD60: - | BE60: - | BF60: - | BG60: - | BH60: - | BI60: - | BJ60: - | BK60: -
B61: 15 | C61: 22.07647146 | D61: 22.2756681 | E61: 22.47838234 | F61: 22.49835369 | G61: 22.39714542 | H61: 22.35329065 | I61: 22.34818385 | J61: 22.37009943 | K61: 22.41131161 | L61: 22.46654566 | M61: 22.7419483 | N61: - | O61: - | P61: - | Q61: - | R61: - | S61: - | T61: - | U61: - | AR61: 15 | AS61: - | AT61: - | AU61: 22.56229604 | AV61: 22.75257237 | AW61: 22.94243933 | AX61: 23.13004592 | AY61: 23.31445064 | AZ61: - | BA61: - | BB61: - | BC61: - | BD61: - | BE61: - | BF61: - | BG61: - | BH61: - | BI61: - | BJ61: - | BK61: -
B62: 16 | C62: 22.31615799 | D62: 22.5056543 | E62: 22.69961015 | F62: 22.70988751 | G62: 22.59872374 | H62: 22.54622502 | I62: 22.53347656 | J62: 22.54854527 | K62: 22.58355892 | L62: 22.63313515 | M62: 22.90484203 | N62: - | O62: - | P62: - | Q62: - | R62: - | S62: - | T62: - | U62: - | AR62: 16 | AS62: - | AT62: - | AU62: 22.78434971 | AV62: 22.96649641 | AW62: 23.14892539 | AX62: 23.32968457 | AY62: 23.50775483 | AZ62: - | BA62: - | BB62: - | BC62: - | BD62: - | BE62: - | BF62: - | BG62: - | BH62: - | BI62: - | BJ62: - | BK62: -
A63: 14 | B63: 7 | C63: 21.54221338 | D63: 21.50015048 | E63: 21.47210854 | F63: 21.45207859 | G63: 21.13660685 | H63: 20.89123994 | I63: 20.73180893 | J63: 20.81995148 | K63: 20.92103855 | L63: 21.03078371 | M63: 21.14625236 | N63: 21.44970161 | O63: 21.74760414 | P63: 22.04043088 | Q63: 22.32859736 | R63: 22.61247209 | S63: 22.89238344 | T63: 23.16862521 | U63: - | AQ63: 22 | AR63: 7 | AS63: - | AT63: - | AU63: 21.55222835 | AV63: 21.52075271 | AW63: 21.49714598 | AX63: 21.47878519 | AY63: 21.50232912 | AZ63: 21.7504521 | BA63: 21.78376178 | BB63: 21.83578978 | BC63: 21.90147566 | BD63: 21.97720538 | BE63: 22.06034624 | BF63: 22.14894816 | BG63: - | BH63: - | BI63: - | BJ63: - | BK63: -
B64: 8 | C64: 21.54221338 | D64: 21.50015048 | E64: 21.47210854 | F64: 21.45207859 | G64: 21.13660685 | H64: 20.9284521 | I64: 20.98278908 | J64: 21.05828997 | K64: 21.14818043 | L64: 21.24791703 | M64: 21.3543696 | N64: 21.65137581 | O64: 21.94333647 | P64: 22.23066492 | Q64: 22.51372767 | R64: 22.79285133 | S64: 23.06832813 | T64: 23.34042062 | U64: - | AR64: 8 | AS64: - | AT64: - | AU64: 21.55222835 | AV64: 21.52075271 | AW64: 21.49714598 | AX64: 21.51704392 | AY64: 21.76263723 | AZ64: 21.99944259 | BA64: 22.02027034 | BB64: 22.06123443 | BC64: 22.11702566 | BD64: 22.18383927 | BE64: 22.2588933 | BF64: - | BG64: - | BH64: - | BI64: - | BJ64: - | BK64: -
B65: 9 | C65: 21.54221338 | D65: 21.50015048 | E65: 21.47210854 | F65: 21.45207859 | G65: 21.17425607 | H65: 21.18181283 | I65: 21.22299168 | J65: 21.286922 | K65: 21.36652582 | L65: 21.45703484 | M65: 21.55514747 | N65: 21.84624207 | O65: 22.13273247 | P65: 22.41498325 | Q65: 22.69331923 | R65: 22.96803106 | S65: 23.23937984 | T65: - | U65: - | AR65: 9 | AS65: - | AT65: - | AU65: 21.55222835 | AV65: 21.52075271 | AW65: 21.53543741 | AX65: 21.77753016 | AY65: 22.01176721 | AZ65: 22.23829282 | BA65: 22.24761967 | BB65: 22.27835675 | BC65: 22.32497416 | BD65: 22.3834978 | BE65: - | BF65: - | BG65: - | BH65: - | BI65: - | BJ65: - | BK65: -
B66: 10 | C66: 21.54221338 | D66: 21.50015048 | E66: 21.47210854 | F66: 21.49028974 | G66: 21.43059251 | H66: 21.42429377 | I66: 21.4534119 | J66: 21.50669984 | K66: 21.57681095 | L66: 21.65877799 | M66: 21.74914766 | N66: 22.03480003 | O66: 22.31623883 | P66: 22.59378713 | Q66: 22.86773398 | R66: 23.13833906 | S66: - | T66: - | U66: - | AR66: 10 | AS66: - | AT66: - | AU66: 21.55222835 | AV66: 21.55908619 | AW66: 21.79614633 | AX66: 22.02683063 | AY66: 22.25075125 | AZ66: 22.46789313 | BA66: 22.46657635 | BB66: 22.48782212 | BC66: 22.52590293 | BD66: - | BE66: - | BF66: - | BG66: - | BH66: - | BI66: - | BJ66: - | BK66: -
B67: 11 | C67: 21.54221338 | D67: 21.50015048 | E67: 21.51035537 | F67: 21.7504521 | G67: 21.67592138 | H67: 21.65689954 | I67: 21.67490867 | J67: 21.71836454 | K67: 21.77968026 | L67: 21.85371087 | M67: 21.93686758 | N67: 22.21749441 | O67: 22.49425503 | P67: 22.7674369 | Q67: 23.03729828 | R67: - | S67: - | T67: - | U67: - | AR67: 11 | AS67: - | AT67: - | AU67: 21.59061789 | AV67: 21.8200814 | AW67: 22.04565991 | AX67: 22.26597821 | AY67: 22.48048019 | AZ67: 22.6890177 | BA67: 22.6778114 | BB67: 22.69021655 | BC67: 22.72032714 | BD67: - | BE67: - | BF67: - | BG67: - | BH67: - | BI67: - | BJ67: - | BK67: -
B68: 12 | C68: 21.54221338 | D68: 21.53844725 | E68: 21.77076065 | F68: 21.99944259 | G68: 21.9112591 | H68: 21.88049723 | I68: 21.88822884 | J68: 21.92256476 | K68: 21.97570128 | L68: 22.04233329 | M68: 22.11875 | N68: 22.39472293 | O68: 22.66713982 | P68: 22.93625749 | Q68: - | R68: - | S68: - | T68: - | U68: - | AR68: 12 | AS68: - | AT68: - | AU68: 21.85199483 | AV68: 22.06986898 | AW68: 22.28501192 | AX68: 22.49586437 | AY68: 22.70172864 | AZ68: 22.90234419 | BA68: 22.88191576 | BB68: 22.88605897 | BC68: - | BD68: - | BE68: - | BF68: - | BG68: - | BH68: - | BI68: - | BJ68: - | BK68: -
B69: 13 | C69: 21.58058508 | D69: 21.79919261 | E69: 22.01998362 | F69: 22.23829282 | G69: 22.13748294 | H69: 22.09584077 | I69: 22.09402616 | J69: 22.11987176 | K69: 22.16537662 | L69: 22.22509014 | M69: 22.29519082 | N69: 22.56684274 | O69: 22.83521671 | P69: - | Q69: - | R69: - | S69: - | T69: - | U69: - | AR69: 13 | AS69: - | AT69: - | AU69: 22.10214774 | AV69: 22.30948383 | AW69: 22.51509459 | AX69: 22.71726422 | AY69: 22.91517463 | AZ69: 23.10846938 | BA69: 23.07941277 | BB69: - | BC69: - | BD69: - | BE69: - | BF69: - | BG69: - | BH69: - | BI69: - | BJ69: - | BK69: -
B70: 14 | C70: 21.84184055 | D70: 22.04874107 | E70: 22.25905686 | F70: 22.46789313 | G70: 22.35535568 | H70: 22.30359009 | I70: 22.29287635 | J70: 22.31079146 | K70: 22.34915364 | L70: 22.40237924 | M70: 22.46654566 | N70: 22.73417593 | O70: 22.9987785 | P70: - | Q70: - | R70: - | S70: - | T70: - | U70: - | AR70: 14 | AS70: - | AT70: - | AU70: 22.34211305 | AV70: 22.53981916 | AW70: 22.73668371 | AX70: 22.93085629 | AY70: 23.12141531 | AZ70: 23.30792181 | BA70: - | BB70: - | BC70: - | BD70: - | BE70: - | BF70: - | BG70: - | BH70: - | BI70: - | BJ70: - | BK70: -
B71: 15 | C71: 22.09187723 | D71: 22.28812653 | E71: 22.48887156 | F71: 22.6890177 | G71: 22.56554501 | H71: 22.50432639 | I71: 22.48528927 | J71: 22.49577414 | K71: 22.5274324 | L71: 22.5745579 | M71: 22.63313515 | N71: - | O71: - | P71: - | Q71: - | R71: - | S71: - | T71: - | U71: - | AR71: 15 | AS71: - | AT71: - | AU71: 22.57278526 | AV71: 22.76165161 | AW71: 22.95045835 | AX71: 23.1372381 | AY71: 23.32097947 | AZ71: - | BA71: - | BB71: - | BC71: - | BD71: - | BE71: - | BF71: - | BG71: - | BH71: - | BI71: - | BJ71: - | BK71: -
B72: 16 | C72: 22.33173102 | D72: 22.51824135 | E72: 22.71020259 | F72: 22.90234419 | G72: 22.76863895 | H72: 22.69856437 | I72: 22.67171874 | J72: 22.67522249 | K72: 22.70057218 | L72: 22.7419483 | M72: - | N72: - | O72: - | P72: - | Q72: - | R72: - | S72: - | T72: - | U72: - | AR72: 16 | AS72: - | AT72: - | AU72: 22.79494215 | AV72: 22.97566101 | AW72: 23.15701659 | AX72: 23.33693883 | AY72: - | AZ72: - | BA72: - | BB72: - | BC72: - | BD72: - | BE72: - | BF72: - | BG72: - | BH72: - | BI72: - | BJ72: - | BK72: -
A73: 15 | B73: 7 | C73: - | D73: 21.51216845 | E73: 21.48212352 | F73: 21.46066286 | G73: 21.29434272 | H73: 21.0314496 | I73: 20.8582224 | J73: 20.93626405 | K73: 21.02887895 | L73: 21.13140947 | M73: 21.24065527 | N73: 21.3543696 | O73: 21.64496058 | P73: 21.93039055 | Q73: 22.21107843 | R73: 22.48739583 | S73: 22.75967397 | T73: 23.0282093 | U73: -
B74: 8 | C74: - | D74: 21.51216845 | E74: 21.48212352 | F74: 21.46066286 | G74: 21.29434272 | H74: 21.06891151 | I74: 21.11073292 | J74: 21.17593405 | K74: 21.25719167 | L74: 21.34958171 | M74: 21.44970161 | N74: 21.55514747 | O74: 21.8397691 | P74: 22.11967481 | Q74: 22.39523437 | R74: 22.66677734 | S74: 22.9345987 | T74: - | U74: -
B75: 9 | C75: - | D75: 21.51216845 | E75: 21.48212352 | F75: 21.46066286 | G75: 21.33227291 | H75: 21.32397265 | I75: 21.35240017 | J75: 21.40584336 | K75: 21.47666255 | L75: 21.55970008 | M75: 21.65137581 | N75: 21.74914766 | O75: 22.0282712 | P75: 22.30307291 | Q75: 22.57388071 | R75: 22.84098809 | S75: - | T75: - | U75: -
B76: 10 | C76: - | D76: 21.51216845 | E76: 21.48212352 | F76: 21.4988893 | G76: 21.59052231 | H76: 21.56808097 | I76: 21.58422538 | J76: 21.626849 | K76: 21.68803163 | L76: 21.7624085 | M76: 21.84624207 | N76: 21.93686758 | O76: 22.21091145 | P76: 22.48098408 | Q76: 22.74737748 | R76: 23.01035407 | S76: - | T76: - | U76: -
B77: 11 | C77: - | D77: 21.51216845 | E77: 21.52038819 | F77: 21.75915576 | G77: 21.83768199 | H77: 21.80224786 | I77: 21.80707275 | J77: 21.83969618 | K77: 21.89194665 | L77: 21.95827408 | M77: 22.03480003 | N77: 22.11875 | O77: 22.38808745 | P77: 22.65376688 | Q77: 22.91604934 | R77: - | S77: - | T77: - | U77: -
B78: 12 | C78: - | D78: 21.55048663 | E78: 21.78091492 | F78: 22.00824589 | G78: 22.07477596 | H78: 22.02734621 | I78: 22.02169365 | J78: 22.04503718 | K78: 22.08897809 | L78: 22.147799 | M78: 22.21749441 | N78: 22.29519082 | O78: 22.56015627 | P78: 22.82174461 | Q78: - | R78: - | S78: - | T78: - | U78: -
B79: 13 | C79: - | D79: 21.81137774 | E79: 22.03025414 | F79: 22.2471917 | G79: 22.30268804 | H79: 22.244135 | I79: 22.22874583 | J79: 22.24344647 | K79: 22.27963114 | L79: 22.33143028 | M79: 22.39472293 | N79: 22.46654566 | O79: 22.72743988 | P79: - | Q79: - | R79: - | S79: - | T79: - | U79: -
B80: 14 | C80: - | D80: 22.06106568 | E80: 22.26943889 | F80: 22.47688389 | G80: 22.52218669 | H80: 22.45327861 | I80: 22.42880852 | J80: 22.43543275 | K80: 22.46435546 | L80: 22.50956766 | M80: 22.56684274 | N80: 22.63313515 | O80: - | P80: - | Q80: - | R80: - | S80: - | T80: - | U80: -
B81: 15 | C81: - | D81: 22.30058496 | E81: 22.49936077 | F81: 22.69809694 | G81: 22.7339446 | H81: 22.65536214 | I81: 22.62239469 | J81: 22.62144886 | K81: 22.64355318 | L81: 22.68257014 | M81: - | N81: - | O81: - | P81: - | Q81: - | R81: - | S81: - | T81: - | U81: -
B82: 16 | C82: - | D82: 22.53082841 | E82: 22.72079504 | F82: 22.91150879 | G82: 22.93855417 | H82: 22.85090373 | I82: 22.80996093 | J82: 22.80189971 | K82: 22.81758544 | L82: - | M82: - | N82: - | O82: - | P82: - | Q82: - | R82: - | S82: - | T82: - | U82: -
